Workbook

Sheet Simulador (hidden)
C2: SIMULADOR DE CUOTAS - CRÉDITO PLD
C5: Importe Solicitado | H5: =+Hoja1!C8 -> 4000 | N5: Fecha Desembolso | S5: =+Hoja1!C9 -> 2021-11-25
C6: Saldo de Capital | H6: =H5 -> 4000 | N6: Fecha Final de Gracia | S6: =DATE(YEAR(S5+H14),MONTH(S5 + H14),DAY(S5 +H14)) -> 2022-02-23
C7: Saldo de Interes | H7: 0 | N7: Fecha de la 1° cuota | S7: =DATE(YEAR(EDATE(S6,1)),MONTH(EDATE(S6,1)),DAY(EDATE(S6,1))) -> 2022-03-23
C8: Tasa Anual (TEA) | H8: =+Hoja1!C11 -> 50 | N8: Fecha final de vencimiento | S8: =DATE(YEAR(EDATE(S6,H13)),MONTH(EDATE(S6,H13)),DAY(EDATE(S6,H13))) -> 2026-02-23
C9: Tasa de Seguro de Desgravámen | H9: =+'Hoja1 (2)'!H13 -> 0.0018 | N9: Base | S9: 360
C10: Gastos Administrativos | H10: 0 | N10: Frecuencia pago en días | S10: 30
C11: Comision Envio Informacion | H11: 0 | N11: Tasa Equivalente | S11: =ROUND((((H8/100+1)^(1/(S9/S10))-1)*S9/S10)*100,6) -> 41.2393 | T11: tea conv. A tem luego nominal anual
N12: Días entre cuotas | S12: =(S8-S6)/H13 -> 30.4375 | T12: dias promedio entre cuotas
C13: Plazo y Nro. Cuotas | H13: =+Hoja1!C10 -> 48 | I13: =IF(H16+ H17>0,VLOOKUP(H13,#REF!,2,FALSE),H13) -> 48 | N13: Factor Aplicado | S13: =($S$11/100)/($S$9/$S$12) -> 0.03486725538 | T13: tem convertida de manera nominal a los dias entre cuotas
C14: Días de Gracia | H14: =+Hoja1!C12 -> 90 | N14: Factor Aplicado para la cuota | S14: =1/((1-((1+$S$13)^(-1*$H$13)))/$S$13) -> 0.04320553378 | T14: Factor de cuota (ok)
C15: (+/- 30 días antes de la fecha 1° cuota) | N15: Interes de Gracia | S15: =IF(H14>0,ROUND(H6*(((1+H8/100)^(ABS(H14)/S9))-1),4),ROUND(H6*(((1+H8/100)^(ABS(H14)/S9))-1),4) * -1) -> 426.7277 | T15: Ok
C16: Mes de No Pago 1 | H16: 0 | N16: Saldo Interes +/- Interes Gracia | S16: =IF(H7 + S15>0,H7+ S15,0) -> 426.7277
C17: Mes de No Pago 2 | H17: 0
C18: Mes Cuota Doble 1 | H18: =+IF(Hoja1!C14="No",0,IF(Hoja1!C14="Julio",7,12)) -> 0
C19: Mes Cuota Doble 2 | H19: =+IF(Hoja1!C15="No",0,IF(Hoja1!C15="Julio",7,12)) -> 0
O22: Suavización | Q22: Ultimo saldo de Principal | S22: =VLOOKUP(I13,$F$31:$U$43,14,FALSE) -> 
G23: Valor de cuota por dias de gracia | L23: =ROUND(IF(OR(H16+ H17> 0,H18 + H19>0),S16/VLOOKUP(H13,Calculos!$A$3:$G$389,7,FALSE),S16*$S$14),2) -> 18.44 | Q23: Numero de Dias | S23: =S8-S6 -> 1461
G24: Valor de cuota por capital | L24: =ROUND(IF(OR($H$16 + $H$17 > 0,$H$18 + $H$19>0), ROUNDDOWN($H$6/VLOOKUP($H$13,Calculos!$A$3:$G$389,7,FALSE),2),$H$6*$S$14),2) -> 172.82 | O24: 1670.38 | Q24: Valor de Cuota Nivelada | S24: =ROUND(+S22/ROUND(1*(((1+H8/100)^(S23/S9))-1),4),2) -> 
G25: Seguro de Desgravamen (FPF) | L25: =$H$5*$H$9 -> 7.2 | Q25: Factor Ajuste | S25: =S24*S14 ->  | U25: Se copia el valor de la celda P26 solo en la primera corrida, siempre que sea mayor a cero
G26: Portes | L26: =$H$11 -> 0 | Q26: Exceso de Int + Gracia | S26: =SUM(V32:V43) -> 0 | T26: =ROUND(IF(H16+ H17> 0,ROUNDUP($S$26/VLOOKUP(H13,#REF!,7,FALSE),2),$S$26*$S$14),2) -> 0 | U26: 0
G28: Cuota | L28: =L23+L24+L25+L26 -> 198.46 | Q28: Digite Factor de Ajuste Anterior mas El Actual
L30: =SUM(L32:L982) -> 124889.42 | M30: 4000 | N30: 4349.91 | O30: 885.12 | P30: 5235.03 | Q30: 9235.03 | R30: 0 | S30: 367.2 | T30: 9602.23 | X30: =SUM(X32:X982) -> 4000.643714
A31: ="$J$"&MATCH(1,B:B,0) -> $J$32 | C31: Fecha Vcto. | D31: Marca | E31: Nro. Cuota (De acuerdo a Plazo) | F31: Nro. Cuota | G31: Periodo Base | H31: Tasa | I31: Nro. Dias | J31: Factor | K31: Factor acumulado | L31: Principal | M31: Capital | N31: Interes | O31: Interes de Gracia | P31: Interes Total | Q31: Valor Cuota | R31: Comision Envio Informacion | S31: Seguro Desgravamen | T31: Cuota | U31: Saldo Principal | V31: Exceso | W31: TEM | X31: VNP | Z31: Imp.Seguro Desgravamen periodo de gracia
A32: 1 | B32: =IF(A32="","",IF(A32<=$H$22,0,1)) -> 1 | C32: =IF(OR(MONTH(EDATE($S$6,F32))=$H$16,MONTH(EDATE($S$6,F32))=$H$17),IF(ABS($H$17-$H$16)=1,EDATE($S$6,F32+2),EDATE($S$6,F32+1)),EDATE($S$6,F32)) -> 2022-03-23 | D32: =IF(B32="","",IF(OR(MONTH(C32)=$H$18,MONTH(C32)=$H$19),"D","")) ->  | E32: =IF(OR(MONTH(S7)=H16, MONTH(S7)=H17),IF(ABS(H17-H16)=1,3,2),1) -> 1 | F32: =1 -> 1 | G32: =$S$9 -> 360 | H32: =$H$8 -> 50 | I32: =C32-S6 -> 28 | J32: =+(I32+$H$14)/30 -> 3.933333333 | K32: =+SUM($J$32:J32) -> 3.933333333 | L32: =H6 -> 4000 | M32: =IF((IF(ISERROR(MATCH(MONTH(C32),$H$18:$H$19,0))=FALSE,$L$24 + $S$28,0) + $L$24+$S$28 - IF(AND(D32="D",AE32= 0),$V$26 * 2,$V$26))-N32 <=0,0.01,IF(ISERROR(MATCH(MONTH(C32),$H$18:$H$19,0))=FALSE,$L$24 + $S$28,0)+ ($L$24+$S$28 - IF(AND(D32="D",W32= 0),$V$26 * 2,$V$26))-N32)-Z32 -> 23.07 | N32: =IF($L$24+$S$28 + $U$26<ROUND(ROUND(L32*(((1+(H32/100))^(I32/G32))-1),4),2),$L$24+$S$28 + $U$26-0.01,IF(ROUND(ROUND(L32*(((1+(H32/100))^(I32/G32))-1),4),2)+ $U$26>$L$24,$L$24+ $U$26+-0.01,ROUND(ROUND(L32*(((1+(H32/100))^(I32/G32))-1),4),2)+$U$26)) -> 128.15 | O32: =IF(ISERROR(MATCH(MONTH(C32),$H$18:$H$19,0))=FALSE,$L$23,0) +$L$23 -> 18.44 | P32: =N32+O32 -> 146.59 | Q32: =M32+N32 + O32+AA32+IF(A32=$H$13,U32,0) -> 169.66 | R32: =$L$26 -> 0 | S32: =$L$25+Z32 -> 28.8 | T32: =Q32+R32+S32 -> 198.46 | U32: =ROUND(L32-M32,2) -> 3976.93 | V32: =IF(ROUND(ROUND(L32*(((1+(H32/100))^(I32/G32))-1),4),2) - $L$24<0,0,ROUND(ROUND(L32*(((1+(H32/100))^(I32/G32))-1),4),2) - $L$24) -> 0 | W32: =(1+H32/100)^(1/12)-1 -> 0.03436608313 | X32: =+Q32/((1+W32)^K32) -> 148.5458972 | Z32: =ROUND($H$9*$H$5/30*$H$14,2) -> 21.6
A33: =IF(A32>=$H$13,"",A32+1) -> 2 | B33: =IF(A33="","",IF(A33<=$H$22,0,1)) -> 1 | C33: =IF(B33="","",IF(OR(MONTH(EDATE($S$6,F33))=$H$16,MONTH(EDATE($S$6,F33))=$H$17),IF(ABS($H$17-$H$16)=1,EDATE($S$6,F33+2),EDATE($S$6,F33+1)),EDATE($S$6,F33))) -> 2022-04-23 | D33: =IF(B33="","",IF(OR(MONTH(C33)=$H$18,MONTH(C33)=$H$19),"D","")) ->  | E33: =IF(B33="","",IF(OR(MONTH(DATE(YEAR(C32) + 1/12,MONTH(C32)+1,DAY(C32)))=$H$16,MONTH(DATE(YEAR(C32) + 1/12,MONTH(C32)+1,DAY(C32)))=$H$17),IF(ABS($H$17-$H$16)=1,E32+1,E32 + 2),E32 + 1)) -> 2 | F33: =IF(B33="","",F32+1) -> 2 | G33: =IF(B33="","",$S$9) -> 360 | H33: =IF(B33="","",$H$8) -> 50 | I33: =IF(B33="","",C33-C32) -> 31 | J33: =IF(B33="","",(I33)/30) -> 1.033333333 | K33: =IF(B33="","",SUM($J$32:J33)) -> 4.966666667 | L33: =IF(B33="","",U32) -> 3976.93 | M33: =IF(A33=$H$13,U32,IF(B33="","",IF((IF(ISERROR(MATCH(MONTH(C33),$H$18:$H$19,0))=FALSE,$L$24+$S$28,0)+$L$24+$S$28-IF(AND(D33="D",W33=0),$V$26*2,$V$26))-N33<=0,0.01,IF(ISERROR(MATCH(MONTH(C33),$H$18:$H$19,0))=FALSE,$L$24+$S$28,0)+($L$24+$S$28-IF(AND(D33="D",W33=0),$V$26*2,$V$26))-N33)-Z33)) -> 31.51 | N33: =IF(B33="","",IF($L$24+$S$28 + $U$26<ROUND(ROUND(L33*(((1+(H33/100))^(I33/G33))-1),4),2),$L$24+$S$28 + $U$26-0.01,IF(ROUND(ROUND(L33*(((1+(H33/100))^(I33/G33))-1),4),2)+ $U$26>$L$24,$L$24+ $U$26+-0.01,ROUND(ROUND(L33*(((1+(H33/100))^(I33/G33))-1),4),2)+$U$26))) -> 141.31 | O33: =IF(B33="","",IF(ISERROR(MATCH(MONTH(C33),$H$18:$H$19,0))=FALSE,$L$23,0) +$L$23) -> 18.44 | P33: =IF(B33="","",N33+O33) -> 159.75 | Q33: =IF(B33="","",M33+N33 + O33+AA33+IF(A33=$H$13,U33,0)) -> 191.26 | R33: =IF(B33="","",$L$26) -> 0 | S33: =IF(B33="","",$L$25+Z33) -> 7.2 | T33: =IF(B33="","",Q33+R33+S33) -> 198.46 | U33: =IF(B33="","",ROUND(L33-M33,2)) -> 3945.42 | V33: =IF(B33="","",IF(ROUND(ROUND(L33*(((1+(H33/100))^(I33/G33))-1),4),2) - $L$24<0,0,ROUND(ROUND(L33*(((1+(H33/100))^(I33/G33))-1),4),2) - $L$24)) -> 0 | W33: =IF(B33="","",(1+H33/100)^(1/12)-1) -> 0.03436608313 | X33: =IF(B33="","",Q33/((1+W33)^K33)) -> 161.7118837
A34: =IF(A33>=$H$13,"",A33+1) -> 3 | B34: 1 | C34: 2022-05-23 | D34: =IF(B34="","",IF(OR(MONTH(C34)=$H$18,MONTH(C34)=$H$19),"D","")) ->  | E34: 3 | F34: 3 | G34: 360 | H34: 50 | I34: 30 | J34: 1 | K34: =IF(B34="","",SUM($J$32:J34)) -> 5.966666667 | L34: 3945.42 | M34: 37.23 | N34: 135.59 | O34: 18.44 | P34: 154.03 | Q34: 191.26 | R34: 0 | S34: 7.2 | T34: 198.46 | U34: 3908.19 | V34: 0 | W34: 0.03436608313 | X34: 156.3391204
A35: 4 | B35: 1 | C35: 2022-06-23 | E35: 4 | F35: 4 | G35: 360 | H35: 50 | I35: 31 | J35: 1.033333333 | K35: =IF(B35="","",SUM($J$32:J35)) -> 7 | L35: 3908.19 | M35: 33.96 | N35: 138.86 | O35: 18.44 | P35: 157.3 | Q35: 191.26 | R35: 0 | S35: 7.2 | T35: 198.46 | U35: 3874.23 | V35: 0 | W35: 0.03436608313 | X35: 150.9747261
A36: 5 | B36: 1 | C36: 2022-07-23 | E36: 5 | F36: 5 | G36: 360 | H36: 50 | I36: 30 | J36: 1 | K36: =IF(B36="","",SUM($J$32:J36)) -> 8 | L36: 3874.23 | M36: 39.68 | N36: 133.14 | O36: 18.44 | P36: 151.58 | Q36: 191.26 | R36: 0 | S36: 7.2 | T36: 198.46 | U36: 3834.55 | V36: 0 | W36: 0.03436608313 | X36: 145.9586974
A37: 6 | B37: 1 | C37: 2022-08-23 | E37: 6 | F37: 6 | G37: 360 | H37: 50 | I37: 31 | J37: 1.033333333 | K37: =IF(B37="","",SUM($J$32:J37)) -> 9.033333333 | L37: 3834.55 | M37: 36.57 | N37: 136.25 | O37: 18.44 | P37: 154.69 | Q37: 191.26 | R37: 0 | S37: 7.2 | T37: 198.46 | U37: 3797.98 | V37: 0 | W37: 0.03436608313 | X37: 140.9504818
A38: 7 | B38: 1 | C38: 2022-09-23 | E38: 7 | F38: 7 | G38: 360 | H38: 50 | I38: 31 | J38: 1.033333333 | K38: =IF(B38="","",SUM($J$32:J38)) -> 10.06666667 | L38: 3797.98 | M38: 37.87 | N38: 134.95 | O38: 18.44 | P38: 153.39 | Q38: 191.26 | R38: 0 | S38: 7.2 | T38: 198.46 | U38: 3760.11 | V38: 0 | W38: 0.03436608313 | X38: 136.1141109
A39: 8 | B39: 1 | C39: 2022-10-23 | E39: 8 | F39: 8 | G39: 360 | H39: 50 | I39: 30 | J39: 1 | K39: =IF(B39="","",SUM($J$32:J39)) -> 11.06666667 | L39: 3760.11 | M39: 43.6 | N39: 129.22 | O39: 18.44 | P39: 147.66 | Q39: 191.26 | R39: 0 | S39: 7.2 | T39: 198.46 | U39: 3716.51 | V39: 0 | W39: 0.03436608313 | X39: 131.5918157
A40: 9 | B40: 1 | C40: 2022-11-23 | E40: 9 | F40: 9 | G40: 360 | H40: 50 | I40: 31 | J40: 1.033333333 | K40: =IF(B40="","",SUM($J$32:J40)) -> 12.1 | L40: 3716.51 | M40: 40.77 | N40: 132.05 | O40: 18.44 | P40: 150.49 | Q40: 191.26 | R40: 0 | S40: 7.2 | T40: 198.46 | U40: 3675.74 | V40: 0 | W40: 0.03436608313 | X40: 127.0765645
A41: 10 | B41: 1 | C41: 2022-12-23 | E41: 10 | F41: 10 | G41: 360 | H41: 50 | I41: 30 | J41: 1 | K41: =IF(B41="","",SUM($J$32:J41)) -> 13.1 | L41: 3675.74 | M41: 46.5 | N41: 126.32 | O41: 18.44 | P41: 144.76 | Q41: 191.26 | R41: 0 | S41: 7.2 | T41: 198.46 | U41: 3629.24 | V41: 0 | W41: 0.03436608313 | X41: 122.8545353
A42: 11 | B42: 1 | C42: 2023-01-23 | E42: 11 | F42: 11 | G42: 360 | H42: 50 | I42: 31 | J42: 1.033333333 | K42: =IF(B42="","",SUM($J$32:J42)) -> 14.13333333 | L42: 3629.24 | M42: 43.87 | N42: 128.95 | O42: 18.44 | P42: 147.39 | Q42: 191.26 | R42: 0 | S42: 7.2 | T42: 198.46 | U42: 3585.37 | V42: 0 | W42: 0.03436608313 | X42: 118.6390826
A43: 12 | B43: 1 | C43: 2023-02-23 | E43: 12 | F43: 12 | G43: 360 | H43: 50 | I43: 31 | J43: 1.033333333 | K43: =IF(B43="","",SUM($J$32:J43)) -> 15.16666667 | L43: 3585.37 | M43: 45.43 | N43: 127.39 | O43: 18.44 | P43: 145.83 | Q43: 191.26 | R43: 0 | S43: 7.2 | T43: 198.46 | U43: 3539.94 | V43: 0 | W43: 0.03436608313 | X43: 114.5682728
A44: 13 | B44: 1 | C44: 2023-03-23 | E44: 13 | F44: 13 | G44: 360 | H44: 50 | I44: 28 | J44: 0.9333333333 | K44: =IF(B44="","",SUM($J$32:J44)) -> 16.1 | L44: 3539.94 | M44: 59.4 | N44: 113.42 | O44: 18.44 | P44: 131.86 | Q44: 191.26 | R44: 0 | S44: 7.2 | T44: 198.46 | U44: 3480.54 | V44: 0 | W44: 0.03436608313 | X44: 111.0116043
A45: 14 | B45: 1 | C45: 2023-04-23 | E45: 14 | F45: 14 | G45: 360 | H45: 50 | I45: 31 | J45: 1.033333333 | K45: =IF(B45="","",SUM($J$32:J45)) -> 17.13333333 | L45: 3480.54 | M45: 49.15 | N45: 123.67 | O45: 18.44 | P45: 142.11 | Q45: 191.26 | R45: 0 | S45: 7.2 | T45: 198.46 | U45: 3431.39 | V45: 0 | W45: 0.03436608313 | X45: 107.2025127
A46: 15 | B46: 1 | C46: 2023-05-23 | E46: 15 | F46: 15 | G46: 360 | H46: 50 | I46: 30 | J46: 1 | K46: =IF(B46="","",SUM($J$32:J46)) -> 18.13333333 | L46: 3431.39 | M46: 54.9 | N46: 117.92 | O46: 18.44 | P46: 136.36 | Q46: 191.26 | R46: 0 | S46: 7.2 | T46: 198.46 | U46: 3376.49 | V46: 0 | W46: 0.03436608313 | X46: 103.6407849
A47: 16 | B47: 1 | C47: 2023-06-23 | E47: 16 | F47: 16 | G47: 360 | H47: 50 | I47: 31 | J47: 1.033333333 | K47: =IF(B47="","",SUM($J$32:J47)) -> 19.16666667 | L47: 3376.49 | M47: 52.85 | N47: 119.97 | O47: 18.44 | P47: 138.41 | Q47: 191.26 | R47: 0 | S47: 7.2 | T47: 198.46 | U47: 3323.64 | V47: 0 | W47: 0.03436608313 | X47: 100.084605
A48: 17 | B48: 1 | C48: 2023-07-23 | E48: 17 | F48: 17 | G48: 360 | H48: 50 | I48: 30 | J48: 1 | K48: =IF(B48="","",SUM($J$32:J48)) -> 20.16666667 | L48: 3323.64 | M48: 58.6 | N48: 114.22 | O48: 18.44 | P48: 132.66 | Q48: 191.26 | R48: 0 | S48: 7.2 | T48: 198.46 | U48: 3265.04 | V48: 0 | W48: 0.03436608313 | X48: 96.7593646
A49: 18 | B49: 1 | C49: 2023-08-23 | E49: 18 | F49: 18 | G49: 360 | H49: 50 | I49: 31 | J49: 1.033333333 | K49: =IF(B49="","",SUM($J$32:J49)) -> 21.2 | L49: 3265.04 | M49: 56.81 | N49: 116.01 | O49: 18.44 | P49: 134.45 | Q49: 191.26 | R49: 0 | S49: 7.2 | T49: 198.46 | U49: 3208.23 | V49: 0 | W49: 0.03436608313 | X49: 93.43930377
A50: 19 | B50: 1 | C50: 2023-09-23 | E50: 19 | F50: 19 | G50: 360 | H50: 50 | I50: 31 | J50: 1.033333333 | K50: =IF(B50="","",SUM($J$32:J50)) -> 22.23333333 | L50: 3208.23 | M50: 58.83 | N50: 113.99 | O50: 18.44 | P50: 132.43 | Q50: 191.26 | R50: 0 | S50: 7.2 | T50: 198.46 | U50: 3149.4 | V50: 0 | W50: 0.03436608313 | X50: 90.2331627
A51: 20 | B51: 1 | C51: 2023-10-23 | E51: 20 | F51: 20 | G51: 360 | H51: 50 | I51: 30 | J51: 1 | K51: =IF(B51="","",SUM($J$32:J51)) -> 23.23333333 | L51: 3149.4 | M51: 64.59 | N51: 108.23 | O51: 18.44 | P51: 126.67 | Q51: 191.26 | R51: 0 | S51: 7.2 | T51: 198.46 | U51: 3084.81 | V51: 0 | W51: 0.03436608313 | X51: 87.23522955
A52: 21 | B52: 1 | C52: 2023-11-23 | E52: 21 | F52: 21 | G52: 360 | H52: 50 | I52: 31 | J52: 1.033333333 | K52: =IF(B52="","",SUM($J$32:J52)) -> 24.26666667 | L52: 3084.81 | M52: 63.21 | N52: 109.61 | O52: 18.44 | P52: 128.05 | Q52: 191.26 | R52: 0 | S52: 7.2 | T52: 198.46 | U52: 3021.6 | V52: 0 | W52: 0.03436608313 | X52: 84.24196611
A53: 22 | B53: 1 | C53: 2023-12-23 | E53: 22 | F53: 22 | G53: 360 | H53: 50 | I53: 30 | J53: 1 | K53: =IF(B53="","",SUM($J$32:J53)) -> 25.26666667 | L53: 3021.6 | M53: 68.98 | N53: 103.84 | O53: 18.44 | P53: 122.28 | Q53: 191.26 | R53: 0 | S53: 7.2 | T53: 198.46 | U53: 2952.62 | V53: 0 | W53: 0.03436608313 | X53: 81.44308624
A54: 23 | B54: 1 | C54: 2024-01-23 | E54: 23 | F54: 23 | G54: 360 | H54: 50 | I54: 31 | J54: 1.033333333 | K54: =IF(B54="","",SUM($J$32:J54)) -> 26.3 | L54: 2952.62 | M54: 67.91 | N54: 104.91 | O54: 18.44 | P54: 123.35 | Q54: 191.26 | R54: 0 | S54: 7.2 | T54: 198.46 | U54: 2884.71 | V54: 0 | W54: 0.03436608313 | X54: 78.64856603
A55: 24 | B55: 1 | C55: 2024-02-23 | E55: 24 | F55: 24 | G55: 360 | H55: 50 | I55: 31 | J55: 1.033333333 | K55: =IF(B55="","",SUM($J$32:J55)) -> 27.33333333 | L55: 2884.71 | M55: 70.32 | N55: 102.5 | O55: 18.44 | P55: 120.94 | Q55: 191.26 | R55: 0 | S55: 7.2 | T55: 198.46 | U55: 2814.39 | V55: 0 | W55: 0.03436608313 | X55: 75.94993293
A56: 25 | B56: 1 | C56: 2024-03-23 | E56: 25 | F56: 25 | G56: 360 | H56: 50 | I56: 29 | J56: 0.9666666667 | K56: =IF(B56="","",SUM($J$32:J56)) -> 28.3 | L56: 2814.39 | M56: 79.38 | N56: 93.44 | O56: 18.44 | P56: 111.88 | Q56: 191.26 | R56: 0 | S56: 7.2 | T56: 198.46 | U56: 2735.01 | V56: 0 | W56: 0.03436608313 | X56: 73.50929633
A57: 26 | B57: 1 | C57: 2024-04-23 | E57: 26 | F57: 26 | G57: 360 | H57: 50 | I57: 31 | J57: 1.033333333 | K57: =IF(B57="","",SUM($J$32:J57)) -> 29.33333333 | L57: 2735.01 | M57: 75.64 | N57: 97.18 | O57: 18.44 | P57: 115.62 | Q57: 191.26 | R57: 0 | S57: 7.2 | T57: 198.46 | U57: 2659.37 | V57: 0 | W57: 0.03436608313 | X57: 70.98700471
A58: 27 | B58: 1 | C58: 2024-05-23 | E58: 27 | F58: 27 | G58: 360 | H58: 50 | I58: 30 | J58: 1 | K58: =IF(B58="","",SUM($J$32:J58)) -> 30.33333333 | L58: 2659.37 | M58: 81.43 | N58: 91.39 | O58: 18.44 | P58: 109.83 | Q58: 191.26 | R58: 0 | S58: 7.2 | T58: 198.46 | U58: 2577.94 | V58: 0 | W58: 0.03436608313 | X58: 68.62851157
A59: 28 | B59: 1 | C59: 2024-06-23 | E59: 28 | F59: 28 | G59: 360 | H59: 50 | I59: 31 | J59: 1.033333333 | K59: =IF(B59="","",SUM($J$32:J59)) -> 31.36666667 | L59: 2577.94 | M59: 81.22 | N59: 91.6 | O59: 18.44 | P59: 110.04 | Q59: 191.26 | R59: 0 | S59: 7.2 | T59: 198.46 | U59: 2496.72 | V59: 0 | W59: 0.03436608313 | X59: 66.27369213
A60: 29 | B60: 1 | C60: 2024-07-23 | E60: 29 | F60: 29 | G60: 360 | H60: 50 | I60: 30 | J60: 1 | K60: =IF(B60="","",SUM($J$32:J60)) -> 32.36666667 | L60: 2496.72 | M60: 87.02 | N60: 85.8 | O60: 18.44 | P60: 104.24 | Q60: 191.26 | R60: 0 | S60: 7.2 | T60: 198.46 | U60: 2409.7 | V60: 0 | W60: 0.03436608313 | X60: 64.07179548
A61: 30 | B61: 1 | C61: 2024-08-23 | E61: 30 | F61: 30 | G61: 360 | H61: 50 | I61: 31 | J61: 1.033333333 | K61: =IF(B61="","",SUM($J$32:J61)) -> 33.4 | L61: 2409.7 | M61: 87.2 | N61: 85.62 | O61: 18.44 | P61: 104.06 | Q61: 191.26 | R61: 0 | S61: 7.2 | T61: 198.46 | U61: 2322.5 | V61: 0 | W61: 0.03436608313 | X61: 61.8733286
A62: 31 | B62: 1 | C62: 2024-09-23 | E62: 31 | F62: 31 | G62: 360 | H62: 50 | I62: 31 | J62: 1.033333333 | K62: =IF(B62="","",SUM($J$32:J62)) -> 34.43333333 | L62: 2322.5 | M62: 90.3 | N62: 82.52 | O62: 18.44 | P62: 100.96 | Q62: 191.26 | R62: 0 | S62: 7.2 | T62: 198.46 | U62: 2232.2 | V62: 0 | W62: 0.03436608313 | X62: 59.75029673
A63: 32 | B63: 1 | C63: 2024-10-23 | E63: 32 | F63: 32 | G63: 360 | H63: 50 | I63: 30 | J63: 1 | K63: =IF(B63="","",SUM($J$32:J63)) -> 35.43333333 | L63: 2232.2 | M63: 96.11 | N63: 76.71 | O63: 18.44 | P63: 95.15 | Q63: 191.26 | R63: 0 | S63: 7.2 | T63: 198.46 | U63: 2136.09 | V63: 0 | W63: 0.03436608313 | X63: 57.76513529
A64: 33 | B64: 1 | C64: 2024-11-23 | E64: 33 | F64: 33 | G64: 360 | H64: 50 | I64: 31 | J64: 1.033333333 | K64: =IF(B64="","",SUM($J$32:J64)) -> 36.46666667 | L64: 2136.09 | M64: 96.92 | N64: 75.9 | O64: 18.44 | P64: 94.34 | Q64: 191.26 | R64: 0 | S64: 7.2 | T64: 198.46 | U64: 2039.17 | V64: 0 | W64: 0.03436608313 | X64: 55.78306602
A65: 34 | B65: 1 | C65: 2024-12-23 | E65: 34 | F65: 34 | G65: 360 | H65: 50 | I65: 30 | J65: 1 | K65: =IF(B65="","",SUM($J$32:J65)) -> 37.46666667 | L65: 2039.17 | M65: 102.74 | N65: 70.08 | O65: 18.44 | P65: 88.52 | Q65: 191.26 | R65: 0 | S65: 7.2 | T65: 198.46 | U65: 1936.43 | V65: 0 | W65: 0.03436608313 | X65: 53.92971302
A66: 35 | B66: 1 | C66: 2025-01-23 | E66: 35 | F66: 35 | G66: 360 | H66: 50 | I66: 31 | J66: 1.033333333 | K66: =IF(B66="","",SUM($J$32:J66)) -> 38.5 | L66: 1936.43 | M66: 104.02 | N66: 68.8 | O66: 18.44 | P66: 87.24 | Q66: 191.26 | R66: 0 | S66: 7.2 | T66: 198.46 | U66: 1832.41 | V66: 0 | W66: 0.03436608313 | X66: 52.07924689
A67: 36 | B67: 1 | C67: 2025-02-23 | E67: 36 | F67: 36 | G67: 360 | H67: 50 | I67: 31 | J67: 1.033333333 | K67: =IF(B67="","",SUM($J$32:J67)) -> 39.53333333 | L67: 1832.41 | M67: 107.71 | N67: 65.11 | O67: 18.44 | P67: 83.55 | Q67: 191.26 | R67: 0 | S67: 7.2 | T67: 198.46 | U67: 1724.7 | V67: 0 | W67: 0.03436608313 | X67: 50.29227497
A68: 37 | B68: 1 | C68: 2025-03-23 | E68: 37 | F68: 37 | G68: 360 | H68: 50 | I68: 28 | J68: 0.9333333333 | K68: =IF(B68="","",SUM($J$32:J68)) -> 40.46666667 | L68: 1724.7 | M68: 117.56 | N68: 55.26 | O68: 18.44 | P68: 73.7 | Q68: 191.26 | R68: 0 | S68: 7.2 | T68: 198.46 | U68: 1607.14 | V68: 0 | W68: 0.03436608313 | X68: 48.73099674
A69: 38 | B69: 1 | C69: 2025-04-23 | E69: 38 | F69: 38 | G69: 360 | H69: 50 | I69: 31 | J69: 1.033333333 | K69: =IF(B69="","",SUM($J$32:J69)) -> 41.5 | L69: 1607.14 | M69: 115.72 | N69: 57.1 | O69: 18.44 | P69: 75.54 | Q69: 191.26 | R69: 0 | S69: 7.2 | T69: 198.46 | U69: 1491.42 | V69: 0 | W69: 0.03436608313 | X69: 47.05891183
A70: 39 | B70: 1 | C70: 2025-05-23 | E70: 39 | F70: 39 | G70: 360 | H70: 50 | I70: 30 | J70: 1 | K70: =IF(B70="","",SUM($J$32:J70)) -> 42.5 | L70: 1491.42 | M70: 121.57 | N70: 51.25 | O70: 18.44 | P70: 69.69 | Q70: 191.26 | R70: 0 | S70: 7.2 | T70: 198.46 | U70: 1369.85 | V70: 0 | W70: 0.03436608313 | X70: 45.4954127
A71: 40 | B71: 1 | C71: 2025-06-23 | E71: 40 | F71: 40 | G71: 360 | H71: 50 | I71: 31 | J71: 1.033333333 | K71: =IF(B71="","",SUM($J$32:J71)) -> 43.53333333 | L71: 1369.85 | M71: 124.15 | N71: 48.67 | O71: 18.44 | P71: 67.11 | Q71: 191.26 | R71: 0 | S71: 7.2 | T71: 198.46 | U71: 1245.7 | V71: 0 | W71: 0.03436608313 | X71: 43.93434894
A72: 41 | B72: 1 | C72: 2025-07-23 | E72: 41 | F72: 41 | G72: 360 | H72: 50 | I72: 30 | J72: 1 | K72: =IF(B72="","",SUM($J$32:J72)) -> 44.53333333 | L72: 1245.7 | M72: 130.01 | N72: 42.81 | O72: 18.44 | P72: 61.25 | Q72: 191.26 | R72: 0 | S72: 7.2 | T72: 198.46 | U72: 1115.69 | V72: 0 | W72: 0.03436608313 | X72: 42.4746612
A73: 42 | B73: 1 | C73: 2025-08-23 | E73: 42 | F73: 42 | G73: 360 | H73: 50 | I73: 31 | J73: 1.033333333 | K73: =IF(B73="","",SUM($J$32:J73)) -> 45.56666667 | L73: 1115.69 | M73: 133.18 | N73: 39.64 | O73: 18.44 | P73: 58.08 | Q73: 191.26 | R73: 0 | S73: 7.2 | T73: 198.46 | U73: 982.51 | V73: 0 | W73: 0.03436608313 | X73: 41.01724713
A74: 43 | B74: 1 | C74: 2025-09-23 | E74: 43 | F74: 43 | G74: 360 | H74: 50 | I74: 31 | J74: 1.033333333 | K74: =IF(B74="","",SUM($J$32:J74)) -> 46.6 | L74: 982.51 | M74: 137.91 | N74: 34.91 | O74: 18.44 | P74: 53.35 | Q74: 191.26 | R74: 0 | S74: 7.2 | T74: 198.46 | U74: 844.6 | V74: 0 | W74: 0.03436608313 | X74: 39.60984067
A75: 44 | B75: 1 | C75: 2025-10-23 | E75: 44 | F75: 44 | G75: 360 | H75: 50 | I75: 30 | J75: 1 | K75: =IF(B75="","",SUM($J$32:J75)) -> 47.6 | L75: 844.6 | M75: 143.79 | N75: 29.03 | O75: 18.44 | P75: 47.47 | Q75: 191.26 | R75: 0 | S75: 7.2 | T75: 198.46 | U75: 700.81 | V75: 0 | W75: 0.03436608313 | X75: 38.29383167
A76: 45 | B76: 1 | C76: 2025-11-23 | E76: 45 | F76: 45 | G76: 360 | H76: 50 | I76: 31 | J76: 1.033333333 | K76: =IF(B76="","",SUM($J$32:J76)) -> 48.63333333 | L76: 700.81 | M76: 147.92 | N76: 24.9 | O76: 18.44 | P76: 43.34 | Q76: 191.26 | R76: 0 | S76: 7.2 | T76: 198.46 | U76: 552.89 | V76: 0 | W76: 0.03436608313 | X76: 36.97987254
A77: 46 | B77: 1 | C77: 2025-12-23 | E77: 46 | F77: 46 | G77: 360 | H77: 50 | I77: 30 | J77: 1 | K77: =IF(B77="","",SUM($J$32:J77)) -> 49.63333333 | L77: 552.89 | M77: 153.82 | N77: 19 | O77: 18.44 | P77: 37.44 | Q77: 191.26 | R77: 0 | S77: 7.2 | T77: 198.46 | U77: 399.07 | V77: 0 | W77: 0.03436608313 | X77: 35.75124237
A78: 47 | B78: 1 | C78: 2026-01-23 | E78: 47 | F78: 47 | G78: 360 | H78: 50 | I78: 31 | J78: 1.033333333 | K78: =IF(B78="","",SUM($J$32:J78)) -> 50.66666667 | L78: 399.07 | M78: 158.64 | N78: 14.18 | O78: 18.44 | P78: 32.62 | Q78: 191.26 | R78: 0 | S78: 7.2 | T78: 198.46 | U78: 240.43 | V78: 0 | W78: 0.03436608313 | X78: 34.52452597
A79: 48 | B79: 1 | C79: 2026-02-23 | E79: 48 | F79: 48 | G79: 360 | H79: 50 | I79: 31 | J79: 1.033333333 | K79: =IF(B79="","",SUM($J$32:J79)) -> 51.7 | L79: 240.43 | M79: 240.43 | N79: 8.54 | O79: 18.44 | P79: 26.98 | Q79: 267.41 | R79: 0 | S79: 7.2 | T79: 274.61 | U79: 0 | V79: 0 | W79: 0.03436608313 | X79: 46.6141536
K80: =IF(B80="","",SUM($J$32:J80)) -> 
K81: =IF(B81="","",SUM($J$32:J81)) -> 
K82: =IF(B82="","",SUM($J$32:J82)) -> 
K83: =IF(B83="","",SUM($J$32:J83)) -> 
K84: =IF(B84="","",SUM($J$32:J84)) -> 
K85: =IF(B85="","",SUM($J$32:J85)) -> 
K86: =IF(B86="","",SUM($J$32:J86)) -> 
K87: =IF(B87="","",SUM($J$32:J87)) -> 
K88: =IF(B88="","",SUM($J$32:J88)) -> 
K89: =IF(B89="","",SUM($J$32:J89)) -> 
K90: =IF(B90="","",SUM($J$32:J90)) -> 
C91: =IF(B91="","",IF(OR(MONTH(EDATE($S$6,F91))=$H$16,MONTH(EDATE($S$6,F91))=$H$17),IF(ABS($H$17-$H$16)=1,EDATE($S$6,F91+2),EDATE($S$6,F91+1)),EDATE($S$6,F91))) ->  | E91: =IF(B91="","",IF(OR(MONTH(DATE(YEAR(C90) + 1/12,MONTH(C90)+1,DAY(C90)))=$H$16,MONTH(DATE(YEAR(C90) + 1/12,MONTH(C90)+1,DAY(C90)))=$H$17),IF(ABS($H$17-$H$16)=1,E90+1,E90 + 2),E90 + 1)) ->  | F91: =IF(B91="","",F90+1) ->  | G91: =IF(B91="","",$S$9) ->  | H91: =IF(B91="","",$H$8) ->  | I91: =IF(B91="","",C91-C90) ->  | J91: =IF(B91="","",(I91)/30) ->  | K91: =IF(B91="","",SUM($J$32:J91)) ->  | L91: =IF(B91="","",U90) ->  | N91: =IF(B91="","",IF($L$24+$S$28 + $U$26<ROUND(ROUND(L91*(((1+(H91/100))^(I91/G91))-1),4),2),$L$24+$S$28 + $U$26-0.01,IF(ROUND(ROUND(L91*(((1+(H91/100))^(I91/G91))-1),4),2)+ $U$26>$L$24,$L$24+ $U$26+-0.01,ROUND(ROUND(L91*(((1+(H91/100))^(I91/G91))-1),4),2)+$U$26))) ->  | O91: =IF(B91="","",IF(ISERROR(MATCH(MONTH(C91),$H$18:$H$19,0))=FALSE,$L$23,0) +$L$23) ->  | P91: =IF(B91="","",N91+O91) ->  | Q91: =IF(B91="","",M91+N91 + O91+AA91+IF(A91=$H$13,U91,0)) ->  | R91: =IF(B91="","",$L$26) ->  | S91: =IF(B91="","",$L$25+Z91) ->  | T91: =IF(B91="","",Q91+R91+S91) ->  | U91: =IF(B91="","",ROUND(L91-M91,2)) ->  | V91: =IF(B91="","",IF(ROUND(ROUND(L91*(((1+(H91/100))^(I91/G91))-1),4),2) - $L$24<0,0,ROUND(ROUND(L91*(((1+(H91/100))^(I91/G91))-1),4),2) - $L$24)) ->  | W91: =IF(B91="","",(1+H91/100)^(1/12)-1) ->  | X91: =IF(B91="","",Q91/((1+W91)^K91)) -> 
A92: =IF(A91>=$H$13,"",A91+1) ->  | C92: =IF(B92="","",IF(OR(MONTH(EDATE($S$6,F92))=$H$16,MONTH(EDATE($S$6,F92))=$H$17),IF(ABS($H$17-$H$16)=1,EDATE($S$6,F92+2),EDATE($S$6,F92+1)),EDATE($S$6,F92))) ->  | E92: =IF(B92="","",IF(OR(MONTH(DATE(YEAR(C91) + 1/12,MONTH(C91)+1,DAY(C91)))=$H$16,MONTH(DATE(YEAR(C91) + 1/12,MONTH(C91)+1,DAY(C91)))=$H$17),IF(ABS($H$17-$H$16)=1,E91+1,E91 + 2),E91 + 1)) ->  | F92: =IF(B92="","",F91+1) ->  | G92: =IF(B92="","",$S$9) ->  | H92: =IF(B92="","",$H$8) ->  | I92: =IF(B92="","",C92-C91) ->  | J92: =IF(B92="","",(I92)/30) ->  | K92: =IF(B92="","",SUM($J$32:J92)) ->  | L92: =IF(B92="","",U91) ->  | N92: =IF(B92="","",IF($L$24+$S$28 + $U$26<ROUND(ROUND(L92*(((1+(H92/100))^(I92/G92))-1),4),2),$L$24+$S$28 + $U$26-0.01,IF(ROUND(ROUND(L92*(((1+(H92/100))^(I92/G92))-1),4),2)+ $U$26>$L$24,$L$24+ $U$26+-0.01,ROUND(ROUND(L92*(((1+(H92/100))^(I92/G92))-1),4),2)+$U$26))) ->  | O92: =IF(B92="","",IF(ISERROR(MATCH(MONTH(C92),$H$18:$H$19,0))=FALSE,$L$23,0) +$L$23) ->  | P92: =IF(B92="","",N92+O92) ->  | Q92: =IF(B92="","",M92+N92 + O92+AA92+IF(A92=$H$13,U92,0)) ->  | R92: =IF(B92="","",$L$26) ->  | S92: =IF(B92="","",$L$25+Z92) ->  | T92: =IF(B92="","",Q92+R92+S92) ->  | U92: =IF(B92="","",ROUND(L92-M92,2)) ->  | V92: =IF(B92="","",IF(ROUND(ROUND(L92*(((1+(H92/100))^(I92/G92))-1),4),2) - $L$24<0,0,ROUND(ROUND(L92*(((1+(H92/100))^(I92/G92))-1),4),2) - $L$24)) ->  | W92: =IF(B92="","",(1+H92/100)^(1/12)-1) ->  | X92: =IF(B92="","",Q92/((1+W92)^K92)) -> 
K93: =IF(B93="","",SUM($J$32:J93)) -> 
K94: =IF(B94="","",SUM($J$32:J94)) -> 
K95: =IF(B95="","",SUM($J$32:J95)) -> 
D96: =IF(B96="","",IF(OR(MONTH(C96)=$H$18,MONTH(C96)=$H$19),"D","")) ->  | K96: =IF(B96="","",SUM($J$32:J96)) -> 
B97: =IF(A97="","",IF(A97<=$H$22,0,1)) ->  | K97: =IF(B97="","",SUM($J$32:J97)) ->  | M97: =IF(A97=$H$13,U96,IF(B97="","",IF((IF(ISERROR(MATCH(MONTH(C97),$H$18:$H$19,0))=FALSE,$L$24+$S$28,0)+$L$24+$S$28-IF(AND(D97="D",W97=0),$V$26*2,$V$26))-N97<=0,0.01,IF(ISERROR(MATCH(MONTH(C97),$H$18:$H$19,0))=FALSE,$L$24+$S$28,0)+($L$24+$S$28-IF(AND(D97="D",W97=0),$V$26*2,$V$26))-N97)-Z97)) -> 
K98: =IF(B98="","",SUM($J$32:J98)) -> 
K99: =IF(B99="","",SUM($J$32:J99)) -> 
K100: =IF(B100="","",SUM($J$32:J100)) -> 
K101: =IF(B101="","",SUM($J$32:J101)) -> 
K102: =IF(B102="","",SUM($J$32:J102)) -> 
K103: =IF(B103="","",SUM($J$32:J103)) -> 
K104: =IF(B104="","",SUM($J$32:J104)) -> 
K105: =IF(B105="","",SUM($J$32:J105)) -> 
K106: =IF(B106="","",SUM($J$32:J106)) -> 
K107: =IF(B107="","",SUM($J$32:J107)) -> 
K108: =IF(B108="","",SUM($J$32:J108)) -> 
K109: =IF(B109="","",SUM($J$32:J109)) -> 
K110: =IF(B110="","",SUM($J$32:J110)) -> 
K111: =IF(B111="","",SUM($J$32:J111)) -> 
K112: =IF(B112="","",SUM($J$32:J112)) -> 
K113: =IF(B113="","",SUM($J$32:J113)) -> 
K114: =IF(B114="","",SUM($J$32:J114)) -> 
K115: =IF(B115="","",SUM($J$32:J115)) -> 
K116: =IF(B116="","",SUM($J$32:J116)) -> 
K117: =IF(B117="","",SUM($J$32:J117)) -> 
K118: =IF(B118="","",SUM($J$32:J118)) -> 
K119: =IF(B119="","",SUM($J$32:J119)) -> 
K120: =IF(B120="","",SUM($J$32:J120)) -> 
K121: =IF(B121="","",SUM($J$32:J121)) -> 
K122: =IF(B122="","",SUM($J$32:J122)) -> 
K123: =IF(B123="","",SUM($J$32:J123)) -> 
K124: =IF(B124="","",SUM($J$32:J124)) -> 
K125: =IF(B125="","",SUM($J$32:J125)) -> 
K126: =IF(B126="","",SUM($J$32:J126)) -> 
K127: =IF(B127="","",SUM($J$32:J127)) -> 
K128: =IF(B128="","",SUM($J$32:J128)) -> 
K129: =IF(B129="","",SUM($J$32:J129)) -> 
K130: =IF(B130="","",SUM($J$32:J130)) -> 
K131: =IF(B131="","",SUM($J$32:J131)) -> 
K132: =IF(B132="","",SUM($J$32:J132)) -> 
K133: =IF(B133="","",SUM($J$32:J133)) -> 
K134: =IF(B134="","",SUM($J$32:J134)) -> 
K135: =IF(B135="","",SUM($J$32:J135)) -> 
K136: =IF(B136="","",SUM($J$32:J136)) -> 
K137: =IF(B137="","",SUM($J$32:J137)) -> 
K138: =IF(B138="","",SUM($J$32:J138)) -> 
K139: =IF(B139="","",SUM($J$32:J139)) -> 
K140: =IF(B140="","",SUM($J$32:J140)) -> 
K141: =IF(B141="","",SUM($J$32:J141)) -> 
K142: =IF(B142="","",SUM($J$32:J142)) -> 
K143: =IF(B143="","",SUM($J$32:J143)) -> 
K144: =IF(B144="","",SUM($J$32:J144)) -> 
K145: =IF(B145="","",SUM($J$32:J145)) -> 
K146: =IF(B146="","",SUM($J$32:J146)) -> 
K147: =IF(B147="","",SUM($J$32:J147)) -> 
K148: =IF(B148="","",SUM($J$32:J148)) -> 
K149: =IF(B149="","",SUM($J$32:J149)) -> 
K150: =IF(B150="","",SUM($J$32:J150)) -> 
K151: =IF(B151="","",SUM($J$32:J151)) -> 
K152: =IF(B152="","",SUM($J$32:J152)) -> 
K153: =IF(B153="","",SUM($J$32:J153)) -> 
K154: =IF(B154="","",SUM($J$32:J154)) -> 
K155: =IF(B155="","",SUM($J$32:J155)) -> 
A156: =IF(A155>=$H$13,"",A155+1) ->  | C156: =IF(B156="","",IF(OR(MONTH(EDATE($S$6,F156))=$H$16,MONTH(EDATE($S$6,F156))=$H$17),IF(ABS($H$17-$H$16)=1,EDATE($S$6,F156+2),EDATE($S$6,F156+1)),EDATE($S$6,F156))) ->  | E156: =IF(B156="","",IF(OR(MONTH(DATE(YEAR(C155) + 1/12,MONTH(C155)+1,DAY(C155)))=$H$16,MONTH(DATE(YEAR(C155) + 1/12,MONTH(C155)+1,DAY(C155)))=$H$17),IF(ABS($H$17-$H$16)=1,E155+1,E155 + 2),E155 + 1)) ->  | F156: =IF(B156="","",F155+1) ->  | G156: =IF(B156="","",$S$9) ->  | H156: =IF(B156="","",$H$8) ->  | I156: =IF(B156="","",C156-C155) ->  | J156: =IF(B156="","",(I156)/30) ->  | K156: =IF(B156="","",SUM($J$32:J156)) ->  | L156: =IF(B156="","",U155) ->  | N156: =IF(B156="","",IF($L$24+$S$28 + $U$26<ROUND(ROUND(L156*(((1+(H156/100))^(I156/G156))-1),4),2),$L$24+$S$28 + $U$26-0.01,IF(ROUND(ROUND(L156*(((1+(H156/100))^(I156/G156))-1),4),2)+ $U$26>$L$24,$L$24+ $U$26+-0.01,ROUND(ROUND(L156*(((1+(H156/100))^(I156/G156))-1),4),2)+$U$26))) ->  | O156: =IF(B156="","",IF(ISERROR(MATCH(MONTH(C156),$H$18:$H$19,0))=FALSE,$L$23,0) +$L$23) ->  | P156: =IF(B156="","",N156+O156) ->  | Q156: =IF(B156="","",M156+N156 + O156+AA156+IF(A156=$H$13,U156,0)) ->  | R156: =IF(B156="","",$L$26) ->  | S156: =IF(B156="","",$L$25+Z156) ->  | T156: =IF(B156="","",Q156+R156+S156) ->  | U156: =IF(B156="","",ROUND(L156-M156,2)) ->  | V156: =IF(B156="","",IF(ROUND(ROUND(L156*(((1+(H156/100))^(I156/G156))-1),4),2) - $L$24<0,0,ROUND(ROUND(L156*(((1+(H156/100))^(I156/G156))-1),4),2) - $L$24)) ->  | W156: =IF(B156="","",(1+H156/100)^(1/12)-1) ->  | X156: =IF(B156="","",Q156/((1+W156)^K156)) -> 
K157: =IF(B157="","",SUM($J$32:J157)) -> 
K158: =IF(B158="","",SUM($J$32:J158)) -> 
K159: =IF(B159="","",SUM($J$32:J159)) -> 
D160: =IF(B160="","",IF(OR(MONTH(C160)=$H$18,MONTH(C160)=$H$19),"D","")) ->  | K160: =IF(B160="","",SUM($J$32:J160)) -> 
B161: =IF(A161="","",IF(A161<=$H$22,0,1)) ->  | K161: =IF(B161="","",SUM($J$32:J161)) ->  | M161: =IF(A161=$H$13,U160,IF(B161="","",IF((IF(ISERROR(MATCH(MONTH(C161),$H$18:$H$19,0))=FALSE,$L$24+$S$28,0)+$L$24+$S$28-IF(AND(D161="D",W161=0),$V$26*2,$V$26))-N161<=0,0.01,IF(ISERROR(MATCH(MONTH(C161),$H$18:$H$19,0))=FALSE,$L$24+$S$28,0)+($L$24+$S$28-IF(AND(D161="D",W161=0),$V$26*2,$V$26))-N161)-Z161)) -> 
K162: =IF(B162="","",SUM($J$32:J162)) -> 
K163: =IF(B163="","",SUM($J$32:J163)) -> 
K164: =IF(B164="","",SUM($J$32:J164)) -> 
K165: =IF(B165="","",SUM($J$32:J165)) -> 
K166: =IF(B166="","",SUM($J$32:J166)) -> 
K167: =IF(B167="","",SUM($J$32:J167)) -> 
K168: =IF(B168="","",SUM($J$32:J168)) -> 
K169: =IF(B169="","",SUM($J$32:J169)) -> 
K170: =IF(B170="","",SUM($J$32:J170)) -> 
K171: =IF(B171="","",SUM($J$32:J171)) -> 
K172: =IF(B172="","",SUM($J$32:J172)) -> 
K173: =IF(B173="","",SUM($J$32:J173)) -> 
K174: =IF(B174="","",SUM($J$32:J174)) -> 
K175: =IF(B175="","",SUM($J$32:J175)) -> 
K176: =IF(B176="","",SUM($J$32:J176)) -> 
K177: =IF(B177="","",SUM($J$32:J177)) -> 
K178: =IF(B178="","",SUM($J$32:J178)) -> 
K179: =IF(B179="","",SUM($J$32:J179)) -> 
K180: =IF(B180="","",SUM($J$32:J180)) -> 
K181: =IF(B181="","",SUM($J$32:J181)) -> 
K182: =IF(B182="","",SUM($J$32:J182)) -> 
K183: =IF(B183="","",SUM($J$32:J183)) -> 
K184: =IF(B184="","",SUM($J$32:J184)) -> 
K185: =IF(B185="","",SUM($J$32:J185)) -> 
K186: =IF(B186="","",SUM($J$32:J186)) -> 
K187: =IF(B187="","",SUM($J$32:J187)) -> 
K188: =IF(B188="","",SUM($J$32:J188)) -> 
K189: =IF(B189="","",SUM($J$32:J189)) -> 
K190: =IF(B190="","",SUM($J$32:J190)) -> 
K191: =IF(B191="","",SUM($J$32:J191)) -> 
K192: =IF(B192="","",SUM($J$32:J192)) -> 
K193: =IF(B193="","",SUM($J$32:J193)) -> 
K194: =IF(B194="","",SUM($J$32:J194)) -> 
K195: =IF(B195="","",SUM($J$32:J195)) -> 
K196: =IF(B196="","",SUM($J$32:J196)) -> 
K197: =IF(B197="","",SUM($J$32:J197)) -> 
K198: =IF(B198="","",SUM($J$32:J198)) -> 
K199: =IF(B199="","",SUM($J$32:J199)) -> 
K200: =IF(B200="","",SUM($J$32:J200)) -> 
K201: =IF(B201="","",SUM($J$32:J201)) -> 
K202: =IF(B202="","",SUM($J$32:J202)) -> 
K203: =IF(B203="","",SUM($J$32:J203)) -> 
K204: =IF(B204="","",SUM($J$32:J204)) -> 
K205: =IF(B205="","",SUM($J$32:J205)) -> 
K206: =IF(B206="","",SUM($J$32:J206)) -> 
K207: =IF(B207="","",SUM($J$32:J207)) -> 
... 793 more rows

Sheet Calculos (hidden)
A1: Factores utilizados en Meses de No Pago para cálculo del valor cuota
A3: N° de Cuota | B3: Equivalente | C3: Fecha | D3: Mes | E3: Marca Cuota No Pago | F3: Factor (10) | G3: Acumulado
A4: 1 | B4: =IF(E4<>"C",IF(ISERROR(1+B3)=TRUE,1,1+B3),IF(ISNUMBER(B3),B3,1)) -> 1 | C4: =+Simulador!S7 -> 2022-03-23 | D4: =MONTH(C4) -> 3 | E4: =IF(ISERROR(MATCH(D4,Simulador!$H$16:$H$17,0))=FALSE,"C",IF(ISERROR(MATCH(D4,Simulador!$H$18:$H$19,0))=FALSE,"D","")) ->  | F4: =IF(E4="C",0,IF(E4 ="D",ROUND(1/((1+Simulador!$S$13)^A4),9) * 2,ROUND(1/((1+Simulador!$S$13)^A4),9))) -> 0.966307509 | G4: =ROUND(F4,9) -> 0.966307509
A5: =A4+1 -> 2 | B5: =IF(E5<>"C",IF(ISERROR(1+B4)=TRUE,1,1+B4),IF(ISNUMBER(B4),B4,1)) -> 2 | C5: =DATE(YEAR(C4) + 1/12,MONTH(C4)+1,DAY(C4)) -> 2022-04-23 | D5: 4 | E5: =IF(ISERROR(MATCH(D5,Simulador!$H$16:$H$17,0))=FALSE,"C",IF(ISERROR(MATCH(D5,Simulador!$H$18:$H$19,0))=FALSE,"D","")) ->  | F5: =IF(E5="C",0,IF(E5 ="D",ROUND(1/((1+Simulador!$S$13)^A5),9) * 2,ROUND(1/((1+Simulador!$S$13)^A5),9))) -> 0.933750203 | G5: =G4+ROUND(F5,9) -> 1.900057712
A6: 3 | B6: 3 | C6: 2022-05-23 | D6: 5 | E6: =IF(ISERROR(MATCH(D6,Simulador!$H$16:$H$17,0))=FALSE,"C",IF(ISERROR(MATCH(D6,Simulador!$H$18:$H$19,0))=FALSE,"D","")) ->  | F6: =IF(E6="C",0,IF(E6 ="D",ROUND(1/((1+Simulador!$S$13)^A6),9) * 2,ROUND(1/((1+Simulador!$S$13)^A6),9))) -> 0.902289833 | G6: =G5+ROUND(F6,9) -> 2.802347545
A7: 4 | B7: 4 | C7: 2022-06-23 | D7: 6 | E7: =IF(ISERROR(MATCH(D7,Simulador!$H$16:$H$17,0))=FALSE,"C",IF(ISERROR(MATCH(D7,Simulador!$H$18:$H$19,0))=FALSE,"D","")) ->  | F7: =IF(E7="C",0,IF(E7 ="D",ROUND(1/((1+Simulador!$S$13)^A7),9) * 2,ROUND(1/((1+Simulador!$S$13)^A7),9))) -> 0.871889441 | G7: 3.674236986
A8: 5 | B8: 5 | C8: 2022-07-23 | D8: 7 | E8: =IF(ISERROR(MATCH(D8,Simulador!$H$16:$H$17,0))=FALSE,"C",IF(ISERROR(MATCH(D8,Simulador!$H$18:$H$19,0))=FALSE,"D","")) ->  | F8: =IF(E8="C",0,IF(E8 ="D",ROUND(1/((1+Simulador!$S$13)^A8),9) * 2,ROUND(1/((1+Simulador!$S$13)^A8),9))) -> 0.842513314 | G8: 4.5167503
A9: 6 | B9: 6 | C9: 2022-08-23 | D9: 8 | E9: =IF(ISERROR(MATCH(D9,Simulador!$H$16:$H$17,0))=FALSE,"C",IF(ISERROR(MATCH(D9,Simulador!$H$18:$H$19,0))=FALSE,"D","")) ->  | F9: =IF(E9="C",0,IF(E9 ="D",ROUND(1/((1+Simulador!$S$13)^A9),9) * 2,ROUND(1/((1+Simulador!$S$13)^A9),9))) -> 0.814126942 | G9: 5.330877242
A10: 7 | B10: 7 | C10: 2022-09-23 | D10: 9 | E10: =IF(ISERROR(MATCH(D10,Simulador!$H$16:$H$17,0))=FALSE,"C",IF(ISERROR(MATCH(D10,Simulador!$H$18:$H$19,0))=FALSE,"D","")) ->  | F10: =IF(E10="C",0,IF(E10 ="D",ROUND(1/((1+Simulador!$S$13)^A10),9) * 2,ROUND(1/((1+Simulador!$S$13)^A10),9))) -> 0.786696977 | G10: 6.117574219
A11: 8 | B11: 8 | C11: 2022-10-23 | D11: 10 | E11: =IF(ISERROR(MATCH(D11,Simulador!$H$16:$H$17,0))=FALSE,"C",IF(ISERROR(MATCH(D11,Simulador!$H$18:$H$19,0))=FALSE,"D","")) ->  | F11: =IF(E11="C",0,IF(E11 ="D",ROUND(1/((1+Simulador!$S$13)^A11),9) * 2,ROUND(1/((1+Simulador!$S$13)^A11),9))) -> 0.760191197 | G11: 6.877765416
A12: 9 | B12: 9 | C12: 2022-11-23 | D12: 11 | E12: =IF(ISERROR(MATCH(D12,Simulador!$H$16:$H$17,0))=FALSE,"C",IF(ISERROR(MATCH(D12,Simulador!$H$18:$H$19,0))=FALSE,"D","")) ->  | F12: =IF(E12="C",0,IF(E12 ="D",ROUND(1/((1+Simulador!$S$13)^A12),9) * 2,ROUND(1/((1+Simulador!$S$13)^A12),9))) -> 0.734578462 | G12: 7.612343878
A13: 10 | B13: 10 | C13: 2022-12-23 | D13: 12 | E13: =IF(ISERROR(MATCH(D13,Simulador!$H$16:$H$17,0))=FALSE,"C",IF(ISERROR(MATCH(D13,Simulador!$H$18:$H$19,0))=FALSE,"D","")) ->  | F13: =IF(E13="C",0,IF(E13 ="D",ROUND(1/((1+Simulador!$S$13)^A13),9) * 2,ROUND(1/((1+Simulador!$S$13)^A13),9))) -> 0.709828684 | G13: 8.322172562
A14: 11 | B14: 11 | C14: 2023-01-23 | D14: 1 | E14: =IF(ISERROR(MATCH(D14,Simulador!$H$16:$H$17,0))=FALSE,"C",IF(ISERROR(MATCH(D14,Simulador!$H$18:$H$19,0))=FALSE,"D","")) ->  | F14: =IF(E14="C",0,IF(E14 ="D",ROUND(1/((1+Simulador!$S$13)^A14),9) * 2,ROUND(1/((1+Simulador!$S$13)^A14),9))) -> 0.685912788 | G14: 9.00808535
A15: 12 | B15: 12 | C15: 2023-02-23 | D15: 2 | E15: =IF(ISERROR(MATCH(D15,Simulador!$H$16:$H$17,0))=FALSE,"C",IF(ISERROR(MATCH(D15,Simulador!$H$18:$H$19,0))=FALSE,"D","")) ->  | F15: =IF(E15="C",0,IF(E15 ="D",ROUND(1/((1+Simulador!$S$13)^A15),9) * 2,ROUND(1/((1+Simulador!$S$13)^A15),9))) -> 0.662802677 | G15: 9.670888027
A16: 13 | B16: 13 | C16: 2023-03-23 | D16: 3 | E16: =IF(ISERROR(MATCH(D16,Simulador!$H$16:$H$17,0))=FALSE,"C",IF(ISERROR(MATCH(D16,Simulador!$H$18:$H$19,0))=FALSE,"D","")) ->  | F16: =IF(E16="C",0,IF(E16 ="D",ROUND(1/((1+Simulador!$S$13)^A16),9) * 2,ROUND(1/((1+Simulador!$S$13)^A16),9))) -> 0.640471204 | G16: 10.31135923
A17: 14 | B17: 14 | C17: 2023-04-23 | D17: 4 | E17: =IF(ISERROR(MATCH(D17,Simulador!$H$16:$H$17,0))=FALSE,"C",IF(ISERROR(MATCH(D17,Simulador!$H$18:$H$19,0))=FALSE,"D","")) ->  | F17: =IF(E17="C",0,IF(E17 ="D",ROUND(1/((1+Simulador!$S$13)^A17),9) * 2,ROUND(1/((1+Simulador!$S$13)^A17),9))) -> 0.618892134 | G17: 10.93025137
A18: 15 | B18: 15 | C18: 2023-05-23 | D18: 5 | E18: =IF(ISERROR(MATCH(D18,Simulador!$H$16:$H$17,0))=FALSE,"C",IF(ISERROR(MATCH(D18,Simulador!$H$18:$H$19,0))=FALSE,"D","")) ->  | F18: =IF(E18="C",0,IF(E18 ="D",ROUND(1/((1+Simulador!$S$13)^A18),9) * 2,ROUND(1/((1+Simulador!$S$13)^A18),9))) -> 0.598040117 | G18: 11.52829148
A19: 16 | B19: 16 | C19: 2023-06-23 | D19: 6 | E19: =IF(ISERROR(MATCH(D19,Simulador!$H$16:$H$17,0))=FALSE,"C",IF(ISERROR(MATCH(D19,Simulador!$H$18:$H$19,0))=FALSE,"D","")) ->  | F19: =IF(E19="C",0,IF(E19 ="D",ROUND(1/((1+Simulador!$S$13)^A19),9) * 2,ROUND(1/((1+Simulador!$S$13)^A19),9))) -> 0.577890656 | G19: 12.10618214
A20: 17 | B20: 17 | C20: 2023-07-23 | D20: 7 | E20: =IF(ISERROR(MATCH(D20,Simulador!$H$16:$H$17,0))=FALSE,"C",IF(ISERROR(MATCH(D20,Simulador!$H$18:$H$19,0))=FALSE,"D","")) ->  | F20: =IF(E20="C",0,IF(E20 ="D",ROUND(1/((1+Simulador!$S$13)^A20),9) * 2,ROUND(1/((1+Simulador!$S$13)^A20),9))) -> 0.55842008 | G20: 12.66460222
A21: 18 | B21: 18 | C21: 2023-08-23 | D21: 8 | E21: =IF(ISERROR(MATCH(D21,Simulador!$H$16:$H$17,0))=FALSE,"C",IF(ISERROR(MATCH(D21,Simulador!$H$18:$H$19,0))=FALSE,"D","")) ->  | F21: =IF(E21="C",0,IF(E21 ="D",ROUND(1/((1+Simulador!$S$13)^A21),9) * 2,ROUND(1/((1+Simulador!$S$13)^A21),9))) -> 0.539605517 | G21: 13.20420773
A22: 19 | B22: 19 | C22: 2023-09-23 | D22: 9 | E22: =IF(ISERROR(MATCH(D22,Simulador!$H$16:$H$17,0))=FALSE,"C",IF(ISERROR(MATCH(D22,Simulador!$H$18:$H$19,0))=FALSE,"D","")) ->  | F22: =IF(E22="C",0,IF(E22 ="D",ROUND(1/((1+Simulador!$S$13)^A22),9) * 2,ROUND(1/((1+Simulador!$S$13)^A22),9))) -> 0.521424863 | G22: 13.7256326
A23: 20 | B23: 20 | C23: 2023-10-23 | D23: 10 | E23: =IF(ISERROR(MATCH(D23,Simulador!$H$16:$H$17,0))=FALSE,"C",IF(ISERROR(MATCH(D23,Simulador!$H$18:$H$19,0))=FALSE,"D","")) ->  | F23: =IF(E23="C",0,IF(E23 ="D",ROUND(1/((1+Simulador!$S$13)^A23),9) * 2,ROUND(1/((1+Simulador!$S$13)^A23),9))) -> 0.503856761 | G23: 14.22948936
A24: 21 | B24: 21 | C24: 2023-11-23 | D24: 11 | E24: =IF(ISERROR(MATCH(D24,Simulador!$H$16:$H$17,0))=FALSE,"C",IF(ISERROR(MATCH(D24,Simulador!$H$18:$H$19,0))=FALSE,"D","")) ->  | F24: =IF(E24="C",0,IF(E24 ="D",ROUND(1/((1+Simulador!$S$13)^A24),9) * 2,ROUND(1/((1+Simulador!$S$13)^A24),9))) -> 0.486880571 | G24: 14.71636993
A25: 22 | B25: 22 | C25: 2023-12-23 | D25: 12 | E25: =IF(ISERROR(MATCH(D25,Simulador!$H$16:$H$17,0))=FALSE,"C",IF(ISERROR(MATCH(D25,Simulador!$H$18:$H$19,0))=FALSE,"D","")) ->  | F25: =IF(E25="C",0,IF(E25 ="D",ROUND(1/((1+Simulador!$S$13)^A25),9) * 2,ROUND(1/((1+Simulador!$S$13)^A25),9))) -> 0.470476352 | G25: 15.18684628
A26: 23 | B26: 23 | C26: 2024-01-23 | D26: 1 | E26: =IF(ISERROR(MATCH(D26,Simulador!$H$16:$H$17,0))=FALSE,"C",IF(ISERROR(MATCH(D26,Simulador!$H$18:$H$19,0))=FALSE,"D","")) ->  | F26: =IF(E26="C",0,IF(E26 ="D",ROUND(1/((1+Simulador!$S$13)^A26),9) * 2,ROUND(1/((1+Simulador!$S$13)^A26),9))) -> 0.454624832 | G26: 15.64147111
A27: 24 | B27: 24 | C27: 2024-02-23 | D27: 2 | E27: =IF(ISERROR(MATCH(D27,Simulador!$H$16:$H$17,0))=FALSE,"C",IF(ISERROR(MATCH(D27,Simulador!$H$18:$H$19,0))=FALSE,"D","")) ->  | F27: =IF(E27="C",0,IF(E27 ="D",ROUND(1/((1+Simulador!$S$13)^A27),9) * 2,ROUND(1/((1+Simulador!$S$13)^A27),9))) -> 0.439307389 | G27: 16.0807785
A28: 25 | B28: 25 | C28: 2024-03-23 | D28: 3 | E28: =IF(ISERROR(MATCH(D28,Simulador!$H$16:$H$17,0))=FALSE,"C",IF(ISERROR(MATCH(D28,Simulador!$H$18:$H$19,0))=FALSE,"D","")) ->  | F28: =IF(E28="C",0,IF(E28 ="D",ROUND(1/((1+Simulador!$S$13)^A28),9) * 2,ROUND(1/((1+Simulador!$S$13)^A28),9))) -> 0.424506029 | G28: 16.50528453
A29: 26 | B29: 26 | C29: 2024-04-23 | D29: 4 | E29: =IF(ISERROR(MATCH(D29,Simulador!$H$16:$H$17,0))=FALSE,"C",IF(ISERROR(MATCH(D29,Simulador!$H$18:$H$19,0))=FALSE,"D","")) ->  | F29: =IF(E29="C",0,IF(E29 ="D",ROUND(1/((1+Simulador!$S$13)^A29),9) * 2,ROUND(1/((1+Simulador!$S$13)^A29),9))) -> 0.410203364 | G29: 16.9154879
A30: 27 | B30: 27 | C30: 2024-05-23 | D30: 5 | E30: =IF(ISERROR(MATCH(D30,Simulador!$H$16:$H$17,0))=FALSE,"C",IF(ISERROR(MATCH(D30,Simulador!$H$18:$H$19,0))=FALSE,"D","")) ->  | F30: =IF(E30="C",0,IF(E30 ="D",ROUND(1/((1+Simulador!$S$13)^A30),9) * 2,ROUND(1/((1+Simulador!$S$13)^A30),9))) -> 0.396382591 | G30: 17.31187049
A31: 28 | B31: 28 | C31: 2024-06-23 | D31: 6 | E31: =IF(ISERROR(MATCH(D31,Simulador!$H$16:$H$17,0))=FALSE,"C",IF(ISERROR(MATCH(D31,Simulador!$H$18:$H$19,0))=FALSE,"D","")) ->  | F31: =IF(E31="C",0,IF(E31 ="D",ROUND(1/((1+Simulador!$S$13)^A31),9) * 2,ROUND(1/((1+Simulador!$S$13)^A31),9))) -> 0.383027474 | G31: 17.69489796
A32: 29 | B32: 29 | C32: 2024-07-23 | D32: 7 | E32: =IF(ISERROR(MATCH(D32,Simulador!$H$16:$H$17,0))=FALSE,"C",IF(ISERROR(MATCH(D32,Simulador!$H$18:$H$19,0))=FALSE,"D","")) ->  | F32: =IF(E32="C",0,IF(E32 ="D",ROUND(1/((1+Simulador!$S$13)^A32),9) * 2,ROUND(1/((1+Simulador!$S$13)^A32),9))) -> 0.370122324 | G32: 18.06502028
A33: 30 | B33: 30 | C33: 2024-08-23 | D33: 8 | E33: =IF(ISERROR(MATCH(D33,Simulador!$H$16:$H$17,0))=FALSE,"C",IF(ISERROR(MATCH(D33,Simulador!$H$18:$H$19,0))=FALSE,"D","")) ->  | F33: =IF(E33="C",0,IF(E33 ="D",ROUND(1/((1+Simulador!$S$13)^A33),9) * 2,ROUND(1/((1+Simulador!$S$13)^A33),9))) -> 0.357651981 | G33: 18.42267227
A34: 31 | B34: 31 | C34: 2024-09-23 | D34: 9 | E34: =IF(ISERROR(MATCH(D34,Simulador!$H$16:$H$17,0))=FALSE,"C",IF(ISERROR(MATCH(D34,Simulador!$H$18:$H$19,0))=FALSE,"D","")) ->  | F34: =IF(E34="C",0,IF(E34 ="D",ROUND(1/((1+Simulador!$S$13)^A34),9) * 2,ROUND(1/((1+Simulador!$S$13)^A34),9))) -> 0.345601795 | G34: 18.76827406
A35: 32 | B35: 32 | C35: 2024-10-23 | D35: 10 | E35: =IF(ISERROR(MATCH(D35,Simulador!$H$16:$H$17,0))=FALSE,"C",IF(ISERROR(MATCH(D35,Simulador!$H$18:$H$19,0))=FALSE,"D","")) ->  | F35: =IF(E35="C",0,IF(E35 ="D",ROUND(1/((1+Simulador!$S$13)^A35),9) * 2,ROUND(1/((1+Simulador!$S$13)^A35),9))) -> 0.33395761 | G35: 19.10223167
A36: 33 | B36: 33 | C36: 2024-11-23 | D36: 11 | E36: =IF(ISERROR(MATCH(D36,Simulador!$H$16:$H$17,0))=FALSE,"C",IF(ISERROR(MATCH(D36,Simulador!$H$18:$H$19,0))=FALSE,"D","")) ->  | F36: =IF(E36="C",0,IF(E36 ="D",ROUND(1/((1+Simulador!$S$13)^A36),9) * 2,ROUND(1/((1+Simulador!$S$13)^A36),9))) -> 0.322705746 | G36: 19.42493742
A37: 34 | B37: 34 | C37: 2024-12-23 | D37: 12 | E37: =IF(ISERROR(MATCH(D37,Simulador!$H$16:$H$17,0))=FALSE,"C",IF(ISERROR(MATCH(D37,Simulador!$H$18:$H$19,0))=FALSE,"D","")) ->  | F37: =IF(E37="C",0,IF(E37 ="D",ROUND(1/((1+Simulador!$S$13)^A37),9) * 2,ROUND(1/((1+Simulador!$S$13)^A37),9))) -> 0.311832986 | G37: 19.7367704
A38: 35 | B38: 35 | C38: 2025-01-23 | D38: 1 | E38: =IF(ISERROR(MATCH(D38,Simulador!$H$16:$H$17,0))=FALSE,"C",IF(ISERROR(MATCH(D38,Simulador!$H$18:$H$19,0))=FALSE,"D","")) ->  | F38: =IF(E38="C",0,IF(E38 ="D",ROUND(1/((1+Simulador!$S$13)^A38),9) * 2,ROUND(1/((1+Simulador!$S$13)^A38),9))) -> 0.301326556 | G38: 20.03809696
A39: 36 | B39: 36 | C39: 2025-02-23 | D39: 2 | E39: =IF(ISERROR(MATCH(D39,Simulador!$H$16:$H$17,0))=FALSE,"C",IF(ISERROR(MATCH(D39,Simulador!$H$18:$H$19,0))=FALSE,"D","")) ->  | F39: =IF(E39="C",0,IF(E39 ="D",ROUND(1/((1+Simulador!$S$13)^A39),9) * 2,ROUND(1/((1+Simulador!$S$13)^A39),9))) -> 0.291174114 | G39: 20.32927107
A40: 37 | B40: 37 | C40: 2025-03-23 | D40: 3 | E40: =IF(ISERROR(MATCH(D40,Simulador!$H$16:$H$17,0))=FALSE,"C",IF(ISERROR(MATCH(D40,Simulador!$H$18:$H$19,0))=FALSE,"D","")) ->  | F40: =IF(E40="C",0,IF(E40 ="D",ROUND(1/((1+Simulador!$S$13)^A40),9) * 2,ROUND(1/((1+Simulador!$S$13)^A40),9))) -> 0.281363733 | G40: 20.61063481
A41: 38 | B41: 38 | C41: 2025-04-23 | D41: 4 | E41: =IF(ISERROR(MATCH(D41,Simulador!$H$16:$H$17,0))=FALSE,"C",IF(ISERROR(MATCH(D41,Simulador!$H$18:$H$19,0))=FALSE,"D","")) ->  | F41: =IF(E41="C",0,IF(E41 ="D",ROUND(1/((1+Simulador!$S$13)^A41),9) * 2,ROUND(1/((1+Simulador!$S$13)^A41),9))) -> 0.271883888 | G41: 20.88251869
A42: 39 | B42: 39 | C42: 2025-05-23 | D42: 5 | E42: =IF(ISERROR(MATCH(D42,Simulador!$H$16:$H$17,0))=FALSE,"C",IF(ISERROR(MATCH(D42,Simulador!$H$18:$H$19,0))=FALSE,"D","")) ->  | F42: =IF(E42="C",0,IF(E42 ="D",ROUND(1/((1+Simulador!$S$13)^A42),9) * 2,ROUND(1/((1+Simulador!$S$13)^A42),9))) -> 0.262723442 | G42: 21.14524214
A43: 40 | B43: 40 | C43: 2025-06-23 | D43: 6 | E43: =IF(ISERROR(MATCH(D43,Simulador!$H$16:$H$17,0))=FALSE,"C",IF(ISERROR(MATCH(D43,Simulador!$H$18:$H$19,0))=FALSE,"D","")) ->  | F43: =IF(E43="C",0,IF(E43 ="D",ROUND(1/((1+Simulador!$S$13)^A43),9) * 2,ROUND(1/((1+Simulador!$S$13)^A43),9))) -> 0.253871635 | G43: 21.39911377
A44: 41 | B44: 41 | C44: 2025-07-23 | D44: 7 | E44: =IF(ISERROR(MATCH(D44,Simulador!$H$16:$H$17,0))=FALSE,"C",IF(ISERROR(MATCH(D44,Simulador!$H$18:$H$19,0))=FALSE,"D","")) ->  | F44: =IF(E44="C",0,IF(E44 ="D",ROUND(1/((1+Simulador!$S$13)^A44),9) * 2,ROUND(1/((1+Simulador!$S$13)^A44),9))) -> 0.245318068 | G44: 21.64443184
A45: 42 | B45: 42 | C45: 2025-08-23 | D45: 8 | E45: =IF(ISERROR(MATCH(D45,Simulador!$H$16:$H$17,0))=FALSE,"C",IF(ISERROR(MATCH(D45,Simulador!$H$18:$H$19,0))=FALSE,"D","")) ->  | F45: =IF(E45="C",0,IF(E45 ="D",ROUND(1/((1+Simulador!$S$13)^A45),9) * 2,ROUND(1/((1+Simulador!$S$13)^A45),9))) -> 0.237052691 | G45: 21.88148453
A46: 43 | B46: 43 | C46: 2025-09-23 | D46: 9 | E46: =IF(ISERROR(MATCH(D46,Simulador!$H$16:$H$17,0))=FALSE,"C",IF(ISERROR(MATCH(D46,Simulador!$H$18:$H$19,0))=FALSE,"D","")) ->  | F46: =IF(E46="C",0,IF(E46 ="D",ROUND(1/((1+Simulador!$S$13)^A46),9) * 2,ROUND(1/((1+Simulador!$S$13)^A46),9))) -> 0.229065795 | G46: 22.11055032
A47: 44 | B47: 44 | C47: 2025-10-23 | D47: 10 | E47: =IF(ISERROR(MATCH(D47,Simulador!$H$16:$H$17,0))=FALSE,"C",IF(ISERROR(MATCH(D47,Simulador!$H$18:$H$19,0))=FALSE,"D","")) ->  | F47: =IF(E47="C",0,IF(E47 ="D",ROUND(1/((1+Simulador!$S$13)^A47),9) * 2,ROUND(1/((1+Simulador!$S$13)^A47),9))) -> 0.221347998 | G47: 22.33189832
A48: 45 | B48: 45 | C48: 2025-11-23 | D48: 11 | E48: =IF(ISERROR(MATCH(D48,Simulador!$H$16:$H$17,0))=FALSE,"C",IF(ISERROR(MATCH(D48,Simulador!$H$18:$H$19,0))=FALSE,"D","")) ->  | F48: =IF(E48="C",0,IF(E48 ="D",ROUND(1/((1+Simulador!$S$13)^A48),9) * 2,ROUND(1/((1+Simulador!$S$13)^A48),9))) -> 0.213890233 | G48: 22.54578856
A49: 46 | B49: 46 | C49: 2025-12-23 | D49: 12 | E49: =IF(ISERROR(MATCH(D49,Simulador!$H$16:$H$17,0))=FALSE,"C",IF(ISERROR(MATCH(D49,Simulador!$H$18:$H$19,0))=FALSE,"D","")) ->  | F49: =IF(E49="C",0,IF(E49 ="D",ROUND(1/((1+Simulador!$S$13)^A49),9) * 2,ROUND(1/((1+Simulador!$S$13)^A49),9))) -> 0.206683738 | G49: 22.75247229
A50: 47 | B50: 47 | C50: 2026-01-23 | D50: 1 | E50: =IF(ISERROR(MATCH(D50,Simulador!$H$16:$H$17,0))=FALSE,"C",IF(ISERROR(MATCH(D50,Simulador!$H$18:$H$19,0))=FALSE,"D","")) ->  | F50: =IF(E50="C",0,IF(E50 ="D",ROUND(1/((1+Simulador!$S$13)^A50),9) * 2,ROUND(1/((1+Simulador!$S$13)^A50),9))) -> 0.199720048 | G50: 22.95219234
A51: 48 | B51: 48 | C51: 2026-02-23 | D51: 2 | E51: =IF(ISERROR(MATCH(D51,Simulador!$H$16:$H$17,0))=FALSE,"C",IF(ISERROR(MATCH(D51,Simulador!$H$18:$H$19,0))=FALSE,"D","")) ->  | F51: =IF(E51="C",0,IF(E51 ="D",ROUND(1/((1+Simulador!$S$13)^A51),9) * 2,ROUND(1/((1+Simulador!$S$13)^A51),9))) -> 0.192990982 | G51: 23.14518332
A52: 49 | B52: 49 | C52: 2026-03-23 | D52: 3 | E52: =IF(ISERROR(MATCH(D52,Simulador!$H$16:$H$17,0))=FALSE,"C",IF(ISERROR(MATCH(D52,Simulador!$H$18:$H$19,0))=FALSE,"D","")) ->  | F52: =IF(E52="C",0,IF(E52 ="D",ROUND(1/((1+Simulador!$S$13)^A52),9) * 2,ROUND(1/((1+Simulador!$S$13)^A52),9))) -> 0.186488635 | G52: 23.33167196
A53: 50 | B53: 50 | C53: 2026-04-23 | D53: 4 | E53: =IF(ISERROR(MATCH(D53,Simulador!$H$16:$H$17,0))=FALSE,"C",IF(ISERROR(MATCH(D53,Simulador!$H$18:$H$19,0))=FALSE,"D","")) ->  | F53: =IF(E53="C",0,IF(E53 ="D",ROUND(1/((1+Simulador!$S$13)^A53),9) * 2,ROUND(1/((1+Simulador!$S$13)^A53),9))) -> 0.180205369 | G53: 23.51187733
A54: 51 | B54: 51 | C54: 2026-05-23 | D54: 5 | E54: =IF(ISERROR(MATCH(D54,Simulador!$H$16:$H$17,0))=FALSE,"C",IF(ISERROR(MATCH(D54,Simulador!$H$18:$H$19,0))=FALSE,"D","")) ->  | F54: =IF(E54="C",0,IF(E54 ="D",ROUND(1/((1+Simulador!$S$13)^A54),9) * 2,ROUND(1/((1+Simulador!$S$13)^A54),9))) -> 0.174133801 | G54: 23.68601113
A55: 52 | B55: 52 | C55: 2026-06-23 | D55: 6 | E55: =IF(ISERROR(MATCH(D55,Simulador!$H$16:$H$17,0))=FALSE,"C",IF(ISERROR(MATCH(D55,Simulador!$H$18:$H$19,0))=FALSE,"D","")) ->  | F55: =IF(E55="C",0,IF(E55 ="D",ROUND(1/((1+Simulador!$S$13)^A55),9) * 2,ROUND(1/((1+Simulador!$S$13)^A55),9))) -> 0.1682668 | G55: 23.85427793
A56: 53 | B56: 53 | C56: 2026-07-23 | D56: 7 | E56: =IF(ISERROR(MATCH(D56,Simulador!$H$16:$H$17,0))=FALSE,"C",IF(ISERROR(MATCH(D56,Simulador!$H$18:$H$19,0))=FALSE,"D","")) ->  | F56: =IF(E56="C",0,IF(E56 ="D",ROUND(1/((1+Simulador!$S$13)^A56),9) * 2,ROUND(1/((1+Simulador!$S$13)^A56),9))) -> 0.162597472 | G56: 24.0168754
A57: 54 | B57: 54 | C57: 2026-08-23 | D57: 8 | E57: =IF(ISERROR(MATCH(D57,Simulador!$H$16:$H$17,0))=FALSE,"C",IF(ISERROR(MATCH(D57,Simulador!$H$18:$H$19,0))=FALSE,"D","")) ->  | F57: =IF(E57="C",0,IF(E57 ="D",ROUND(1/((1+Simulador!$S$13)^A57),9) * 2,ROUND(1/((1+Simulador!$S$13)^A57),9))) -> 0.157119158 | G57: 24.17399456
A58: 55 | B58: 55 | C58: 2026-09-23 | D58: 9 | E58: =IF(ISERROR(MATCH(D58,Simulador!$H$16:$H$17,0))=FALSE,"C",IF(ISERROR(MATCH(D58,Simulador!$H$18:$H$19,0))=FALSE,"D","")) ->  | F58: =IF(E58="C",0,IF(E58 ="D",ROUND(1/((1+Simulador!$S$13)^A58),9) * 2,ROUND(1/((1+Simulador!$S$13)^A58),9))) -> 0.151825422 | G58: 24.32581998
A59: 56 | B59: 56 | C59: 2026-10-23 | D59: 10 | E59: =IF(ISERROR(MATCH(D59,Simulador!$H$16:$H$17,0))=FALSE,"C",IF(ISERROR(MATCH(D59,Simulador!$H$18:$H$19,0))=FALSE,"D","")) ->  | F59: =IF(E59="C",0,IF(E59 ="D",ROUND(1/((1+Simulador!$S$13)^A59),9) * 2,ROUND(1/((1+Simulador!$S$13)^A59),9))) -> 0.146710046 | G59: 24.47253003
A60: 57 | B60: 57 | C60: 2026-11-23 | D60: 11 | E60: =IF(ISERROR(MATCH(D60,Simulador!$H$16:$H$17,0))=FALSE,"C",IF(ISERROR(MATCH(D60,Simulador!$H$18:$H$19,0))=FALSE,"D","")) ->  | F60: =IF(E60="C",0,IF(E60 ="D",ROUND(1/((1+Simulador!$S$13)^A60),9) * 2,ROUND(1/((1+Simulador!$S$13)^A60),9))) -> 0.141767019 | G60: 24.61429705
A61: 58 | B61: 58 | C61: 2026-12-23 | D61: 12 | E61: =IF(ISERROR(MATCH(D61,Simulador!$H$16:$H$17,0))=FALSE,"C",IF(ISERROR(MATCH(D61,Simulador!$H$18:$H$19,0))=FALSE,"D","")) ->  | F61: =IF(E61="C",0,IF(E61 ="D",ROUND(1/((1+Simulador!$S$13)^A61),9) * 2,ROUND(1/((1+Simulador!$S$13)^A61),9))) -> 0.136990535 | G61: 24.75128758
A62: 59 | B62: 59 | C62: 2027-01-23 | D62: 1 | E62: =IF(ISERROR(MATCH(D62,Simulador!$H$16:$H$17,0))=FALSE,"C",IF(ISERROR(MATCH(D62,Simulador!$H$18:$H$19,0))=FALSE,"D","")) ->  | F62: =IF(E62="C",0,IF(E62 ="D",ROUND(1/((1+Simulador!$S$13)^A62),9) * 2,ROUND(1/((1+Simulador!$S$13)^A62),9))) -> 0.132374983 | G62: 24.88366256
A63: 60 | B63: 60 | C63: 2027-02-23 | D63: 2 | E63: =IF(ISERROR(MATCH(D63,Simulador!$H$16:$H$17,0))=FALSE,"C",IF(ISERROR(MATCH(D63,Simulador!$H$18:$H$19,0))=FALSE,"D","")) ->  | F63: =IF(E63="C",0,IF(E63 ="D",ROUND(1/((1+Simulador!$S$13)^A63),9) * 2,ROUND(1/((1+Simulador!$S$13)^A63),9))) -> 0.12791494 | G63: 25.0115775
A64: 61 | B64: 61 | C64: 2027-03-23 | D64: 3 | E64: =IF(ISERROR(MATCH(D64,Simulador!$H$16:$H$17,0))=FALSE,"C",IF(ISERROR(MATCH(D64,Simulador!$H$18:$H$19,0))=FALSE,"D","")) ->  | F64: =IF(E64="C",0,IF(E64 ="D",ROUND(1/((1+Simulador!$S$13)^A64),9) * 2,ROUND(1/((1+Simulador!$S$13)^A64),9))) -> 0.123605167 | G64: 25.13518267
A65: 62 | B65: 62 | C65: 2027-04-23 | D65: 4 | E65: =IF(ISERROR(MATCH(D65,Simulador!$H$16:$H$17,0))=FALSE,"C",IF(ISERROR(MATCH(D65,Simulador!$H$18:$H$19,0))=FALSE,"D","")) ->  | F65: =IF(E65="C",0,IF(E65 ="D",ROUND(1/((1+Simulador!$S$13)^A65),9) * 2,ROUND(1/((1+Simulador!$S$13)^A65),9))) -> 0.119440601 | G65: 25.25462327
A66: 63 | B66: 63 | C66: 2027-05-23 | D66: 5 | E66: =IF(ISERROR(MATCH(D66,Simulador!$H$16:$H$17,0))=FALSE,"C",IF(ISERROR(MATCH(D66,Simulador!$H$18:$H$19,0))=FALSE,"D","")) ->  | F66: =IF(E66="C",0,IF(E66 ="D",ROUND(1/((1+Simulador!$S$13)^A66),9) * 2,ROUND(1/((1+Simulador!$S$13)^A66),9))) -> 0.11541635 | G66: 25.37003962
A67: 64 | B67: 64 | C67: 2027-06-23 | D67: 6 | E67: =IF(ISERROR(MATCH(D67,Simulador!$H$16:$H$17,0))=FALSE,"C",IF(ISERROR(MATCH(D67,Simulador!$H$18:$H$19,0))=FALSE,"D","")) ->  | F67: =IF(E67="C",0,IF(E67 ="D",ROUND(1/((1+Simulador!$S$13)^A67),9) * 2,ROUND(1/((1+Simulador!$S$13)^A67),9))) -> 0.111527685 | G67: 25.48156731
A68: 65 | B68: 65 | C68: 2027-07-23 | D68: =MONTH(C68) -> 7 | E68: =IF(ISERROR(MATCH(D68,Simulador!$H$16:$H$17,0))=FALSE,"C",IF(ISERROR(MATCH(D68,Simulador!$H$18:$H$19,0))=FALSE,"D","")) ->  | F68: =IF(E68="C",0,IF(E68 ="D",ROUND(1/((1+Simulador!$S$13)^A68),9) * 2,ROUND(1/((1+Simulador!$S$13)^A68),9))) -> 0.10777004 | G68: 25.58933735
A69: =A68+1 -> 66 | B69: =IF(E69<>"C",IF(ISERROR(1+B68)=TRUE,1,1+B68),IF(ISNUMBER(B68),B68,1)) -> 66 | C69: =DATE(YEAR(C68) + 1/12,MONTH(C68)+1,DAY(C68)) -> 2027-08-23 | D69: 8 | E69: =IF(ISERROR(MATCH(D69,Simulador!$H$16:$H$17,0))=FALSE,"C",IF(ISERROR(MATCH(D69,Simulador!$H$18:$H$19,0))=FALSE,"D","")) ->  | F69: =IF(E69="C",0,IF(E69 ="D",ROUND(1/((1+Simulador!$S$13)^A69),9) * 2,ROUND(1/((1+Simulador!$S$13)^A69),9))) -> 0.104138999 | G69: 25.69347635
A70: 67 | B70: 67 | C70: 2027-09-23 | D70: 9 | E70: =IF(ISERROR(MATCH(D70,Simulador!$H$16:$H$17,0))=FALSE,"C",IF(ISERROR(MATCH(D70,Simulador!$H$18:$H$19,0))=FALSE,"D","")) ->  | F70: =IF(E70="C",0,IF(E70 ="D",ROUND(1/((1+Simulador!$S$13)^A70),9) * 2,ROUND(1/((1+Simulador!$S$13)^A70),9))) -> 0.100630296 | G70: =G69+ROUND(F70,9) -> 25.79410664
A71: 68 | B71: 68 | C71: 2027-10-23 | D71: 10 | E71: =IF(ISERROR(MATCH(D71,Simulador!$H$16:$H$17,0))=FALSE,"C",IF(ISERROR(MATCH(D71,Simulador!$H$18:$H$19,0))=FALSE,"D","")) ->  | F71: =IF(E71="C",0,IF(E71 ="D",ROUND(1/((1+Simulador!$S$13)^A71),9) * 2,ROUND(1/((1+Simulador!$S$13)^A71),9))) -> 0.097239811 | G71: 25.89134645
A72: 69 | B72: 69 | C72: 2027-11-23 | D72: 11 | E72: =IF(ISERROR(MATCH(D72,Simulador!$H$16:$H$17,0))=FALSE,"C",IF(ISERROR(MATCH(D72,Simulador!$H$18:$H$19,0))=FALSE,"D","")) ->  | F72: =IF(E72="C",0,IF(E72 ="D",ROUND(1/((1+Simulador!$S$13)^A72),9) * 2,ROUND(1/((1+Simulador!$S$13)^A72),9))) -> 0.09396356 | G72: 25.98531001
A73: 70 | B73: 70 | C73: 2027-12-23 | D73: 12 | E73: =IF(ISERROR(MATCH(D73,Simulador!$H$16:$H$17,0))=FALSE,"C",IF(ISERROR(MATCH(D73,Simulador!$H$18:$H$19,0))=FALSE,"D","")) ->  | F73: =IF(E73="C",0,IF(E73 ="D",ROUND(1/((1+Simulador!$S$13)^A73),9) * 2,ROUND(1/((1+Simulador!$S$13)^A73),9))) -> 0.090797693 | G73: 26.07610771
A74: 71 | B74: 71 | C74: 2028-01-23 | D74: 1 | E74: =IF(ISERROR(MATCH(D74,Simulador!$H$16:$H$17,0))=FALSE,"C",IF(ISERROR(MATCH(D74,Simulador!$H$18:$H$19,0))=FALSE,"D","")) ->  | F74: =IF(E74="C",0,IF(E74 ="D",ROUND(1/((1+Simulador!$S$13)^A74),9) * 2,ROUND(1/((1+Simulador!$S$13)^A74),9))) -> 0.087738493 | G74: 26.1638462
A75: 72 | B75: 72 | C75: 2028-02-23 | D75: 2 | E75: =IF(ISERROR(MATCH(D75,Simulador!$H$16:$H$17,0))=FALSE,"C",IF(ISERROR(MATCH(D75,Simulador!$H$18:$H$19,0))=FALSE,"D","")) ->  | F75: =IF(E75="C",0,IF(E75 ="D",ROUND(1/((1+Simulador!$S$13)^A75),9) * 2,ROUND(1/((1+Simulador!$S$13)^A75),9))) -> 0.084782365 | G75: 26.24862856
A76: 73 | B76: 73 | C76: 2028-03-23 | D76: 3 | E76: =IF(ISERROR(MATCH(D76,Simulador!$H$16:$H$17,0))=FALSE,"C",IF(ISERROR(MATCH(D76,Simulador!$H$18:$H$19,0))=FALSE,"D","")) ->  | F76: =IF(E76="C",0,IF(E76 ="D",ROUND(1/((1+Simulador!$S$13)^A76),9) * 2,ROUND(1/((1+Simulador!$S$13)^A76),9))) -> 0.081925836 | G76: 26.3305544
A77: 74 | B77: 74 | C77: 2028-04-23 | D77: 4 | E77: =IF(ISERROR(MATCH(D77,Simulador!$H$16:$H$17,0))=FALSE,"C",IF(ISERROR(MATCH(D77,Simulador!$H$18:$H$19,0))=FALSE,"D","")) ->  | F77: =IF(E77="C",0,IF(E77 ="D",ROUND(1/((1+Simulador!$S$13)^A77),9) * 2,ROUND(1/((1+Simulador!$S$13)^A77),9))) -> 0.07916555 | G77: 26.40971995
A78: 75 | B78: 75 | C78: 2028-05-23 | D78: 5 | E78: =IF(ISERROR(MATCH(D78,Simulador!$H$16:$H$17,0))=FALSE,"C",IF(ISERROR(MATCH(D78,Simulador!$H$18:$H$19,0))=FALSE,"D","")) ->  | F78: =IF(E78="C",0,IF(E78 ="D",ROUND(1/((1+Simulador!$S$13)^A78),9) * 2,ROUND(1/((1+Simulador!$S$13)^A78),9))) -> 0.076498265 | G78: 26.48621821
A79: 76 | B79: 76 | C79: 2028-06-23 | D79: 6 | E79: =IF(ISERROR(MATCH(D79,Simulador!$H$16:$H$17,0))=FALSE,"C",IF(ISERROR(MATCH(D79,Simulador!$H$18:$H$19,0))=FALSE,"D","")) ->  | F79: =IF(E79="C",0,IF(E79 ="D",ROUND(1/((1+Simulador!$S$13)^A79),9) * 2,ROUND(1/((1+Simulador!$S$13)^A79),9))) -> 0.073920848 | G79: 26.56013906
A80: 77 | B80: 77 | C80: 2028-07-23 | D80: 7 | E80: =IF(ISERROR(MATCH(D80,Simulador!$H$16:$H$17,0))=FALSE,"C",IF(ISERROR(MATCH(D80,Simulador!$H$18:$H$19,0))=FALSE,"D","")) ->  | F80: =IF(E80="C",0,IF(E80 ="D",ROUND(1/((1+Simulador!$S$13)^A80),9) * 2,ROUND(1/((1+Simulador!$S$13)^A80),9))) -> 0.071430271 | G80: 26.63156933
A81: 78 | B81: 78 | C81: 2028-08-23 | D81: 8 | E81: =IF(ISERROR(MATCH(D81,Simulador!$H$16:$H$17,0))=FALSE,"C",IF(ISERROR(MATCH(D81,Simulador!$H$18:$H$19,0))=FALSE,"D","")) ->  | F81: =IF(E81="C",0,IF(E81 ="D",ROUND(1/((1+Simulador!$S$13)^A81),9) * 2,ROUND(1/((1+Simulador!$S$13)^A81),9))) -> 0.069023607 | G81: 26.70059294
A82: 79 | B82: 79 | C82: 2028-09-23 | D82: 9 | E82: =IF(ISERROR(MATCH(D82,Simulador!$H$16:$H$17,0))=FALSE,"C",IF(ISERROR(MATCH(D82,Simulador!$H$18:$H$19,0))=FALSE,"D","")) ->  | F82: =IF(E82="C",0,IF(E82 ="D",ROUND(1/((1+Simulador!$S$13)^A82),9) * 2,ROUND(1/((1+Simulador!$S$13)^A82),9))) -> 0.06669803 | G82: 26.76729097
A83: 80 | B83: 80 | C83: 2028-10-23 | D83: 10 | E83: =IF(ISERROR(MATCH(D83,Simulador!$H$16:$H$17,0))=FALSE,"C",IF(ISERROR(MATCH(D83,Simulador!$H$18:$H$19,0))=FALSE,"D","")) ->  | F83: =IF(E83="C",0,IF(E83 ="D",ROUND(1/((1+Simulador!$S$13)^A83),9) * 2,ROUND(1/((1+Simulador!$S$13)^A83),9))) -> 0.064450807 | G83: 26.83174178
A84: 81 | B84: 81 | C84: 2028-11-23 | D84: 11 | E84: =IF(ISERROR(MATCH(D84,Simulador!$H$16:$H$17,0))=FALSE,"C",IF(ISERROR(MATCH(D84,Simulador!$H$18:$H$19,0))=FALSE,"D","")) ->  | F84: =IF(E84="C",0,IF(E84 ="D",ROUND(1/((1+Simulador!$S$13)^A84),9) * 2,ROUND(1/((1+Simulador!$S$13)^A84),9))) -> 0.062279299 | G84: 26.89402108
A85: 82 | B85: 82 | C85: 2028-12-23 | D85: 12 | E85: =IF(ISERROR(MATCH(D85,Simulador!$H$16:$H$17,0))=FALSE,"C",IF(ISERROR(MATCH(D85,Simulador!$H$18:$H$19,0))=FALSE,"D","")) ->  | F85: =IF(E85="C",0,IF(E85 ="D",ROUND(1/((1+Simulador!$S$13)^A85),9) * 2,ROUND(1/((1+Simulador!$S$13)^A85),9))) -> 0.060180954 | G85: 26.95420203
A86: 83 | B86: 83 | C86: 2029-01-23 | D86: 1 | E86: =IF(ISERROR(MATCH(D86,Simulador!$H$16:$H$17,0))=FALSE,"C",IF(ISERROR(MATCH(D86,Simulador!$H$18:$H$19,0))=FALSE,"D","")) ->  | F86: =IF(E86="C",0,IF(E86 ="D",ROUND(1/((1+Simulador!$S$13)^A86),9) * 2,ROUND(1/((1+Simulador!$S$13)^A86),9))) -> 0.058153308 | G86: 27.01235534
A87: 84 | B87: 84 | C87: 2029-02-23 | D87: 2 | E87: =IF(ISERROR(MATCH(D87,Simulador!$H$16:$H$17,0))=FALSE,"C",IF(ISERROR(MATCH(D87,Simulador!$H$18:$H$19,0))=FALSE,"D","")) ->  | F87: =IF(E87="C",0,IF(E87 ="D",ROUND(1/((1+Simulador!$S$13)^A87),9) * 2,ROUND(1/((1+Simulador!$S$13)^A87),9))) -> 0.056193978 | G87: 27.06854932
A88: 85 | B88: 85 | C88: 2029-03-23 | D88: 3 | E88: =IF(ISERROR(MATCH(D88,Simulador!$H$16:$H$17,0))=FALSE,"C",IF(ISERROR(MATCH(D88,Simulador!$H$18:$H$19,0))=FALSE,"D","")) ->  | F88: =IF(E88="C",0,IF(E88 ="D",ROUND(1/((1+Simulador!$S$13)^A88),9) * 2,ROUND(1/((1+Simulador!$S$13)^A88),9))) -> 0.054300663 | G88: 27.12284998
A89: 86 | B89: 86 | C89: 2029-04-23 | D89: 4 | E89: =IF(ISERROR(MATCH(D89,Simulador!$H$16:$H$17,0))=FALSE,"C",IF(ISERROR(MATCH(D89,Simulador!$H$18:$H$19,0))=FALSE,"D","")) ->  | F89: =IF(E89="C",0,IF(E89 ="D",ROUND(1/((1+Simulador!$S$13)^A89),9) * 2,ROUND(1/((1+Simulador!$S$13)^A89),9))) -> 0.052471139 | G89: 27.17532112
A90: 87 | B90: 87 | C90: 2029-05-23 | D90: 5 | E90: =IF(ISERROR(MATCH(D90,Simulador!$H$16:$H$17,0))=FALSE,"C",IF(ISERROR(MATCH(D90,Simulador!$H$18:$H$19,0))=FALSE,"D","")) ->  | F90: =IF(E90="C",0,IF(E90 ="D",ROUND(1/((1+Simulador!$S$13)^A90),9) * 2,ROUND(1/((1+Simulador!$S$13)^A90),9))) -> 0.050703255 | G90: 27.22602437
A91: 88 | B91: 88 | C91: 2029-06-23 | D91: 6 | E91: =IF(ISERROR(MATCH(D91,Simulador!$H$16:$H$17,0))=FALSE,"C",IF(ISERROR(MATCH(D91,Simulador!$H$18:$H$19,0))=FALSE,"D","")) ->  | F91: =IF(E91="C",0,IF(E91 ="D",ROUND(1/((1+Simulador!$S$13)^A91),9) * 2,ROUND(1/((1+Simulador!$S$13)^A91),9))) -> 0.048994936 | G91: 27.27501931
A92: 89 | B92: 89 | C92: 2029-07-23 | D92: 7 | E92: =IF(ISERROR(MATCH(D92,Simulador!$H$16:$H$17,0))=FALSE,"C",IF(ISERROR(MATCH(D92,Simulador!$H$18:$H$19,0))=FALSE,"D","")) ->  | F92: =IF(E92="C",0,IF(E92 ="D",ROUND(1/((1+Simulador!$S$13)^A92),9) * 2,ROUND(1/((1+Simulador!$S$13)^A92),9))) -> 0.047344175 | G92: 27.32236348
A93: 90 | B93: 90 | C93: 2029-08-23 | D93: 8 | E93: =IF(ISERROR(MATCH(D93,Simulador!$H$16:$H$17,0))=FALSE,"C",IF(ISERROR(MATCH(D93,Simulador!$H$18:$H$19,0))=FALSE,"D","")) ->  | F93: =IF(E93="C",0,IF(E93 ="D",ROUND(1/((1+Simulador!$S$13)^A93),9) * 2,ROUND(1/((1+Simulador!$S$13)^A93),9))) -> 0.045749032 | G93: 27.36811252
A94: 91 | B94: 91 | C94: 2029-09-23 | D94: 9 | E94: =IF(ISERROR(MATCH(D94,Simulador!$H$16:$H$17,0))=FALSE,"C",IF(ISERROR(MATCH(D94,Simulador!$H$18:$H$19,0))=FALSE,"D","")) ->  | F94: =IF(E94="C",0,IF(E94 ="D",ROUND(1/((1+Simulador!$S$13)^A94),9) * 2,ROUND(1/((1+Simulador!$S$13)^A94),9))) -> 0.044207633 | G94: 27.41232015
A95: 92 | B95: 92 | C95: 2029-10-23 | D95: 10 | E95: =IF(ISERROR(MATCH(D95,Simulador!$H$16:$H$17,0))=FALSE,"C",IF(ISERROR(MATCH(D95,Simulador!$H$18:$H$19,0))=FALSE,"D","")) ->  | F95: =IF(E95="C",0,IF(E95 ="D",ROUND(1/((1+Simulador!$S$13)^A95),9) * 2,ROUND(1/((1+Simulador!$S$13)^A95),9))) -> 0.042718168 | G95: 27.45503832
A96: 93 | B96: 93 | C96: 2029-11-23 | D96: 11 | E96: =IF(ISERROR(MATCH(D96,Simulador!$H$16:$H$17,0))=FALSE,"C",IF(ISERROR(MATCH(D96,Simulador!$H$18:$H$19,0))=FALSE,"D","")) ->  | F96: =IF(E96="C",0,IF(E96 ="D",ROUND(1/((1+Simulador!$S$13)^A96),9) * 2,ROUND(1/((1+Simulador!$S$13)^A96),9))) -> 0.041278886 | G96: 27.4963172
A97: 94 | B97: 94 | C97: 2029-12-23 | D97: 12 | E97: =IF(ISERROR(MATCH(D97,Simulador!$H$16:$H$17,0))=FALSE,"C",IF(ISERROR(MATCH(D97,Simulador!$H$18:$H$19,0))=FALSE,"D","")) ->  | F97: =IF(E97="C",0,IF(E97 ="D",ROUND(1/((1+Simulador!$S$13)^A97),9) * 2,ROUND(1/((1+Simulador!$S$13)^A97),9))) -> 0.039888098 | G97: 27.5362053
A98: 95 | B98: 95 | C98: 2030-01-23 | D98: 1 | E98: =IF(ISERROR(MATCH(D98,Simulador!$H$16:$H$17,0))=FALSE,"C",IF(ISERROR(MATCH(D98,Simulador!$H$18:$H$19,0))=FALSE,"D","")) ->  | F98: =IF(E98="C",0,IF(E98 ="D",ROUND(1/((1+Simulador!$S$13)^A98),9) * 2,ROUND(1/((1+Simulador!$S$13)^A98),9))) -> 0.038544168 | G98: 27.57474947
A99: 96 | B99: 96 | C99: 2030-02-23 | D99: 2 | E99: =IF(ISERROR(MATCH(D99,Simulador!$H$16:$H$17,0))=FALSE,"C",IF(ISERROR(MATCH(D99,Simulador!$H$18:$H$19,0))=FALSE,"D","")) ->  | F99: =IF(E99="C",0,IF(E99 ="D",ROUND(1/((1+Simulador!$S$13)^A99),9) * 2,ROUND(1/((1+Simulador!$S$13)^A99),9))) -> 0.037245519 | G99: 27.61199499
A100: 97 | B100: =IF(E100<>"C",IF(ISERROR(1+B99)=TRUE,1,1+B99),IF(ISNUMBER(B99),B99,1)) -> 97 | C100: 2030-03-23 | D100: =MONTH(C100) -> 3 | E100: =IF(ISERROR(MATCH(D100,Simulador!$H$16:$H$17,0))=FALSE,"C",IF(ISERROR(MATCH(D100,Simulador!$H$18:$H$19,0))=FALSE,"D","")) ->  | F100: =IF(E100="C",0,IF(E100 ="D",ROUND(1/((1+Simulador!$S$13)^A100),9) * 2,ROUND(1/((1+Simulador!$S$13)^A100),9))) -> 0.035990625 | G100: =G99+ROUND(F100,9) -> 27.64798561
A101: 98 | B101: 98 | C101: 2030-04-23 | D101: 4 | E101: =IF(ISERROR(MATCH(D101,Simulador!$H$16:$H$17,0))=FALSE,"C",IF(ISERROR(MATCH(D101,Simulador!$H$18:$H$19,0))=FALSE,"D","")) ->  | F101: =IF(E101="C",0,IF(E101 ="D",ROUND(1/((1+Simulador!$S$13)^A101),9) * 2,ROUND(1/((1+Simulador!$S$13)^A101),9))) -> 0.034778011 | G101: 27.68276362
A102: 99 | B102: 99 | C102: 2030-05-23 | D102: 5 | E102: =IF(ISERROR(MATCH(D102,Simulador!$H$16:$H$17,0))=FALSE,"C",IF(ISERROR(MATCH(D102,Simulador!$H$18:$H$19,0))=FALSE,"D","")) ->  | F102: =IF(E102="C",0,IF(E102 ="D",ROUND(1/((1+Simulador!$S$13)^A102),9) * 2,ROUND(1/((1+Simulador!$S$13)^A102),9))) -> 0.033606253 | G102: 27.71636988
A103: 100 | B103: 100 | C103: 2030-06-23 | D103: 6 | E103: =IF(ISERROR(MATCH(D103,Simulador!$H$16:$H$17,0))=FALSE,"C",IF(ISERROR(MATCH(D103,Simulador!$H$18:$H$19,0))=FALSE,"D","")) ->  | F103: =IF(E103="C",0,IF(E103 ="D",ROUND(1/((1+Simulador!$S$13)^A103),9) * 2,ROUND(1/((1+Simulador!$S$13)^A103),9))) -> 0.032473975 | G103: 27.74884385
A104: 101 | B104: 101 | C104: 2030-07-23 | D104: 7 | E104: =IF(ISERROR(MATCH(D104,Simulador!$H$16:$H$17,0))=FALSE,"C",IF(ISERROR(MATCH(D104,Simulador!$H$18:$H$19,0))=FALSE,"D","")) ->  | F104: =IF(E104="C",0,IF(E104 ="D",ROUND(1/((1+Simulador!$S$13)^A104),9) * 2,ROUND(1/((1+Simulador!$S$13)^A104),9))) -> 0.031379846 | G104: 27.7802237
A105: 102 | B105: 102 | C105: 2030-08-23 | D105: 8 | E105: =IF(ISERROR(MATCH(D105,Simulador!$H$16:$H$17,0))=FALSE,"C",IF(ISERROR(MATCH(D105,Simulador!$H$18:$H$19,0))=FALSE,"D","")) ->  | F105: =IF(E105="C",0,IF(E105 ="D",ROUND(1/((1+Simulador!$S$13)^A105),9) * 2,ROUND(1/((1+Simulador!$S$13)^A105),9))) -> 0.030322581 | G105: 27.81054628
A106: 103 | B106: 103 | C106: 2030-09-23 | D106: 9 | E106: =IF(ISERROR(MATCH(D106,Simulador!$H$16:$H$17,0))=FALSE,"C",IF(ISERROR(MATCH(D106,Simulador!$H$18:$H$19,0))=FALSE,"D","")) ->  | F106: =IF(E106="C",0,IF(E106 ="D",ROUND(1/((1+Simulador!$S$13)^A106),9) * 2,ROUND(1/((1+Simulador!$S$13)^A106),9))) -> 0.029300937 | G106: 27.83984722
A107: 104 | B107: 104 | C107: 2030-10-23 | D107: 10 | E107: =IF(ISERROR(MATCH(D107,Simulador!$H$16:$H$17,0))=FALSE,"C",IF(ISERROR(MATCH(D107,Simulador!$H$18:$H$19,0))=FALSE,"D","")) ->  | F107: =IF(E107="C",0,IF(E107 ="D",ROUND(1/((1+Simulador!$S$13)^A107),9) * 2,ROUND(1/((1+Simulador!$S$13)^A107),9))) -> 0.028313716 | G107: 27.86816093
A108: 105 | B108: 105 | C108: 2030-11-23 | D108: 11 | E108: =IF(ISERROR(MATCH(D108,Simulador!$H$16:$H$17,0))=FALSE,"C",IF(ISERROR(MATCH(D108,Simulador!$H$18:$H$19,0))=FALSE,"D","")) ->  | F108: =IF(E108="C",0,IF(E108 ="D",ROUND(1/((1+Simulador!$S$13)^A108),9) * 2,ROUND(1/((1+Simulador!$S$13)^A108),9))) -> 0.027359756 | G108: 27.89552069
A109: 106 | B109: 106 | C109: 2030-12-23 | D109: 12 | E109: =IF(ISERROR(MATCH(D109,Simulador!$H$16:$H$17,0))=FALSE,"C",IF(ISERROR(MATCH(D109,Simulador!$H$18:$H$19,0))=FALSE,"D","")) ->  | F109: =IF(E109="C",0,IF(E109 ="D",ROUND(1/((1+Simulador!$S$13)^A109),9) * 2,ROUND(1/((1+Simulador!$S$13)^A109),9))) -> 0.026437938 | G109: 27.92195863
A110: 107 | B110: 107 | C110: 2031-01-23 | D110: 1 | E110: =IF(ISERROR(MATCH(D110,Simulador!$H$16:$H$17,0))=FALSE,"C",IF(ISERROR(MATCH(D110,Simulador!$H$18:$H$19,0))=FALSE,"D","")) ->  | F110: =IF(E110="C",0,IF(E110 ="D",ROUND(1/((1+Simulador!$S$13)^A110),9) * 2,ROUND(1/((1+Simulador!$S$13)^A110),9))) -> 0.025547178 | G110: 27.9475058
A111: 108 | B111: 108 | C111: 2031-02-23 | D111: 2 | E111: =IF(ISERROR(MATCH(D111,Simulador!$H$16:$H$17,0))=FALSE,"C",IF(ISERROR(MATCH(D111,Simulador!$H$18:$H$19,0))=FALSE,"D","")) ->  | F111: =IF(E111="C",0,IF(E111 ="D",ROUND(1/((1+Simulador!$S$13)^A111),9) * 2,ROUND(1/((1+Simulador!$S$13)^A111),9))) -> 0.02468643 | G111: 27.97219223
A112: 109 | B112: 109 | C112: 2031-03-23 | D112: 3 | E112: =IF(ISERROR(MATCH(D112,Simulador!$H$16:$H$17,0))=FALSE,"C",IF(ISERROR(MATCH(D112,Simulador!$H$18:$H$19,0))=FALSE,"D","")) ->  | F112: =IF(E112="C",0,IF(E112 ="D",ROUND(1/((1+Simulador!$S$13)^A112),9) * 2,ROUND(1/((1+Simulador!$S$13)^A112),9))) -> 0.023854683 | G112: 27.99604692
A113: 110 | B113: 110 | C113: 2031-04-23 | D113: 4 | E113: =IF(ISERROR(MATCH(D113,Simulador!$H$16:$H$17,0))=FALSE,"C",IF(ISERROR(MATCH(D113,Simulador!$H$18:$H$19,0))=FALSE,"D","")) ->  | F113: =IF(E113="C",0,IF(E113 ="D",ROUND(1/((1+Simulador!$S$13)^A113),9) * 2,ROUND(1/((1+Simulador!$S$13)^A113),9))) -> 0.023050959 | G113: 28.01909788
A114: 111 | B114: 111 | C114: 2031-05-23 | D114: 5 | E114: =IF(ISERROR(MATCH(D114,Simulador!$H$16:$H$17,0))=FALSE,"C",IF(ISERROR(MATCH(D114,Simulador!$H$18:$H$19,0))=FALSE,"D","")) ->  | F114: =IF(E114="C",0,IF(E114 ="D",ROUND(1/((1+Simulador!$S$13)^A114),9) * 2,ROUND(1/((1+Simulador!$S$13)^A114),9))) -> 0.022274315 | G114: 28.04137219
A115: 112 | B115: 112 | C115: 2031-06-23 | D115: 6 | E115: =IF(ISERROR(MATCH(D115,Simulador!$H$16:$H$17,0))=FALSE,"C",IF(ISERROR(MATCH(D115,Simulador!$H$18:$H$19,0))=FALSE,"D","")) ->  | F115: =IF(E115="C",0,IF(E115 ="D",ROUND(1/((1+Simulador!$S$13)^A115),9) * 2,ROUND(1/((1+Simulador!$S$13)^A115),9))) -> 0.021523838 | G115: 28.06289603
A116: 113 | B116: 113 | C116: 2031-07-23 | D116: 7 | E116: =IF(ISERROR(MATCH(D116,Simulador!$H$16:$H$17,0))=FALSE,"C",IF(ISERROR(MATCH(D116,Simulador!$H$18:$H$19,0))=FALSE,"D","")) ->  | F116: =IF(E116="C",0,IF(E116 ="D",ROUND(1/((1+Simulador!$S$13)^A116),9) * 2,ROUND(1/((1+Simulador!$S$13)^A116),9))) -> 0.020798646 | G116: 28.08369468
A117: 114 | B117: 114 | C117: 2031-08-23 | D117: 8 | E117: =IF(ISERROR(MATCH(D117,Simulador!$H$16:$H$17,0))=FALSE,"C",IF(ISERROR(MATCH(D117,Simulador!$H$18:$H$19,0))=FALSE,"D","")) ->  | F117: =IF(E117="C",0,IF(E117 ="D",ROUND(1/((1+Simulador!$S$13)^A117),9) * 2,ROUND(1/((1+Simulador!$S$13)^A117),9))) -> 0.020097888 | G117: 28.10379256
A118: 115 | B118: 115 | C118: 2031-09-23 | D118: 9 | E118: =IF(ISERROR(MATCH(D118,Simulador!$H$16:$H$17,0))=FALSE,"C",IF(ISERROR(MATCH(D118,Simulador!$H$18:$H$19,0))=FALSE,"D","")) ->  | F118: =IF(E118="C",0,IF(E118 ="D",ROUND(1/((1+Simulador!$S$13)^A118),9) * 2,ROUND(1/((1+Simulador!$S$13)^A118),9))) -> 0.01942074 | G118: 28.1232133
A119: 116 | B119: 116 | C119: 2031-10-23 | D119: 10 | E119: =IF(ISERROR(MATCH(D119,Simulador!$H$16:$H$17,0))=FALSE,"C",IF(ISERROR(MATCH(D119,Simulador!$H$18:$H$19,0))=FALSE,"D","")) ->  | F119: =IF(E119="C",0,IF(E119 ="D",ROUND(1/((1+Simulador!$S$13)^A119),9) * 2,ROUND(1/((1+Simulador!$S$13)^A119),9))) -> 0.018766407 | G119: 28.14197971
A120: 117 | B120: 117 | C120: 2031-11-23 | D120: 11 | E120: =IF(ISERROR(MATCH(D120,Simulador!$H$16:$H$17,0))=FALSE,"C",IF(ISERROR(MATCH(D120,Simulador!$H$18:$H$19,0))=FALSE,"D","")) ->  | F120: =IF(E120="C",0,IF(E120 ="D",ROUND(1/((1+Simulador!$S$13)^A120),9) * 2,ROUND(1/((1+Simulador!$S$13)^A120),9))) -> 0.01813412 | G120: 28.16011383
A121: 118 | B121: 118 | C121: 2031-12-23 | D121: 12 | E121: =IF(ISERROR(MATCH(D121,Simulador!$H$16:$H$17,0))=FALSE,"C",IF(ISERROR(MATCH(D121,Simulador!$H$18:$H$19,0))=FALSE,"D","")) ->  | F121: =IF(E121="C",0,IF(E121 ="D",ROUND(1/((1+Simulador!$S$13)^A121),9) * 2,ROUND(1/((1+Simulador!$S$13)^A121),9))) -> 0.017523136 | G121: 28.17763697
A122: 119 | B122: 119 | C122: 2032-01-23 | D122: 1 | E122: =IF(ISERROR(MATCH(D122,Simulador!$H$16:$H$17,0))=FALSE,"C",IF(ISERROR(MATCH(D122,Simulador!$H$18:$H$19,0))=FALSE,"D","")) ->  | F122: =IF(E122="C",0,IF(E122 ="D",ROUND(1/((1+Simulador!$S$13)^A122),9) * 2,ROUND(1/((1+Simulador!$S$13)^A122),9))) -> 0.016932738 | G122: 28.1945697
A123: 120 | B123: 120 | C123: 2032-02-23 | D123: 2 | E123: =IF(ISERROR(MATCH(D123,Simulador!$H$16:$H$17,0))=FALSE,"C",IF(ISERROR(MATCH(D123,Simulador!$H$18:$H$19,0))=FALSE,"D","")) ->  | F123: =IF(E123="C",0,IF(E123 ="D",ROUND(1/((1+Simulador!$S$13)^A123),9) * 2,ROUND(1/((1+Simulador!$S$13)^A123),9))) -> 0.016362232 | G123: 28.21093194
A124: 121 | B124: 121 | C124: 2032-03-23 | D124: 3 | E124: =IF(ISERROR(MATCH(D124,Simulador!$H$16:$H$17,0))=FALSE,"C",IF(ISERROR(MATCH(D124,Simulador!$H$18:$H$19,0))=FALSE,"D","")) ->  | F124: =IF(E124="C",0,IF(E124 ="D",ROUND(1/((1+Simulador!$S$13)^A124),9) * 2,ROUND(1/((1+Simulador!$S$13)^A124),9))) -> 0.015810947 | G124: 28.22674288
A125: 122 | B125: 122 | C125: 2032-04-23 | D125: 4 | E125: =IF(ISERROR(MATCH(D125,Simulador!$H$16:$H$17,0))=FALSE,"C",IF(ISERROR(MATCH(D125,Simulador!$H$18:$H$19,0))=FALSE,"D","")) ->  | F125: =IF(E125="C",0,IF(E125 ="D",ROUND(1/((1+Simulador!$S$13)^A125),9) * 2,ROUND(1/((1+Simulador!$S$13)^A125),9))) -> 0.015278237 | G125: 28.24202112
A126: 123 | B126: 123 | C126: 2032-05-23 | D126: 5 | E126: =IF(ISERROR(MATCH(D126,Simulador!$H$16:$H$17,0))=FALSE,"C",IF(ISERROR(MATCH(D126,Simulador!$H$18:$H$19,0))=FALSE,"D","")) ->  | F126: =IF(E126="C",0,IF(E126 ="D",ROUND(1/((1+Simulador!$S$13)^A126),9) * 2,ROUND(1/((1+Simulador!$S$13)^A126),9))) -> 0.014763475 | G126: 28.2567846
A127: 124 | B127: 124 | C127: 2032-06-23 | D127: 6 | E127: =IF(ISERROR(MATCH(D127,Simulador!$H$16:$H$17,0))=FALSE,"C",IF(ISERROR(MATCH(D127,Simulador!$H$18:$H$19,0))=FALSE,"D","")) ->  | F127: =IF(E127="C",0,IF(E127 ="D",ROUND(1/((1+Simulador!$S$13)^A127),9) * 2,ROUND(1/((1+Simulador!$S$13)^A127),9))) -> 0.014266057 | G127: 28.27105065
A128: 125 | B128: 125 | C128: 2032-07-23 | D128: 7 | E128: =IF(ISERROR(MATCH(D128,Simulador!$H$16:$H$17,0))=FALSE,"C",IF(ISERROR(MATCH(D128,Simulador!$H$18:$H$19,0))=FALSE,"D","")) ->  | F128: =IF(E128="C",0,IF(E128 ="D",ROUND(1/((1+Simulador!$S$13)^A128),9) * 2,ROUND(1/((1+Simulador!$S$13)^A128),9))) -> 0.013785398 | G128: 28.28483605
A129: 126 | B129: 126 | C129: 2032-08-23 | D129: 8 | E129: =IF(ISERROR(MATCH(D129,Simulador!$H$16:$H$17,0))=FALSE,"C",IF(ISERROR(MATCH(D129,Simulador!$H$18:$H$19,0))=FALSE,"D","")) ->  | F129: =IF(E129="C",0,IF(E129 ="D",ROUND(1/((1+Simulador!$S$13)^A129),9) * 2,ROUND(1/((1+Simulador!$S$13)^A129),9))) -> 0.013320934 | G129: 28.29815698
A130: 127 | B130: 127 | C130: 2032-09-23 | D130: 9 | E130: =IF(ISERROR(MATCH(D130,Simulador!$H$16:$H$17,0))=FALSE,"C",IF(ISERROR(MATCH(D130,Simulador!$H$18:$H$19,0))=FALSE,"D","")) ->  | F130: =IF(E130="C",0,IF(E130 ="D",ROUND(1/((1+Simulador!$S$13)^A130),9) * 2,ROUND(1/((1+Simulador!$S$13)^A130),9))) -> 0.012872118 | G130: 28.3110291
A131: 128 | B131: 128 | C131: 2032-10-23 | D131: 10 | E131: =IF(ISERROR(MATCH(D131,Simulador!$H$16:$H$17,0))=FALSE,"C",IF(ISERROR(MATCH(D131,Simulador!$H$18:$H$19,0))=FALSE,"D","")) ->  | F131: =IF(E131="C",0,IF(E131 ="D",ROUND(1/((1+Simulador!$S$13)^A131),9) * 2,ROUND(1/((1+Simulador!$S$13)^A131),9))) -> 0.012438425 | G131: 28.32346753
A132: 129 | B132: 129 | C132: 2032-11-23 | D132: 11 | E132: =IF(ISERROR(MATCH(D132,Simulador!$H$16:$H$17,0))=FALSE,"C",IF(ISERROR(MATCH(D132,Simulador!$H$18:$H$19,0))=FALSE,"D","")) ->  | F132: =IF(E132="C",0,IF(E132 ="D",ROUND(1/((1+Simulador!$S$13)^A132),9) * 2,ROUND(1/((1+Simulador!$S$13)^A132),9))) -> 0.012019343 | G132: 28.33548687
A133: =A132+1 -> 130 | B133: 130 | C133: =DATE(YEAR(C132) + 1/12,MONTH(C132)+1,DAY(C132)) -> 2032-12-23 | D133: 12 | E133: =IF(ISERROR(MATCH(D133,Simulador!$H$16:$H$17,0))=FALSE,"C",IF(ISERROR(MATCH(D133,Simulador!$H$18:$H$19,0))=FALSE,"D","")) ->  | F133: =IF(E133="C",0,IF(E133 ="D",ROUND(1/((1+Simulador!$S$13)^A133),9) * 2,ROUND(1/((1+Simulador!$S$13)^A133),9))) -> 0.011614381 | G133: 28.34710125
A134: 131 | B134: 131 | C134: 2033-01-23 | D134: 1 | E134: =IF(ISERROR(MATCH(D134,Simulador!$H$16:$H$17,0))=FALSE,"C",IF(ISERROR(MATCH(D134,Simulador!$H$18:$H$19,0))=FALSE,"D","")) ->  | F134: =IF(E134="C",0,IF(E134 ="D",ROUND(1/((1+Simulador!$S$13)^A134),9) * 2,ROUND(1/((1+Simulador!$S$13)^A134),9))) -> 0.011223064 | G134: 28.35832432
A135: 132 | B135: 132 | C135: 2033-02-23 | D135: 2 | E135: =IF(ISERROR(MATCH(D135,Simulador!$H$16:$H$17,0))=FALSE,"C",IF(ISERROR(MATCH(D135,Simulador!$H$18:$H$19,0))=FALSE,"D","")) ->  | F135: =IF(E135="C",0,IF(E135 ="D",ROUND(1/((1+Simulador!$S$13)^A135),9) * 2,ROUND(1/((1+Simulador!$S$13)^A135),9))) -> 0.010844931 | G135: 28.36916925
A136: 133 | B136: 133 | C136: 2033-03-23 | D136: 3 | E136: =IF(ISERROR(MATCH(D136,Simulador!$H$16:$H$17,0))=FALSE,"C",IF(ISERROR(MATCH(D136,Simulador!$H$18:$H$19,0))=FALSE,"D","")) ->  | F136: =IF(E136="C",0,IF(E136 ="D",ROUND(1/((1+Simulador!$S$13)^A136),9) * 2,ROUND(1/((1+Simulador!$S$13)^A136),9))) -> 0.010479538 | G136: 28.37964878
A137: 134 | B137: 134 | C137: 2033-04-23 | D137: 4 | E137: =IF(ISERROR(MATCH(D137,Simulador!$H$16:$H$17,0))=FALSE,"C",IF(ISERROR(MATCH(D137,Simulador!$H$18:$H$19,0))=FALSE,"D","")) ->  | F137: =IF(E137="C",0,IF(E137 ="D",ROUND(1/((1+Simulador!$S$13)^A137),9) * 2,ROUND(1/((1+Simulador!$S$13)^A137),9))) -> 0.010126457 | G137: 28.38977524
A138: 135 | B138: 135 | C138: 2033-05-23 | D138: 5 | E138: =IF(ISERROR(MATCH(D138,Simulador!$H$16:$H$17,0))=FALSE,"C",IF(ISERROR(MATCH(D138,Simulador!$H$18:$H$19,0))=FALSE,"D","")) ->  | F138: =IF(E138="C",0,IF(E138 ="D",ROUND(1/((1+Simulador!$S$13)^A138),9) * 2,ROUND(1/((1+Simulador!$S$13)^A138),9))) -> 0.009785271 | G138: 28.39956051
A139: 136 | B139: 136 | C139: 2033-06-23 | D139: 6 | E139: =IF(ISERROR(MATCH(D139,Simulador!$H$16:$H$17,0))=FALSE,"C",IF(ISERROR(MATCH(D139,Simulador!$H$18:$H$19,0))=FALSE,"D","")) ->  | F139: =IF(E139="C",0,IF(E139 ="D",ROUND(1/((1+Simulador!$S$13)^A139),9) * 2,ROUND(1/((1+Simulador!$S$13)^A139),9))) -> 0.009455581 | G139: 28.40901609
A140: 137 | B140: 137 | C140: 2033-07-23 | D140: 7 | E140: =IF(ISERROR(MATCH(D140,Simulador!$H$16:$H$17,0))=FALSE,"C",IF(ISERROR(MATCH(D140,Simulador!$H$18:$H$19,0))=FALSE,"D","")) ->  | F140: =IF(E140="C",0,IF(E140 ="D",ROUND(1/((1+Simulador!$S$13)^A140),9) * 2,ROUND(1/((1+Simulador!$S$13)^A140),9))) -> 0.009136999 | G140: 28.41815309
A141: 138 | B141: 138 | C141: 2033-08-23 | D141: 8 | E141: =IF(ISERROR(MATCH(D141,Simulador!$H$16:$H$17,0))=FALSE,"C",IF(ISERROR(MATCH(D141,Simulador!$H$18:$H$19,0))=FALSE,"D","")) ->  | F141: =IF(E141="C",0,IF(E141 ="D",ROUND(1/((1+Simulador!$S$13)^A141),9) * 2,ROUND(1/((1+Simulador!$S$13)^A141),9))) -> 0.008829151 | G141: 28.42698224
A142: 139 | B142: 139 | C142: 2033-09-23 | D142: 9 | E142: =IF(ISERROR(MATCH(D142,Simulador!$H$16:$H$17,0))=FALSE,"C",IF(ISERROR(MATCH(D142,Simulador!$H$18:$H$19,0))=FALSE,"D","")) ->  | F142: =IF(E142="C",0,IF(E142 ="D",ROUND(1/((1+Simulador!$S$13)^A142),9) * 2,ROUND(1/((1+Simulador!$S$13)^A142),9))) -> 0.008531674 | G142: 28.43551392
A143: 140 | B143: 140 | C143: 2033-10-23 | D143: 10 | E143: =IF(ISERROR(MATCH(D143,Simulador!$H$16:$H$17,0))=FALSE,"C",IF(ISERROR(MATCH(D143,Simulador!$H$18:$H$19,0))=FALSE,"D","")) ->  | F143: =IF(E143="C",0,IF(E143 ="D",ROUND(1/((1+Simulador!$S$13)^A143),9) * 2,ROUND(1/((1+Simulador!$S$13)^A143),9))) -> 0.008244221 | G143: 28.44375814
A144: 141 | B144: 141 | C144: 2033-11-23 | D144: 11 | E144: =IF(ISERROR(MATCH(D144,Simulador!$H$16:$H$17,0))=FALSE,"C",IF(ISERROR(MATCH(D144,Simulador!$H$18:$H$19,0))=FALSE,"D","")) ->  | F144: =IF(E144="C",0,IF(E144 ="D",ROUND(1/((1+Simulador!$S$13)^A144),9) * 2,ROUND(1/((1+Simulador!$S$13)^A144),9))) -> 0.007966453 | G144: 28.45172459
A145: 142 | B145: 142 | C145: 2033-12-23 | D145: 12 | E145: =IF(ISERROR(MATCH(D145,Simulador!$H$16:$H$17,0))=FALSE,"C",IF(ISERROR(MATCH(D145,Simulador!$H$18:$H$19,0))=FALSE,"D","")) ->  | F145: =IF(E145="C",0,IF(E145 ="D",ROUND(1/((1+Simulador!$S$13)^A145),9) * 2,ROUND(1/((1+Simulador!$S$13)^A145),9))) -> 0.007698043 | G145: 28.45942263
A146: 143 | B146: 143 | C146: 2034-01-23 | D146: 1 | E146: =IF(ISERROR(MATCH(D146,Simulador!$H$16:$H$17,0))=FALSE,"C",IF(ISERROR(MATCH(D146,Simulador!$H$18:$H$19,0))=FALSE,"D","")) ->  | F146: =IF(E146="C",0,IF(E146 ="D",ROUND(1/((1+Simulador!$S$13)^A146),9) * 2,ROUND(1/((1+Simulador!$S$13)^A146),9))) -> 0.007438677 | G146: 28.46686131
A147: 144 | B147: 144 | C147: 2034-02-23 | D147: 2 | E147: =IF(ISERROR(MATCH(D147,Simulador!$H$16:$H$17,0))=FALSE,"C",IF(ISERROR(MATCH(D147,Simulador!$H$18:$H$19,0))=FALSE,"D","")) ->  | F147: =IF(E147="C",0,IF(E147 ="D",ROUND(1/((1+Simulador!$S$13)^A147),9) * 2,ROUND(1/((1+Simulador!$S$13)^A147),9))) -> 0.007188049 | G147: 28.47404936
A148: 145 | B148: 145 | C148: 2034-03-23 | D148: 3 | E148: =IF(ISERROR(MATCH(D148,Simulador!$H$16:$H$17,0))=FALSE,"C",IF(ISERROR(MATCH(D148,Simulador!$H$18:$H$19,0))=FALSE,"D","")) ->  | F148: =IF(E148="C",0,IF(E148 ="D",ROUND(1/((1+Simulador!$S$13)^A148),9) * 2,ROUND(1/((1+Simulador!$S$13)^A148),9))) -> 0.006945866 | G148: 28.48099523
A149: 146 | B149: 146 | C149: 2034-04-23 | D149: 4 | E149: =IF(ISERROR(MATCH(D149,Simulador!$H$16:$H$17,0))=FALSE,"C",IF(ISERROR(MATCH(D149,Simulador!$H$18:$H$19,0))=FALSE,"D","")) ->  | F149: =IF(E149="C",0,IF(E149 ="D",ROUND(1/((1+Simulador!$S$13)^A149),9) * 2,ROUND(1/((1+Simulador!$S$13)^A149),9))) -> 0.006711843 | G149: 28.48770707
A150: 147 | B150: 147 | C150: 2034-05-23 | D150: 5 | E150: =IF(ISERROR(MATCH(D150,Simulador!$H$16:$H$17,0))=FALSE,"C",IF(ISERROR(MATCH(D150,Simulador!$H$18:$H$19,0))=FALSE,"D","")) ->  | F150: =IF(E150="C",0,IF(E150 ="D",ROUND(1/((1+Simulador!$S$13)^A150),9) * 2,ROUND(1/((1+Simulador!$S$13)^A150),9))) -> 0.006485704 | G150: 28.49419277
A151: 148 | B151: 148 | C151: 2034-06-23 | D151: 6 | E151: =IF(ISERROR(MATCH(D151,Simulador!$H$16:$H$17,0))=FALSE,"C",IF(ISERROR(MATCH(D151,Simulador!$H$18:$H$19,0))=FALSE,"D","")) ->  | F151: =IF(E151="C",0,IF(E151 ="D",ROUND(1/((1+Simulador!$S$13)^A151),9) * 2,ROUND(1/((1+Simulador!$S$13)^A151),9))) -> 0.006267184 | G151: 28.50045996
A152: 149 | B152: 149 | C152: 2034-07-23 | D152: 7 | E152: =IF(ISERROR(MATCH(D152,Simulador!$H$16:$H$17,0))=FALSE,"C",IF(ISERROR(MATCH(D152,Simulador!$H$18:$H$19,0))=FALSE,"D","")) ->  | F152: =IF(E152="C",0,IF(E152 ="D",ROUND(1/((1+Simulador!$S$13)^A152),9) * 2,ROUND(1/((1+Simulador!$S$13)^A152),9))) -> 0.006056027 | G152: 28.50651598
A153: 150 | B153: 150 | C153: 2034-08-23 | D153: 8 | E153: =IF(ISERROR(MATCH(D153,Simulador!$H$16:$H$17,0))=FALSE,"C",IF(ISERROR(MATCH(D153,Simulador!$H$18:$H$19,0))=FALSE,"D","")) ->  | F153: =IF(E153="C",0,IF(E153 ="D",ROUND(1/((1+Simulador!$S$13)^A153),9) * 2,ROUND(1/((1+Simulador!$S$13)^A153),9))) -> 0.005851985 | G153: 28.51236797
A154: 151 | B154: 151 | C154: 2034-09-23 | D154: 9 | E154: =IF(ISERROR(MATCH(D154,Simulador!$H$16:$H$17,0))=FALSE,"C",IF(ISERROR(MATCH(D154,Simulador!$H$18:$H$19,0))=FALSE,"D","")) ->  | F154: =IF(E154="C",0,IF(E154 ="D",ROUND(1/((1+Simulador!$S$13)^A154),9) * 2,ROUND(1/((1+Simulador!$S$13)^A154),9))) -> 0.005654817 | G154: 28.51802279
A155: 152 | B155: 152 | C155: 2034-10-23 | D155: 10 | E155: =IF(ISERROR(MATCH(D155,Simulador!$H$16:$H$17,0))=FALSE,"C",IF(ISERROR(MATCH(D155,Simulador!$H$18:$H$19,0))=FALSE,"D","")) ->  | F155: =IF(E155="C",0,IF(E155 ="D",ROUND(1/((1+Simulador!$S$13)^A155),9) * 2,ROUND(1/((1+Simulador!$S$13)^A155),9))) -> 0.005464292 | G155: 28.52348708
A156: 153 | B156: 153 | C156: 2034-11-23 | D156: 11 | E156: =IF(ISERROR(MATCH(D156,Simulador!$H$16:$H$17,0))=FALSE,"C",IF(ISERROR(MATCH(D156,Simulador!$H$18:$H$19,0))=FALSE,"D","")) ->  | F156: =IF(E156="C",0,IF(E156 ="D",ROUND(1/((1+Simulador!$S$13)^A156),9) * 2,ROUND(1/((1+Simulador!$S$13)^A156),9))) -> 0.005280186 | G156: 28.52876726
A157: 154 | B157: 154 | C157: 2034-12-23 | D157: 12 | E157: =IF(ISERROR(MATCH(D157,Simulador!$H$16:$H$17,0))=FALSE,"C",IF(ISERROR(MATCH(D157,Simulador!$H$18:$H$19,0))=FALSE,"D","")) ->  | F157: =IF(E157="C",0,IF(E157 ="D",ROUND(1/((1+Simulador!$S$13)^A157),9) * 2,ROUND(1/((1+Simulador!$S$13)^A157),9))) -> 0.005102284 | G157: 28.53386955
A158: 155 | B158: 155 | C158: 2035-01-23 | D158: 1 | E158: =IF(ISERROR(MATCH(D158,Simulador!$H$16:$H$17,0))=FALSE,"C",IF(ISERROR(MATCH(D158,Simulador!$H$18:$H$19,0))=FALSE,"D","")) ->  | F158: =IF(E158="C",0,IF(E158 ="D",ROUND(1/((1+Simulador!$S$13)^A158),9) * 2,ROUND(1/((1+Simulador!$S$13)^A158),9))) -> 0.004930375 | G158: 28.53879992
A159: 156 | B159: 156 | C159: 2035-02-23 | D159: 2 | E159: =IF(ISERROR(MATCH(D159,Simulador!$H$16:$H$17,0))=FALSE,"C",IF(ISERROR(MATCH(D159,Simulador!$H$18:$H$19,0))=FALSE,"D","")) ->  | F159: =IF(E159="C",0,IF(E159 ="D",ROUND(1/((1+Simulador!$S$13)^A159),9) * 2,ROUND(1/((1+Simulador!$S$13)^A159),9))) -> 0.004764258 | G159: 28.54356418
A160: 157 | B160: 157 | C160: 2035-03-23 | D160: 3 | E160: =IF(ISERROR(MATCH(D160,Simulador!$H$16:$H$17,0))=FALSE,"C",IF(ISERROR(MATCH(D160,Simulador!$H$18:$H$19,0))=FALSE,"D","")) ->  | F160: =IF(E160="C",0,IF(E160 ="D",ROUND(1/((1+Simulador!$S$13)^A160),9) * 2,ROUND(1/((1+Simulador!$S$13)^A160),9))) -> 0.004603739 | G160: 28.54816792
A161: 158 | B161: 158 | C161: 2035-04-23 | D161: 4 | E161: =IF(ISERROR(MATCH(D161,Simulador!$H$16:$H$17,0))=FALSE,"C",IF(ISERROR(MATCH(D161,Simulador!$H$18:$H$19,0))=FALSE,"D","")) ->  | F161: =IF(E161="C",0,IF(E161 ="D",ROUND(1/((1+Simulador!$S$13)^A161),9) * 2,ROUND(1/((1+Simulador!$S$13)^A161),9))) -> 0.004448627 | G161: 28.55261655
A162: 159 | B162: 159 | C162: 2035-05-23 | D162: 5 | E162: =IF(ISERROR(MATCH(D162,Simulador!$H$16:$H$17,0))=FALSE,"C",IF(ISERROR(MATCH(D162,Simulador!$H$18:$H$19,0))=FALSE,"D","")) ->  | F162: =IF(E162="C",0,IF(E162 ="D",ROUND(1/((1+Simulador!$S$13)^A162),9) * 2,ROUND(1/((1+Simulador!$S$13)^A162),9))) -> 0.004298742 | G162: 28.55691529
A163: 160 | B163: 160 | C163: 2035-06-23 | D163: 6 | E163: =IF(ISERROR(MATCH(D163,Simulador!$H$16:$H$17,0))=FALSE,"C",IF(ISERROR(MATCH(D163,Simulador!$H$18:$H$19,0))=FALSE,"D","")) ->  | F163: =IF(E163="C",0,IF(E163 ="D",ROUND(1/((1+Simulador!$S$13)^A163),9) * 2,ROUND(1/((1+Simulador!$S$13)^A163),9))) -> 0.004153907 | G163: 28.5610692
A164: 161 | B164: =IF(E164<>"C",IF(ISERROR(1+B163)=TRUE,1,1+B163),IF(ISNUMBER(B163),B163,1)) -> 161 | C164: 2035-07-23 | D164: =MONTH(C164) -> 7 | E164: =IF(ISERROR(MATCH(D164,Simulador!$H$16:$H$17,0))=FALSE,"C",IF(ISERROR(MATCH(D164,Simulador!$H$18:$H$19,0))=FALSE,"D","")) ->  | F164: =IF(E164="C",0,IF(E164 ="D",ROUND(1/((1+Simulador!$S$13)^A164),9) * 2,ROUND(1/((1+Simulador!$S$13)^A164),9))) -> 0.004013951 | G164: =G163+ROUND(F164,9) -> 28.56508315
A165: 162 | B165: 162 | C165: 2035-08-23 | D165: 8 | E165: =IF(ISERROR(MATCH(D165,Simulador!$H$16:$H$17,0))=FALSE,"C",IF(ISERROR(MATCH(D165,Simulador!$H$18:$H$19,0))=FALSE,"D","")) ->  | F165: =IF(E165="C",0,IF(E165 ="D",ROUND(1/((1+Simulador!$S$13)^A165),9) * 2,ROUND(1/((1+Simulador!$S$13)^A165),9))) -> 0.003878711 | G165: 28.56896186
A166: 163 | B166: 163 | C166: 2035-09-23 | D166: 9 | E166: =IF(ISERROR(MATCH(D166,Simulador!$H$16:$H$17,0))=FALSE,"C",IF(ISERROR(MATCH(D166,Simulador!$H$18:$H$19,0))=FALSE,"D","")) ->  | F166: =IF(E166="C",0,IF(E166 ="D",ROUND(1/((1+Simulador!$S$13)^A166),9) * 2,ROUND(1/((1+Simulador!$S$13)^A166),9))) -> 0.003748028 | G166: 28.57270989
A167: 164 | B167: 164 | C167: 2035-10-23 | D167: 10 | E167: =IF(ISERROR(MATCH(D167,Simulador!$H$16:$H$17,0))=FALSE,"C",IF(ISERROR(MATCH(D167,Simulador!$H$18:$H$19,0))=FALSE,"D","")) ->  | F167: =IF(E167="C",0,IF(E167 ="D",ROUND(1/((1+Simulador!$S$13)^A167),9) * 2,ROUND(1/((1+Simulador!$S$13)^A167),9))) -> 0.003621747 | G167: 28.57633163
A168: 165 | B168: 165 | C168: 2035-11-23 | D168: 11 | E168: =IF(ISERROR(MATCH(D168,Simulador!$H$16:$H$17,0))=FALSE,"C",IF(ISERROR(MATCH(D168,Simulador!$H$18:$H$19,0))=FALSE,"D","")) ->  | F168: =IF(E168="C",0,IF(E168 ="D",ROUND(1/((1+Simulador!$S$13)^A168),9) * 2,ROUND(1/((1+Simulador!$S$13)^A168),9))) -> 0.003499722 | G168: 28.57983136
A169: 166 | B169: 166 | C169: 2035-12-23 | D169: 12 | E169: =IF(ISERROR(MATCH(D169,Simulador!$H$16:$H$17,0))=FALSE,"C",IF(ISERROR(MATCH(D169,Simulador!$H$18:$H$19,0))=FALSE,"D","")) ->  | F169: =IF(E169="C",0,IF(E169 ="D",ROUND(1/((1+Simulador!$S$13)^A169),9) * 2,ROUND(1/((1+Simulador!$S$13)^A169),9))) -> 0.003381807 | G169: 28.58321316
A170: 167 | B170: 167 | C170: 2036-01-23 | D170: 1 | E170: =IF(ISERROR(MATCH(D170,Simulador!$H$16:$H$17,0))=FALSE,"C",IF(ISERROR(MATCH(D170,Simulador!$H$18:$H$19,0))=FALSE,"D","")) ->  | F170: =IF(E170="C",0,IF(E170 ="D",ROUND(1/((1+Simulador!$S$13)^A170),9) * 2,ROUND(1/((1+Simulador!$S$13)^A170),9))) -> 0.003267866 | G170: 28.58648103
A171: 168 | B171: 168 | C171: 2036-02-23 | D171: 2 | E171: =IF(ISERROR(MATCH(D171,Simulador!$H$16:$H$17,0))=FALSE,"C",IF(ISERROR(MATCH(D171,Simulador!$H$18:$H$19,0))=FALSE,"D","")) ->  | F171: =IF(E171="C",0,IF(E171 ="D",ROUND(1/((1+Simulador!$S$13)^A171),9) * 2,ROUND(1/((1+Simulador!$S$13)^A171),9))) -> 0.003157763 | G171: 28.58963879
A172: 169 | B172: 169 | C172: 2036-03-23 | D172: 3 | E172: =IF(ISERROR(MATCH(D172,Simulador!$H$16:$H$17,0))=FALSE,"C",IF(ISERROR(MATCH(D172,Simulador!$H$18:$H$19,0))=FALSE,"D","")) ->  | F172: =IF(E172="C",0,IF(E172 ="D",ROUND(1/((1+Simulador!$S$13)^A172),9) * 2,ROUND(1/((1+Simulador!$S$13)^A172),9))) -> 0.00305137 | G172: 28.59269016
A173: 170 | B173: 170 | C173: 2036-04-23 | D173: 4 | E173: =IF(ISERROR(MATCH(D173,Simulador!$H$16:$H$17,0))=FALSE,"C",IF(ISERROR(MATCH(D173,Simulador!$H$18:$H$19,0))=FALSE,"D","")) ->  | F173: =IF(E173="C",0,IF(E173 ="D",ROUND(1/((1+Simulador!$S$13)^A173),9) * 2,ROUND(1/((1+Simulador!$S$13)^A173),9))) -> 0.002948562 | G173: 28.59563872
A174: 171 | B174: 171 | C174: 2036-05-23 | D174: 5 | E174: =IF(ISERROR(MATCH(D174,Simulador!$H$16:$H$17,0))=FALSE,"C",IF(ISERROR(MATCH(D174,Simulador!$H$18:$H$19,0))=FALSE,"D","")) ->  | F174: =IF(E174="C",0,IF(E174 ="D",ROUND(1/((1+Simulador!$S$13)^A174),9) * 2,ROUND(1/((1+Simulador!$S$13)^A174),9))) -> 0.002849218 | G174: 28.59848794
A175: 172 | B175: 172 | C175: 2036-06-23 | D175: 6 | E175: =IF(ISERROR(MATCH(D175,Simulador!$H$16:$H$17,0))=FALSE,"C",IF(ISERROR(MATCH(D175,Simulador!$H$18:$H$19,0))=FALSE,"D","")) ->  | F175: =IF(E175="C",0,IF(E175 ="D",ROUND(1/((1+Simulador!$S$13)^A175),9) * 2,ROUND(1/((1+Simulador!$S$13)^A175),9))) -> 0.00275322 | G175: 28.60124116
A176: 173 | B176: 173 | C176: 2036-07-23 | D176: 7 | E176: =IF(ISERROR(MATCH(D176,Simulador!$H$16:$H$17,0))=FALSE,"C",IF(ISERROR(MATCH(D176,Simulador!$H$18:$H$19,0))=FALSE,"D","")) ->  | F176: =IF(E176="C",0,IF(E176 ="D",ROUND(1/((1+Simulador!$S$13)^A176),9) * 2,ROUND(1/((1+Simulador!$S$13)^A176),9))) -> 0.002660458 | G176: 28.60390162
A177: 174 | B177: 174 | C177: 2036-08-23 | D177: 8 | E177: =IF(ISERROR(MATCH(D177,Simulador!$H$16:$H$17,0))=FALSE,"C",IF(ISERROR(MATCH(D177,Simulador!$H$18:$H$19,0))=FALSE,"D","")) ->  | F177: =IF(E177="C",0,IF(E177 ="D",ROUND(1/((1+Simulador!$S$13)^A177),9) * 2,ROUND(1/((1+Simulador!$S$13)^A177),9))) -> 0.00257082 | G177: 28.60647244
A178: 175 | B178: 175 | C178: 2036-09-23 | D178: 9 | E178: =IF(ISERROR(MATCH(D178,Simulador!$H$16:$H$17,0))=FALSE,"C",IF(ISERROR(MATCH(D178,Simulador!$H$18:$H$19,0))=FALSE,"D","")) ->  | F178: =IF(E178="C",0,IF(E178 ="D",ROUND(1/((1+Simulador!$S$13)^A178),9) * 2,ROUND(1/((1+Simulador!$S$13)^A178),9))) -> 0.002484203 | G178: 28.60895664
A179: 176 | B179: 176 | C179: 2036-10-23 | D179: 10 | E179: =IF(ISERROR(MATCH(D179,Simulador!$H$16:$H$17,0))=FALSE,"C",IF(ISERROR(MATCH(D179,Simulador!$H$18:$H$19,0))=FALSE,"D","")) ->  | F179: =IF(E179="C",0,IF(E179 ="D",ROUND(1/((1+Simulador!$S$13)^A179),9) * 2,ROUND(1/((1+Simulador!$S$13)^A179),9))) -> 0.002400504 | G179: 28.61135715
A180: 177 | B180: 177 | C180: 2036-11-23 | D180: 11 | E180: =IF(ISERROR(MATCH(D180,Simulador!$H$16:$H$17,0))=FALSE,"C",IF(ISERROR(MATCH(D180,Simulador!$H$18:$H$19,0))=FALSE,"D","")) ->  | F180: =IF(E180="C",0,IF(E180 ="D",ROUND(1/((1+Simulador!$S$13)^A180),9) * 2,ROUND(1/((1+Simulador!$S$13)^A180),9))) -> 0.002319625 | G180: 28.61367677
A181: 178 | B181: 178 | C181: 2036-12-23 | D181: 12 | E181: =IF(ISERROR(MATCH(D181,Simulador!$H$16:$H$17,0))=FALSE,"C",IF(ISERROR(MATCH(D181,Simulador!$H$18:$H$19,0))=FALSE,"D","")) ->  | F181: =IF(E181="C",0,IF(E181 ="D",ROUND(1/((1+Simulador!$S$13)^A181),9) * 2,ROUND(1/((1+Simulador!$S$13)^A181),9))) -> 0.002241471 | G181: 28.61591824
A182: 179 | B182: 179 | C182: 2037-01-23 | D182: 1 | E182: =IF(ISERROR(MATCH(D182,Simulador!$H$16:$H$17,0))=FALSE,"C",IF(ISERROR(MATCH(D182,Simulador!$H$18:$H$19,0))=FALSE,"D","")) ->  | F182: =IF(E182="C",0,IF(E182 ="D",ROUND(1/((1+Simulador!$S$13)^A182),9) * 2,ROUND(1/((1+Simulador!$S$13)^A182),9))) -> 0.00216595 | G182: 28.61808419
A183: 180 | B183: 180 | C183: 2037-02-23 | D183: 2 | E183: =IF(ISERROR(MATCH(D183,Simulador!$H$16:$H$17,0))=FALSE,"C",IF(ISERROR(MATCH(D183,Simulador!$H$18:$H$19,0))=FALSE,"D","")) ->  | F183: =IF(E183="C",0,IF(E183 ="D",ROUND(1/((1+Simulador!$S$13)^A183),9) * 2,ROUND(1/((1+Simulador!$S$13)^A183),9))) -> 0.002092974 | G183: 28.62017717
A184: 181 | B184: 181 | C184: 2037-03-23 | D184: 3 | E184: =IF(ISERROR(MATCH(D184,Simulador!$H$16:$H$17,0))=FALSE,"C",IF(ISERROR(MATCH(D184,Simulador!$H$18:$H$19,0))=FALSE,"D","")) ->  | F184: =IF(E184="C",0,IF(E184 ="D",ROUND(1/((1+Simulador!$S$13)^A184),9) * 2,ROUND(1/((1+Simulador!$S$13)^A184),9))) -> 0.002022456 | G184: 28.62219962
A185: 182 | B185: 182 | C185: 2037-04-23 | D185: 4 | E185: =IF(ISERROR(MATCH(D185,Simulador!$H$16:$H$17,0))=FALSE,"C",IF(ISERROR(MATCH(D185,Simulador!$H$18:$H$19,0))=FALSE,"D","")) ->  | F185: =IF(E185="C",0,IF(E185 ="D",ROUND(1/((1+Simulador!$S$13)^A185),9) * 2,ROUND(1/((1+Simulador!$S$13)^A185),9))) -> 0.001954315 | G185: 28.62415394
A186: 183 | B186: 183 | C186: 2037-05-23 | D186: 5 | E186: =IF(ISERROR(MATCH(D186,Simulador!$H$16:$H$17,0))=FALSE,"C",IF(ISERROR(MATCH(D186,Simulador!$H$18:$H$19,0))=FALSE,"D","")) ->  | F186: =IF(E186="C",0,IF(E186 ="D",ROUND(1/((1+Simulador!$S$13)^A186),9) * 2,ROUND(1/((1+Simulador!$S$13)^A186),9))) -> 0.001888469 | G186: 28.62604241
A187: 184 | B187: 184 | C187: 2037-06-23 | D187: 6 | E187: =IF(ISERROR(MATCH(D187,Simulador!$H$16:$H$17,0))=FALSE,"C",IF(ISERROR(MATCH(D187,Simulador!$H$18:$H$19,0))=FALSE,"D","")) ->  | F187: =IF(E187="C",0,IF(E187 ="D",ROUND(1/((1+Simulador!$S$13)^A187),9) * 2,ROUND(1/((1+Simulador!$S$13)^A187),9))) -> 0.001824842 | G187: 28.62786725
A188: 185 | B188: 185 | C188: 2037-07-23 | D188: 7 | E188: =IF(ISERROR(MATCH(D188,Simulador!$H$16:$H$17,0))=FALSE,"C",IF(ISERROR(MATCH(D188,Simulador!$H$18:$H$19,0))=FALSE,"D","")) ->  | F188: =IF(E188="C",0,IF(E188 ="D",ROUND(1/((1+Simulador!$S$13)^A188),9) * 2,ROUND(1/((1+Simulador!$S$13)^A188),9))) -> 0.001763358 | G188: 28.62963061
A189: 186 | B189: 186 | C189: 2037-08-23 | D189: 8 | E189: =IF(ISERROR(MATCH(D189,Simulador!$H$16:$H$17,0))=FALSE,"C",IF(ISERROR(MATCH(D189,Simulador!$H$18:$H$19,0))=FALSE,"D","")) ->  | F189: =IF(E189="C",0,IF(E189 ="D",ROUND(1/((1+Simulador!$S$13)^A189),9) * 2,ROUND(1/((1+Simulador!$S$13)^A189),9))) -> 0.001703946 | G189: 28.63133455
A190: 187 | B190: 187 | C190: 2037-09-23 | D190: 9 | E190: =IF(ISERROR(MATCH(D190,Simulador!$H$16:$H$17,0))=FALSE,"C",IF(ISERROR(MATCH(D190,Simulador!$H$18:$H$19,0))=FALSE,"D","")) ->  | F190: =IF(E190="C",0,IF(E190 ="D",ROUND(1/((1+Simulador!$S$13)^A190),9) * 2,ROUND(1/((1+Simulador!$S$13)^A190),9))) -> 0.001646536 | G190: 28.63298109
A191: 188 | B191: 188 | C191: 2037-10-23 | D191: 10 | E191: =IF(ISERROR(MATCH(D191,Simulador!$H$16:$H$17,0))=FALSE,"C",IF(ISERROR(MATCH(D191,Simulador!$H$18:$H$19,0))=FALSE,"D","")) ->  | F191: =IF(E191="C",0,IF(E191 ="D",ROUND(1/((1+Simulador!$S$13)^A191),9) * 2,ROUND(1/((1+Simulador!$S$13)^A191),9))) -> 0.00159106 | G191: 28.63457215
A192: 189 | B192: 189 | C192: 2037-11-23 | D192: 11 | E192: =IF(ISERROR(MATCH(D192,Simulador!$H$16:$H$17,0))=FALSE,"C",IF(ISERROR(MATCH(D192,Simulador!$H$18:$H$19,0))=FALSE,"D","")) ->  | F192: =IF(E192="C",0,IF(E192 ="D",ROUND(1/((1+Simulador!$S$13)^A192),9) * 2,ROUND(1/((1+Simulador!$S$13)^A192),9))) -> 0.001537454 | G192: 28.6361096
A193: 190 | B193: 190 | C193: 2037-12-23 | D193: 12 | E193: =IF(ISERROR(MATCH(D193,Simulador!$H$16:$H$17,0))=FALSE,"C",IF(ISERROR(MATCH(D193,Simulador!$H$18:$H$19,0))=FALSE,"D","")) ->  | F193: =IF(E193="C",0,IF(E193 ="D",ROUND(1/((1+Simulador!$S$13)^A193),9) * 2,ROUND(1/((1+Simulador!$S$13)^A193),9))) -> 0.001485653 | G193: 28.63759526
A194: 191 | B194: 191 | C194: 2038-01-23 | D194: 1 | E194: =IF(ISERROR(MATCH(D194,Simulador!$H$16:$H$17,0))=FALSE,"C",IF(ISERROR(MATCH(D194,Simulador!$H$18:$H$19,0))=FALSE,"D","")) ->  | F194: =IF(E194="C",0,IF(E194 ="D",ROUND(1/((1+Simulador!$S$13)^A194),9) * 2,ROUND(1/((1+Simulador!$S$13)^A194),9))) -> 0.001435598 | G194: 28.63903085
A195: 192 | B195: 192 | C195: 2038-02-23 | D195: 2 | E195: =IF(ISERROR(MATCH(D195,Simulador!$H$16:$H$17,0))=FALSE,"C",IF(ISERROR(MATCH(D195,Simulador!$H$18:$H$19,0))=FALSE,"D","")) ->  | F195: =IF(E195="C",0,IF(E195 ="D",ROUND(1/((1+Simulador!$S$13)^A195),9) * 2,ROUND(1/((1+Simulador!$S$13)^A195),9))) -> 0.001387229 | G195: 28.64041808
A196: 193 | B196: 193 | C196: 2038-03-23 | D196: 3 | E196: =IF(ISERROR(MATCH(D196,Simulador!$H$16:$H$17,0))=FALSE,"C",IF(ISERROR(MATCH(D196,Simulador!$H$18:$H$19,0))=FALSE,"D","")) ->  | F196: =IF(E196="C",0,IF(E196 ="D",ROUND(1/((1+Simulador!$S$13)^A196),9) * 2,ROUND(1/((1+Simulador!$S$13)^A196),9))) -> 0.00134049 | G196: 28.64175857
A197: =A196+1 -> 194 | B197: 194 | C197: =DATE(YEAR(C196) + 1/12,MONTH(C196)+1,DAY(C196)) -> 2038-04-23 | D197: 4 | E197: =IF(ISERROR(MATCH(D197,Simulador!$H$16:$H$17,0))=FALSE,"C",IF(ISERROR(MATCH(D197,Simulador!$H$18:$H$19,0))=FALSE,"D","")) ->  | F197: =IF(E197="C",0,IF(E197 ="D",ROUND(1/((1+Simulador!$S$13)^A197),9) * 2,ROUND(1/((1+Simulador!$S$13)^A197),9))) -> 0.001295325 | G197: 28.6430539
A198: 195 | B198: 195 | C198: 2038-05-23 | D198: 5 | E198: =IF(ISERROR(MATCH(D198,Simulador!$H$16:$H$17,0))=FALSE,"C",IF(ISERROR(MATCH(D198,Simulador!$H$18:$H$19,0))=FALSE,"D","")) ->  | F198: =IF(E198="C",0,IF(E198 ="D",ROUND(1/((1+Simulador!$S$13)^A198),9) * 2,ROUND(1/((1+Simulador!$S$13)^A198),9))) -> 0.001251682 | G198: 28.64430558
A199: 196 | B199: 196 | C199: 2038-06-23 | D199: 6 | E199: =IF(ISERROR(MATCH(D199,Simulador!$H$16:$H$17,0))=FALSE,"C",IF(ISERROR(MATCH(D199,Simulador!$H$18:$H$19,0))=FALSE,"D","")) ->  | F199: =IF(E199="C",0,IF(E199 ="D",ROUND(1/((1+Simulador!$S$13)^A199),9) * 2,ROUND(1/((1+Simulador!$S$13)^A199),9))) -> 0.00120951 | G199: 28.64551509
A200: 197 | B200: 197 | C200: 2038-07-23 | D200: 7 | E200: =IF(ISERROR(MATCH(D200,Simulador!$H$16:$H$17,0))=FALSE,"C",IF(ISERROR(MATCH(D200,Simulador!$H$18:$H$19,0))=FALSE,"D","")) ->  | F200: =IF(E200="C",0,IF(E200 ="D",ROUND(1/((1+Simulador!$S$13)^A200),9) * 2,ROUND(1/((1+Simulador!$S$13)^A200),9))) -> 0.001168759 | G200: 28.64668385
A201: 198 | B201: 198 | C201: 2038-08-23 | D201: 8 | E201: =IF(ISERROR(MATCH(D201,Simulador!$H$16:$H$17,0))=FALSE,"C",IF(ISERROR(MATCH(D201,Simulador!$H$18:$H$19,0))=FALSE,"D","")) ->  | F201: =IF(E201="C",0,IF(E201 ="D",ROUND(1/((1+Simulador!$S$13)^A201),9) * 2,ROUND(1/((1+Simulador!$S$13)^A201),9))) -> 0.00112938 | G201: 28.64781323
... 185 more rows

Sheet Hoja1
C3: SIMULADOR PRÉSTAMO PERSONAL SIN GARANTÍA | G3: Soles
G4: Dólares
G6: No
B7: Moneda | C7: Soles | G7: Julio
B8: Monto del Préstamo | C8: 4000 | G8: Diciembre
B9: Fecha de Desembolso | C9: 2021-11-25 | M9: 0
B10: Plazo | C10: 48 | G10: Banco | M10: 30
B11: TEA | C11: 50 | G11: Endoso | M11: 60
B12: Días de Gracia | C12: 90 | M12: 90
B13: Seguro Desgravamen | C13: Banco
B14: Cuota Doble 1 | C14: No
B15: Cuota Doble 2 | C15: No
A19: • La cotización obtenida no representa la aprobación del crédito, la cual está sujeta a la evaluación crediticia que debe realizar el Banco. • Este simulador es referencial en base a la información ingresada. • Esta simulación no incluye ITF (Impuesto a las Transacciones Financieras). Consulte el tarifario del producto antes de realizar la simulación. • El seguro de desgravamen se calcula sobre el monto principal del crédito. El costo del seguro es el cobrado por la aseguradora, de acuerdo con las condiciones establecidas por esta. • El cliente puede optar por contratar el/los seguros(s) incluido(s) en la simulación directamente o a través de un corredor de seguros, en tanto posea(n) las mismas condiciones que el/los comercializado(s) por el Banco y cubra(n) al 100% el importe de capital adeudado. • En el caso de incumplimiento en los pagos, se aplicará la tasa de interés moratorio anual establecido. Mayor información visite "Tasas y Tarifas" y/o "Formulas y Ejemplos", publicados en nuestra web • En caso el cliente decida endosar el seguro de desgravamen, se precisa que la póliza endosada deberá ser presentada mediante una solicitud que cumpla con los requisitos y procedimientos establecidos por el Banco, a través de la página web u otro canal que éste ponga a disposición del cliente y el Banco responderá a dicha solicitud dentro del plazo de 20 días calendario posteriores a la presentación de dicha solicitud • Esta información se proporciona de acuerdo con el Reglamento de Gestión de Conducta de Mercado del Sistema Financiero.

Sheet Hoja1 (2)
B5: (SIMULACIÓN)
B6: CRONOGRAMA DE PAGOS
B9: Moneda : | D9: =+Hoja1!C7 -> Soles | F9: Monto del Préstamo : | H9: =+Hoja1!C8 -> 4000
B10: Producto : | D10: Préstamo Personal Sin Garantía | F10: Tasa Efectiva Anual : | H10: =+Hoja1!C11&"%" -> 50%
B11: Fecha de desembolso : | D11: =+Hoja1!C9 -> 2021-11-25 | F11: Plazo (en meses) : | H11: =+Hoja1!C10 -> 48
B12: Mes de Cuota Doble 1 : | D12: =+Hoja1!C14 -> No | F12: Tasa de Costo Efectiva Anual : | H12: =+((1+I12)^12)-1 -> 0.5463178647 | I12: =+RATE(H11,H18,-H9-I13) -> 0.03699078652
B13: Mes de Cuota Doble 2 : | D13: =+Hoja1!C15 -> No | F13: Tasa Seguro de Desgravamen Mensual : | H13: =+IF(Hoja1!C13="Endoso",0,0.18%) -> 0.0018 | I13: =+Simulador!S16 -> 426.7277
B14: Periodo de gracia : | D14: =+Hoja1!C12&" "& "días" -> 90 días
B17: N° | C17: Fecha Vencimiento | D17: Capital | E17: Interes | F17: Interes de Gracia | G17: Seguro Desgravamen | H17: Total Cuota
B18: 1 | C18: =IFERROR(+IF(B18>0,VLOOKUP(B18,Simulador!$A$32:$T$550,3,0)," ")," ") -> 2022-03-23 | D18: =IFERROR(+IF(B18>0,VLOOKUP(B18,Simulador!$A$32:$T$550,13,0)," ")," ") -> 23.07 | E18: =IFERROR(+IF(B18>0,VLOOKUP(B18,Simulador!$A$32:$T$550,14,0)," ")," ") -> 128.15 | F18: =IFERROR(+IF(B18>0,VLOOKUP(B18,Simulador!$A$32:$T$550,15,0)," ")," ") -> 18.44 | G18: =IFERROR(+IF(B18>0,VLOOKUP(B18,Simulador!$A$32:$T$550,19,0)," ")," ") -> 28.8 | H18: =IFERROR(+IF(B18>0,VLOOKUP(B18,Simulador!$A$32:$T$550,20,0)," ")," ") -> 198.46
B19: =IF(B18=0," ",IF(B18>=$H$11,"",B18+1)) -> 2 | C19: =IF($H$11=0," ",IF(B18=$H$11,"TOTALES",+IF(B19>0,VLOOKUP(B19,Simulador!$A$32:$T$550,3,0)," "))) -> 2022-04-23 | D19: =IF($H$11=0," ",IF(B18=$H$11,Simulador!$M$30,+IF(B19>0,VLOOKUP(B19,Simulador!$A$32:$T$550,13,0)," "))) -> 31.51 | E19: =IF($H$11=0," ",IF(B18=$H$11,Simulador!$N$30,+IF(B19>0,VLOOKUP(B19,Simulador!$A$32:$T$550,14,0)," "))) -> 141.31 | F19: =IF($H$11=0," ",IF(B18=$H$11,Simulador!$O$30,+IF(B19>0,VLOOKUP(B19,Simulador!$A$32:$T$550,15,0)," "))) -> 18.44 | G19: =IF($H$11=0," ",IF(B18=$H$11,Simulador!$S$30,+IF(B19>0,VLOOKUP(B19,Simulador!$A$32:$T$550,19,0)," "))) -> 7.2 | H19: =IF($H$11=0," ",IF(B18=$H$11,Simulador!$T$30,+IF(B19>0,VLOOKUP(B19,Simulador!$A$32:$T$550,20,0)," "))) -> 198.46
B20: =IF(B19=0," ",IF(B19>=$H$11,"",B19+1)) -> 3 | C20: =IF($H$11=0," ",IF(B19=$H$11,"TOTALES",+IF(B20>0,VLOOKUP(B20,Simulador!$A$32:$T$550,3,0)," "))) -> 2022-05-23 | D20: =IF($H$11=0," ",IF(B19=$H$11,Simulador!$M$30,+IF(B20>0,VLOOKUP(B20,Simulador!$A$32:$T$550,13,0)," "))) -> 37.23 | E20: =IF($H$11=0," ",IF(B19=$H$11,Simulador!$N$30,+IF(B20>0,VLOOKUP(B20,Simulador!$A$32:$T$550,14,0)," "))) -> 135.59 | F20: =IF($H$11=0," ",IF(B19=$H$11,Simulador!$O$30,+IF(B20>0,VLOOKUP(B20,Simulador!$A$32:$T$550,15,0)," "))) -> 18.44 | G20: =IF($H$11=0," ",IF(B19=$H$11,Simulador!$S$30,+IF(B20>0,VLOOKUP(B20,Simulador!$A$32:$T$550,19,0)," "))) -> 7.2 | H20: =IF($H$11=0," ",IF(B19=$H$11,Simulador!$T$30,+IF(B20>0,VLOOKUP(B20,Simulador!$A$32:$T$550,20,0)," "))) -> 198.46
B21: 4 | C21: =IF($H$11=0," ",IF(B20=$H$11,"TOTALES",+IF(B21>0,VLOOKUP(B21,Simulador!$A$32:$T$550,3,0)," "))) -> 2022-06-23 | D21: =IF($H$11=0," ",IF(B20=$H$11,Simulador!$M$30,+IF(B21>0,VLOOKUP(B21,Simulador!$A$32:$T$550,13,0)," "))) -> 33.96 | E21: =IF($H$11=0," ",IF(B20=$H$11,Simulador!$N$30,+IF(B21>0,VLOOKUP(B21,Simulador!$A$32:$T$550,14,0)," "))) -> 138.86 | F21: =IF($H$11=0," ",IF(B20=$H$11,Simulador!$O$30,+IF(B21>0,VLOOKUP(B21,Simulador!$A$32:$T$550,15,0)," "))) -> 18.44 | G21: =IF($H$11=0," ",IF(B20=$H$11,Simulador!$S$30,+IF(B21>0,VLOOKUP(B21,Simulador!$A$32:$T$550,19,0)," "))) -> 7.2 | H21: =IF($H$11=0," ",IF(B20=$H$11,Simulador!$T$30,+IF(B21>0,VLOOKUP(B21,Simulador!$A$32:$T$550,20,0)," "))) -> 198.46
B22: 5 | C22: =IF($H$11=0," ",IF(B21=$H$11,"TOTALES",+IF(B22>0,VLOOKUP(B22,Simulador!$A$32:$T$550,3,0)," "))) -> 2022-07-23 | D22: =IF($H$11=0," ",IF(B21=$H$11,Simulador!$M$30,+IF(B22>0,VLOOKUP(B22,Simulador!$A$32:$T$550,13,0)," "))) -> 39.68 | E22: =IF($H$11=0," ",IF(B21=$H$11,Simulador!$N$30,+IF(B22>0,VLOOKUP(B22,Simulador!$A$32:$T$550,14,0)," "))) -> 133.14 | F22: =IF($H$11=0," ",IF(B21=$H$11,Simulador!$O$30,+IF(B22>0,VLOOKUP(B22,Simulador!$A$32:$T$550,15,0)," "))) -> 18.44 | G22: =IF($H$11=0," ",IF(B21=$H$11,Simulador!$S$30,+IF(B22>0,VLOOKUP(B22,Simulador!$A$32:$T$550,19,0)," "))) -> 7.2 | H22: =IF($H$11=0," ",IF(B21=$H$11,Simulador!$T$30,+IF(B22>0,VLOOKUP(B22,Simulador!$A$32:$T$550,20,0)," "))) -> 198.46
B23: 6 | C23: =IF($H$11=0," ",IF(B22=$H$11,"TOTALES",+IF(B23>0,VLOOKUP(B23,Simulador!$A$32:$T$550,3,0)," "))) -> 2022-08-23 | D23: =IF($H$11=0," ",IF(B22=$H$11,Simulador!$M$30,+IF(B23>0,VLOOKUP(B23,Simulador!$A$32:$T$550,13,0)," "))) -> 36.57 | E23: =IF($H$11=0," ",IF(B22=$H$11,Simulador!$N$30,+IF(B23>0,VLOOKUP(B23,Simulador!$A$32:$T$550,14,0)," "))) -> 136.25 | F23: =IF($H$11=0," ",IF(B22=$H$11,Simulador!$O$30,+IF(B23>0,VLOOKUP(B23,Simulador!$A$32:$T$550,15,0)," "))) -> 18.44 | G23: =IF($H$11=0," ",IF(B22=$H$11,Simulador!$S$30,+IF(B23>0,VLOOKUP(B23,Simulador!$A$32:$T$550,19,0)," "))) -> 7.2 | H23: =IF($H$11=0," ",IF(B22=$H$11,Simulador!$T$30,+IF(B23>0,VLOOKUP(B23,Simulador!$A$32:$T$550,20,0)," "))) -> 198.46
B24: 7 | C24: =IF($H$11=0," ",IF(B23=$H$11,"TOTALES",+IF(B24>0,VLOOKUP(B24,Simulador!$A$32:$T$550,3,0)," "))) -> 2022-09-23 | D24: =IF($H$11=0," ",IF(B23=$H$11,Simulador!$M$30,+IF(B24>0,VLOOKUP(B24,Simulador!$A$32:$T$550,13,0)," "))) -> 37.87 | E24: =IF($H$11=0," ",IF(B23=$H$11,Simulador!$N$30,+IF(B24>0,VLOOKUP(B24,Simulador!$A$32:$T$550,14,0)," "))) -> 134.95 | F24: =IF($H$11=0," ",IF(B23=$H$11,Simulador!$O$30,+IF(B24>0,VLOOKUP(B24,Simulador!$A$32:$T$550,15,0)," "))) -> 18.44 | G24: =IF($H$11=0," ",IF(B23=$H$11,Simulador!$S$30,+IF(B24>0,VLOOKUP(B24,Simulador!$A$32:$T$550,19,0)," "))) -> 7.2 | H24: =IF($H$11=0," ",IF(B23=$H$11,Simulador!$T$30,+IF(B24>0,VLOOKUP(B24,Simulador!$A$32:$T$550,20,0)," "))) -> 198.46
B25: 8 | C25: =IF($H$11=0," ",IF(B24=$H$11,"TOTALES",+IF(B25>0,VLOOKUP(B25,Simulador!$A$32:$T$550,3,0)," "))) -> 2022-10-23 | D25: =IF($H$11=0," ",IF(B24=$H$11,Simulador!$M$30,+IF(B25>0,VLOOKUP(B25,Simulador!$A$32:$T$550,13,0)," "))) -> 43.6 | E25: =IF($H$11=0," ",IF(B24=$H$11,Simulador!$N$30,+IF(B25>0,VLOOKUP(B25,Simulador!$A$32:$T$550,14,0)," "))) -> 129.22 | F25: =IF($H$11=0," ",IF(B24=$H$11,Simulador!$O$30,+IF(B25>0,VLOOKUP(B25,Simulador!$A$32:$T$550,15,0)," "))) -> 18.44 | G25: =IF($H$11=0," ",IF(B24=$H$11,Simulador!$S$30,+IF(B25>0,VLOOKUP(B25,Simulador!$A$32:$T$550,19,0)," "))) -> 7.2 | H25: =IF($H$11=0," ",IF(B24=$H$11,Simulador!$T$30,+IF(B25>0,VLOOKUP(B25,Simulador!$A$32:$T$550,20,0)," "))) -> 198.46
B26: 9 | C26: =IF($H$11=0," ",IF(B25=$H$11,"TOTALES",+IF(B26>0,VLOOKUP(B26,Simulador!$A$32:$T$550,3,0)," "))) -> 2022-11-23 | D26: =IF($H$11=0," ",IF(B25=$H$11,Simulador!$M$30,+IF(B26>0,VLOOKUP(B26,Simulador!$A$32:$T$550,13,0)," "))) -> 40.77 | E26: =IF($H$11=0," ",IF(B25=$H$11,Simulador!$N$30,+IF(B26>0,VLOOKUP(B26,Simulador!$A$32:$T$550,14,0)," "))) -> 132.05 | F26: =IF($H$11=0," ",IF(B25=$H$11,Simulador!$O$30,+IF(B26>0,VLOOKUP(B26,Simulador!$A$32:$T$550,15,0)," "))) -> 18.44 | G26: =IF($H$11=0," ",IF(B25=$H$11,Simulador!$S$30,+IF(B26>0,VLOOKUP(B26,Simulador!$A$32:$T$550,19,0)," "))) -> 7.2 | H26: =IF($H$11=0," ",IF(B25=$H$11,Simulador!$T$30,+IF(B26>0,VLOOKUP(B26,Simulador!$A$32:$T$550,20,0)," "))) -> 198.46
B27: 10 | C27: =IF($H$11=0," ",IF(B26=$H$11,"TOTALES",+IF(B27>0,VLOOKUP(B27,Simulador!$A$32:$T$550,3,0)," "))) -> 2022-12-23 | D27: =IF($H$11=0," ",IF(B26=$H$11,Simulador!$M$30,+IF(B27>0,VLOOKUP(B27,Simulador!$A$32:$T$550,13,0)," "))) -> 46.5 | E27: =IF($H$11=0," ",IF(B26=$H$11,Simulador!$N$30,+IF(B27>0,VLOOKUP(B27,Simulador!$A$32:$T$550,14,0)," "))) -> 126.32 | F27: =IF($H$11=0," ",IF(B26=$H$11,Simulador!$O$30,+IF(B27>0,VLOOKUP(B27,Simulador!$A$32:$T$550,15,0)," "))) -> 18.44 | G27: =IF($H$11=0," ",IF(B26=$H$11,Simulador!$S$30,+IF(B27>0,VLOOKUP(B27,Simulador!$A$32:$T$550,19,0)," "))) -> 7.2 | H27: =IF($H$11=0," ",IF(B26=$H$11,Simulador!$T$30,+IF(B27>0,VLOOKUP(B27,Simulador!$A$32:$T$550,20,0)," "))) -> 198.46
B28: 11 | C28: =IF($H$11=0," ",IF(B27=$H$11,"TOTALES",+IF(B28>0,VLOOKUP(B28,Simulador!$A$32:$T$550,3,0)," "))) -> 2023-01-23 | D28: =IF($H$11=0," ",IF(B27=$H$11,Simulador!$M$30,+IF(B28>0,VLOOKUP(B28,Simulador!$A$32:$T$550,13,0)," "))) -> 43.87 | E28: =IF($H$11=0," ",IF(B27=$H$11,Simulador!$N$30,+IF(B28>0,VLOOKUP(B28,Simulador!$A$32:$T$550,14,0)," "))) -> 128.95 | F28: =IF($H$11=0," ",IF(B27=$H$11,Simulador!$O$30,+IF(B28>0,VLOOKUP(B28,Simulador!$A$32:$T$550,15,0)," "))) -> 18.44 | G28: =IF($H$11=0," ",IF(B27=$H$11,Simulador!$S$30,+IF(B28>0,VLOOKUP(B28,Simulador!$A$32:$T$550,19,0)," "))) -> 7.2 | H28: =IF($H$11=0," ",IF(B27=$H$11,Simulador!$T$30,+IF(B28>0,VLOOKUP(B28,Simulador!$A$32:$T$550,20,0)," "))) -> 198.46
B29: 12 | C29: =IF($H$11=0," ",IF(B28=$H$11,"TOTALES",+IF(B29>0,VLOOKUP(B29,Simulador!$A$32:$T$550,3,0)," "))) -> 2023-02-23 | D29: =IF($H$11=0," ",IF(B28=$H$11,Simulador!$M$30,+IF(B29>0,VLOOKUP(B29,Simulador!$A$32:$T$550,13,0)," "))) -> 45.43 | E29: =IF($H$11=0," ",IF(B28=$H$11,Simulador!$N$30,+IF(B29>0,VLOOKUP(B29,Simulador!$A$32:$T$550,14,0)," "))) -> 127.39 | F29: =IF($H$11=0," ",IF(B28=$H$11,Simulador!$O$30,+IF(B29>0,VLOOKUP(B29,Simulador!$A$32:$T$550,15,0)," "))) -> 18.44 | G29: =IF($H$11=0," ",IF(B28=$H$11,Simulador!$S$30,+IF(B29>0,VLOOKUP(B29,Simulador!$A$32:$T$550,19,0)," "))) -> 7.2 | H29: =IF($H$11=0," ",IF(B28=$H$11,Simulador!$T$30,+IF(B29>0,VLOOKUP(B29,Simulador!$A$32:$T$550,20,0)," "))) -> 198.46
B30: 13 | C30: =IF($H$11=0," ",IF(B29=$H$11,"TOTALES",+IF(B30>0,VLOOKUP(B30,Simulador!$A$32:$T$550,3,0)," "))) -> 2023-03-23 | D30: =IF($H$11=0," ",IF(B29=$H$11,Simulador!$M$30,+IF(B30>0,VLOOKUP(B30,Simulador!$A$32:$T$550,13,0)," "))) -> 59.4 | E30: =IF($H$11=0," ",IF(B29=$H$11,Simulador!$N$30,+IF(B30>0,VLOOKUP(B30,Simulador!$A$32:$T$550,14,0)," "))) -> 113.42 | F30: =IF($H$11=0," ",IF(B29=$H$11,Simulador!$O$30,+IF(B30>0,VLOOKUP(B30,Simulador!$A$32:$T$550,15,0)," "))) -> 18.44 | G30: =IF($H$11=0," ",IF(B29=$H$11,Simulador!$S$30,+IF(B30>0,VLOOKUP(B30,Simulador!$A$32:$T$550,19,0)," "))) -> 7.2 | H30: =IF($H$11=0," ",IF(B29=$H$11,Simulador!$T$30,+IF(B30>0,VLOOKUP(B30,Simulador!$A$32:$T$550,20,0)," "))) -> 198.46
B31: 14 | C31: =IF($H$11=0," ",IF(B30=$H$11,"TOTALES",+IF(B31>0,VLOOKUP(B31,Simulador!$A$32:$T$550,3,0)," "))) -> 2023-04-23 | D31: =IF($H$11=0," ",IF(B30=$H$11,Simulador!$M$30,+IF(B31>0,VLOOKUP(B31,Simulador!$A$32:$T$550,13,0)," "))) -> 49.15 | E31: =IF($H$11=0," ",IF(B30=$H$11,Simulador!$N$30,+IF(B31>0,VLOOKUP(B31,Simulador!$A$32:$T$550,14,0)," "))) -> 123.67 | F31: =IF($H$11=0," ",IF(B30=$H$11,Simulador!$O$30,+IF(B31>0,VLOOKUP(B31,Simulador!$A$32:$T$550,15,0)," "))) -> 18.44 | G31: =IF($H$11=0," ",IF(B30=$H$11,Simulador!$S$30,+IF(B31>0,VLOOKUP(B31,Simulador!$A$32:$T$550,19,0)," "))) -> 7.2 | H31: =IF($H$11=0," ",IF(B30=$H$11,Simulador!$T$30,+IF(B31>0,VLOOKUP(B31,Simulador!$A$32:$T$550,20,0)," "))) -> 198.46
B32: 15 | C32: =IF($H$11=0," ",IF(B31=$H$11,"TOTALES",+IF(B32>0,VLOOKUP(B32,Simulador!$A$32:$T$550,3,0)," "))) -> 2023-05-23 | D32: =IF($H$11=0," ",IF(B31=$H$11,Simulador!$M$30,+IF(B32>0,VLOOKUP(B32,Simulador!$A$32:$T$550,13,0)," "))) -> 54.9 | E32: =IF($H$11=0," ",IF(B31=$H$11,Simulador!$N$30,+IF(B32>0,VLOOKUP(B32,Simulador!$A$32:$T$550,14,0)," "))) -> 117.92 | F32: =IF($H$11=0," ",IF(B31=$H$11,Simulador!$O$30,+IF(B32>0,VLOOKUP(B32,Simulador!$A$32:$T$550,15,0)," "))) -> 18.44 | G32: =IF($H$11=0," ",IF(B31=$H$11,Simulador!$S$30,+IF(B32>0,VLOOKUP(B32,Simulador!$A$32:$T$550,19,0)," "))) -> 7.2 | H32: =IF($H$11=0," ",IF(B31=$H$11,Simulador!$T$30,+IF(B32>0,VLOOKUP(B32,Simulador!$A$32:$T$550,20,0)," "))) -> 198.46
B33: 16 | C33: =IF($H$11=0," ",IF(B32=$H$11,"TOTALES",+IF(B33>0,VLOOKUP(B33,Simulador!$A$32:$T$550,3,0)," "))) -> 2023-06-23 | D33: =IF($H$11=0," ",IF(B32=$H$11,Simulador!$M$30,+IF(B33>0,VLOOKUP(B33,Simulador!$A$32:$T$550,13,0)," "))) -> 52.85 | E33: =IF($H$11=0," ",IF(B32=$H$11,Simulador!$N$30,+IF(B33>0,VLOOKUP(B33,Simulador!$A$32:$T$550,14,0)," "))) -> 119.97 | F33: =IF($H$11=0," ",IF(B32=$H$11,Simulador!$O$30,+IF(B33>0,VLOOKUP(B33,Simulador!$A$32:$T$550,15,0)," "))) -> 18.44 | G33: =IF($H$11=0," ",IF(B32=$H$11,Simulador!$S$30,+IF(B33>0,VLOOKUP(B33,Simulador!$A$32:$T$550,19,0)," "))) -> 7.2 | H33: =IF($H$11=0," ",IF(B32=$H$11,Simulador!$T$30,+IF(B33>0,VLOOKUP(B33,Simulador!$A$32:$T$550,20,0)," "))) -> 198.46
B34: 17 | C34: =IF($H$11=0," ",IF(B33=$H$11,"TOTALES",+IF(B34>0,VLOOKUP(B34,Simulador!$A$32:$T$550,3,0)," "))) -> 2023-07-23 | D34: =IF($H$11=0," ",IF(B33=$H$11,Simulador!$M$30,+IF(B34>0,VLOOKUP(B34,Simulador!$A$32:$T$550,13,0)," "))) -> 58.6 | E34: =IF($H$11=0," ",IF(B33=$H$11,Simulador!$N$30,+IF(B34>0,VLOOKUP(B34,Simulador!$A$32:$T$550,14,0)," "))) -> 114.22 | F34: =IF($H$11=0," ",IF(B33=$H$11,Simulador!$O$30,+IF(B34>0,VLOOKUP(B34,Simulador!$A$32:$T$550,15,0)," "))) -> 18.44 | G34: =IF($H$11=0," ",IF(B33=$H$11,Simulador!$S$30,+IF(B34>0,VLOOKUP(B34,Simulador!$A$32:$T$550,19,0)," "))) -> 7.2 | H34: =IF($H$11=0," ",IF(B33=$H$11,Simulador!$T$30,+IF(B34>0,VLOOKUP(B34,Simulador!$A$32:$T$550,20,0)," "))) -> 198.46
B35: 18 | C35: =IF($H$11=0," ",IF(B34=$H$11,"TOTALES",+IF(B35>0,VLOOKUP(B35,Simulador!$A$32:$T$550,3,0)," "))) -> 2023-08-23 | D35: =IF($H$11=0," ",IF(B34=$H$11,Simulador!$M$30,+IF(B35>0,VLOOKUP(B35,Simulador!$A$32:$T$550,13,0)," "))) -> 56.81 | E35: =IF($H$11=0," ",IF(B34=$H$11,Simulador!$N$30,+IF(B35>0,VLOOKUP(B35,Simulador!$A$32:$T$550,14,0)," "))) -> 116.01 | F35: =IF($H$11=0," ",IF(B34=$H$11,Simulador!$O$30,+IF(B35>0,VLOOKUP(B35,Simulador!$A$32:$T$550,15,0)," "))) -> 18.44 | G35: =IF($H$11=0," ",IF(B34=$H$11,Simulador!$S$30,+IF(B35>0,VLOOKUP(B35,Simulador!$A$32:$T$550,19,0)," "))) -> 7.2 | H35: =IF($H$11=0," ",IF(B34=$H$11,Simulador!$T$30,+IF(B35>0,VLOOKUP(B35,Simulador!$A$32:$T$550,20,0)," "))) -> 198.46
B36: 19 | C36: =IF($H$11=0," ",IF(B35=$H$11,"TOTALES",+IF(B36>0,VLOOKUP(B36,Simulador!$A$32:$T$550,3,0)," "))) -> 2023-09-23 | D36: =IF($H$11=0," ",IF(B35=$H$11,Simulador!$M$30,+IF(B36>0,VLOOKUP(B36,Simulador!$A$32:$T$550,13,0)," "))) -> 58.83 | E36: =IF($H$11=0," ",IF(B35=$H$11,Simulador!$N$30,+IF(B36>0,VLOOKUP(B36,Simulador!$A$32:$T$550,14,0)," "))) -> 113.99 | F36: =IF($H$11=0," ",IF(B35=$H$11,Simulador!$O$30,+IF(B36>0,VLOOKUP(B36,Simulador!$A$32:$T$550,15,0)," "))) -> 18.44 | G36: =IF($H$11=0," ",IF(B35=$H$11,Simulador!$S$30,+IF(B36>0,VLOOKUP(B36,Simulador!$A$32:$T$550,19,0)," "))) -> 7.2 | H36: =IF($H$11=0," ",IF(B35=$H$11,Simulador!$T$30,+IF(B36>0,VLOOKUP(B36,Simulador!$A$32:$T$550,20,0)," "))) -> 198.46
B37: 20 | C37: =IF($H$11=0," ",IF(B36=$H$11,"TOTALES",+IF(B37>0,VLOOKUP(B37,Simulador!$A$32:$T$550,3,0)," "))) -> 2023-10-23 | D37: =IF($H$11=0," ",IF(B36=$H$11,Simulador!$M$30,+IF(B37>0,VLOOKUP(B37,Simulador!$A$32:$T$550,13,0)," "))) -> 64.59 | E37: =IF($H$11=0," ",IF(B36=$H$11,Simulador!$N$30,+IF(B37>0,VLOOKUP(B37,Simulador!$A$32:$T$550,14,0)," "))) -> 108.23 | F37: =IF($H$11=0," ",IF(B36=$H$11,Simulador!$O$30,+IF(B37>0,VLOOKUP(B37,Simulador!$A$32:$T$550,15,0)," "))) -> 18.44 | G37: =IF($H$11=0," ",IF(B36=$H$11,Simulador!$S$30,+IF(B37>0,VLOOKUP(B37,Simulador!$A$32:$T$550,19,0)," "))) -> 7.2 | H37: =IF($H$11=0," ",IF(B36=$H$11,Simulador!$T$30,+IF(B37>0,VLOOKUP(B37,Simulador!$A$32:$T$550,20,0)," "))) -> 198.46
B38: 21 | C38: =IF($H$11=0," ",IF(B37=$H$11,"TOTALES",+IF(B38>0,VLOOKUP(B38,Simulador!$A$32:$T$550,3,0)," "))) -> 2023-11-23 | D38: =IF($H$11=0," ",IF(B37=$H$11,Simulador!$M$30,+IF(B38>0,VLOOKUP(B38,Simulador!$A$32:$T$550,13,0)," "))) -> 63.21 | E38: =IF($H$11=0," ",IF(B37=$H$11,Simulador!$N$30,+IF(B38>0,VLOOKUP(B38,Simulador!$A$32:$T$550,14,0)," "))) -> 109.61 | F38: =IF($H$11=0," ",IF(B37=$H$11,Simulador!$O$30,+IF(B38>0,VLOOKUP(B38,Simulador!$A$32:$T$550,15,0)," "))) -> 18.44 | G38: =IF($H$11=0," ",IF(B37=$H$11,Simulador!$S$30,+IF(B38>0,VLOOKUP(B38,Simulador!$A$32:$T$550,19,0)," "))) -> 7.2 | H38: =IF($H$11=0," ",IF(B37=$H$11,Simulador!$T$30,+IF(B38>0,VLOOKUP(B38,Simulador!$A$32:$T$550,20,0)," "))) -> 198.46
B39: 22 | C39: =IF($H$11=0," ",IF(B38=$H$11,"TOTALES",+IF(B39>0,VLOOKUP(B39,Simulador!$A$32:$T$550,3,0)," "))) -> 2023-12-23 | D39: =IF($H$11=0," ",IF(B38=$H$11,Simulador!$M$30,+IF(B39>0,VLOOKUP(B39,Simulador!$A$32:$T$550,13,0)," "))) -> 68.98 | E39: =IF($H$11=0," ",IF(B38=$H$11,Simulador!$N$30,+IF(B39>0,VLOOKUP(B39,Simulador!$A$32:$T$550,14,0)," "))) -> 103.84 | F39: =IF($H$11=0," ",IF(B38=$H$11,Simulador!$O$30,+IF(B39>0,VLOOKUP(B39,Simulador!$A$32:$T$550,15,0)," "))) -> 18.44 | G39: =IF($H$11=0," ",IF(B38=$H$11,Simulador!$S$30,+IF(B39>0,VLOOKUP(B39,Simulador!$A$32:$T$550,19,0)," "))) -> 7.2 | H39: =IF($H$11=0," ",IF(B38=$H$11,Simulador!$T$30,+IF(B39>0,VLOOKUP(B39,Simulador!$A$32:$T$550,20,0)," "))) -> 198.46
B40: 23 | C40: =IF($H$11=0," ",IF(B39=$H$11,"TOTALES",+IF(B40>0,VLOOKUP(B40,Simulador!$A$32:$T$550,3,0)," "))) -> 2024-01-23 | D40: =IF($H$11=0," ",IF(B39=$H$11,Simulador!$M$30,+IF(B40>0,VLOOKUP(B40,Simulador!$A$32:$T$550,13,0)," "))) -> 67.91 | E40: =IF($H$11=0," ",IF(B39=$H$11,Simulador!$N$30,+IF(B40>0,VLOOKUP(B40,Simulador!$A$32:$T$550,14,0)," "))) -> 104.91 | F40: =IF($H$11=0," ",IF(B39=$H$11,Simulador!$O$30,+IF(B40>0,VLOOKUP(B40,Simulador!$A$32:$T$550,15,0)," "))) -> 18.44 | G40: =IF($H$11=0," ",IF(B39=$H$11,Simulador!$S$30,+IF(B40>0,VLOOKUP(B40,Simulador!$A$32:$T$550,19,0)," "))) -> 7.2 | H40: =IF($H$11=0," ",IF(B39=$H$11,Simulador!$T$30,+IF(B40>0,VLOOKUP(B40,Simulador!$A$32:$T$550,20,0)," "))) -> 198.46
B41: 24 | C41: =IF($H$11=0," ",IF(B40=$H$11,"TOTALES",+IF(B41>0,VLOOKUP(B41,Simulador!$A$32:$T$550,3,0)," "))) -> 2024-02-23 | D41: =IF($H$11=0," ",IF(B40=$H$11,Simulador!$M$30,+IF(B41>0,VLOOKUP(B41,Simulador!$A$32:$T$550,13,0)," "))) -> 70.32 | E41: =IF($H$11=0," ",IF(B40=$H$11,Simulador!$N$30,+IF(B41>0,VLOOKUP(B41,Simulador!$A$32:$T$550,14,0)," "))) -> 102.5 | F41: =IF($H$11=0," ",IF(B40=$H$11,Simulador!$O$30,+IF(B41>0,VLOOKUP(B41,Simulador!$A$32:$T$550,15,0)," "))) -> 18.44 | G41: =IF($H$11=0," ",IF(B40=$H$11,Simulador!$S$30,+IF(B41>0,VLOOKUP(B41,Simulador!$A$32:$T$550,19,0)," "))) -> 7.2 | H41: =IF($H$11=0," ",IF(B40=$H$11,Simulador!$T$30,+IF(B41>0,VLOOKUP(B41,Simulador!$A$32:$T$550,20,0)," "))) -> 198.46
B42: 25 | C42: =IF($H$11=0," ",IF(B41=$H$11,"TOTALES",+IF(B42>0,VLOOKUP(B42,Simulador!$A$32:$T$550,3,0)," "))) -> 2024-03-23 | D42: =IF($H$11=0," ",IF(B41=$H$11,Simulador!$M$30,+IF(B42>0,VLOOKUP(B42,Simulador!$A$32:$T$550,13,0)," "))) -> 79.38 | E42: =IF($H$11=0," ",IF(B41=$H$11,Simulador!$N$30,+IF(B42>0,VLOOKUP(B42,Simulador!$A$32:$T$550,14,0)," "))) -> 93.44 | F42: =IF($H$11=0," ",IF(B41=$H$11,Simulador!$O$30,+IF(B42>0,VLOOKUP(B42,Simulador!$A$32:$T$550,15,0)," "))) -> 18.44 | G42: =IF($H$11=0," ",IF(B41=$H$11,Simulador!$S$30,+IF(B42>0,VLOOKUP(B42,Simulador!$A$32:$T$550,19,0)," "))) -> 7.2 | H42: =IF($H$11=0," ",IF(B41=$H$11,Simulador!$T$30,+IF(B42>0,VLOOKUP(B42,Simulador!$A$32:$T$550,20,0)," "))) -> 198.46
B43: 26 | C43: =IF($H$11=0," ",IF(B42=$H$11,"TOTALES",+IF(B43>0,VLOOKUP(B43,Simulador!$A$32:$T$550,3,0)," "))) -> 2024-04-23 | D43: =IF($H$11=0," ",IF(B42=$H$11,Simulador!$M$30,+IF(B43>0,VLOOKUP(B43,Simulador!$A$32:$T$550,13,0)," "))) -> 75.64 | E43: =IF($H$11=0," ",IF(B42=$H$11,Simulador!$N$30,+IF(B43>0,VLOOKUP(B43,Simulador!$A$32:$T$550,14,0)," "))) -> 97.18 | F43: =IF($H$11=0," ",IF(B42=$H$11,Simulador!$O$30,+IF(B43>0,VLOOKUP(B43,Simulador!$A$32:$T$550,15,0)," "))) -> 18.44 | G43: =IF($H$11=0," ",IF(B42=$H$11,Simulador!$S$30,+IF(B43>0,VLOOKUP(B43,Simulador!$A$32:$T$550,19,0)," "))) -> 7.2 | H43: =IF($H$11=0," ",IF(B42=$H$11,Simulador!$T$30,+IF(B43>0,VLOOKUP(B43,Simulador!$A$32:$T$550,20,0)," "))) -> 198.46
B44: 27 | C44: =IF($H$11=0," ",IF(B43=$H$11,"TOTALES",+IF(B44>0,VLOOKUP(B44,Simulador!$A$32:$T$550,3,0)," "))) -> 2024-05-23 | D44: =IF($H$11=0," ",IF(B43=$H$11,Simulador!$M$30,+IF(B44>0,VLOOKUP(B44,Simulador!$A$32:$T$550,13,0)," "))) -> 81.43 | E44: =IF($H$11=0," ",IF(B43=$H$11,Simulador!$N$30,+IF(B44>0,VLOOKUP(B44,Simulador!$A$32:$T$550,14,0)," "))) -> 91.39 | F44: =IF($H$11=0," ",IF(B43=$H$11,Simulador!$O$30,+IF(B44>0,VLOOKUP(B44,Simulador!$A$32:$T$550,15,0)," "))) -> 18.44 | G44: =IF($H$11=0," ",IF(B43=$H$11,Simulador!$S$30,+IF(B44>0,VLOOKUP(B44,Simulador!$A$32:$T$550,19,0)," "))) -> 7.2 | H44: =IF($H$11=0," ",IF(B43=$H$11,Simulador!$T$30,+IF(B44>0,VLOOKUP(B44,Simulador!$A$32:$T$550,20,0)," "))) -> 198.46
B45: 28 | C45: =IF($H$11=0," ",IF(B44=$H$11,"TOTALES",+IF(B45>0,VLOOKUP(B45,Simulador!$A$32:$T$550,3,0)," "))) -> 2024-06-23 | D45: =IF($H$11=0," ",IF(B44=$H$11,Simulador!$M$30,+IF(B45>0,VLOOKUP(B45,Simulador!$A$32:$T$550,13,0)," "))) -> 81.22 | E45: =IF($H$11=0," ",IF(B44=$H$11,Simulador!$N$30,+IF(B45>0,VLOOKUP(B45,Simulador!$A$32:$T$550,14,0)," "))) -> 91.6 | F45: =IF($H$11=0," ",IF(B44=$H$11,Simulador!$O$30,+IF(B45>0,VLOOKUP(B45,Simulador!$A$32:$T$550,15,0)," "))) -> 18.44 | G45: =IF($H$11=0," ",IF(B44=$H$11,Simulador!$S$30,+IF(B45>0,VLOOKUP(B45,Simulador!$A$32:$T$550,19,0)," "))) -> 7.2 | H45: =IF($H$11=0," ",IF(B44=$H$11,Simulador!$T$30,+IF(B45>0,VLOOKUP(B45,Simulador!$A$32:$T$550,20,0)," "))) -> 198.46
B46: 29 | C46: =IF($H$11=0," ",IF(B45=$H$11,"TOTALES",+IF(B46>0,VLOOKUP(B46,Simulador!$A$32:$T$550,3,0)," "))) -> 2024-07-23 | D46: =IF($H$11=0," ",IF(B45=$H$11,Simulador!$M$30,+IF(B46>0,VLOOKUP(B46,Simulador!$A$32:$T$550,13,0)," "))) -> 87.02 | E46: =IF($H$11=0," ",IF(B45=$H$11,Simulador!$N$30,+IF(B46>0,VLOOKUP(B46,Simulador!$A$32:$T$550,14,0)," "))) -> 85.8 | F46: =IF($H$11=0," ",IF(B45=$H$11,Simulador!$O$30,+IF(B46>0,VLOOKUP(B46,Simulador!$A$32:$T$550,15,0)," "))) -> 18.44 | G46: =IF($H$11=0," ",IF(B45=$H$11,Simulador!$S$30,+IF(B46>0,VLOOKUP(B46,Simulador!$A$32:$T$550,19,0)," "))) -> 7.2 | H46: =IF($H$11=0," ",IF(B45=$H$11,Simulador!$T$30,+IF(B46>0,VLOOKUP(B46,Simulador!$A$32:$T$550,20,0)," "))) -> 198.46
B47: 30 | C47: =IF($H$11=0," ",IF(B46=$H$11,"TOTALES",+IF(B47>0,VLOOKUP(B47,Simulador!$A$32:$T$550,3,0)," "))) -> 2024-08-23 | D47: =IF($H$11=0," ",IF(B46=$H$11,Simulador!$M$30,+IF(B47>0,VLOOKUP(B47,Simulador!$A$32:$T$550,13,0)," "))) -> 87.2 | E47: =IF($H$11=0," ",IF(B46=$H$11,Simulador!$N$30,+IF(B47>0,VLOOKUP(B47,Simulador!$A$32:$T$550,14,0)," "))) -> 85.62 | F47: =IF($H$11=0," ",IF(B46=$H$11,Simulador!$O$30,+IF(B47>0,VLOOKUP(B47,Simulador!$A$32:$T$550,15,0)," "))) -> 18.44 | G47: =IF($H$11=0," ",IF(B46=$H$11,Simulador!$S$30,+IF(B47>0,VLOOKUP(B47,Simulador!$A$32:$T$550,19,0)," "))) -> 7.2 | H47: =IF($H$11=0," ",IF(B46=$H$11,Simulador!$T$30,+IF(B47>0,VLOOKUP(B47,Simulador!$A$32:$T$550,20,0)," "))) -> 198.46
B48: 31 | C48: =IF($H$11=0," ",IF(B47=$H$11,"TOTALES",+IF(B48>0,VLOOKUP(B48,Simulador!$A$32:$T$550,3,0)," "))) -> 2024-09-23 | D48: =IF($H$11=0," ",IF(B47=$H$11,Simulador!$M$30,+IF(B48>0,VLOOKUP(B48,Simulador!$A$32:$T$550,13,0)," "))) -> 90.3 | E48: =IF($H$11=0," ",IF(B47=$H$11,Simulador!$N$30,+IF(B48>0,VLOOKUP(B48,Simulador!$A$32:$T$550,14,0)," "))) -> 82.52 | F48: =IF($H$11=0," ",IF(B47=$H$11,Simulador!$O$30,+IF(B48>0,VLOOKUP(B48,Simulador!$A$32:$T$550,15,0)," "))) -> 18.44 | G48: =IF($H$11=0," ",IF(B47=$H$11,Simulador!$S$30,+IF(B48>0,VLOOKUP(B48,Simulador!$A$32:$T$550,19,0)," "))) -> 7.2 | H48: =IF($H$11=0," ",IF(B47=$H$11,Simulador!$T$30,+IF(B48>0,VLOOKUP(B48,Simulador!$A$32:$T$550,20,0)," "))) -> 198.46
B49: 32 | C49: =IF($H$11=0," ",IF(B48=$H$11,"TOTALES",+IF(B49>0,VLOOKUP(B49,Simulador!$A$32:$T$550,3,0)," "))) -> 2024-10-23 | D49: =IF($H$11=0," ",IF(B48=$H$11,Simulador!$M$30,+IF(B49>0,VLOOKUP(B49,Simulador!$A$32:$T$550,13,0)," "))) -> 96.11 | E49: =IF($H$11=0," ",IF(B48=$H$11,Simulador!$N$30,+IF(B49>0,VLOOKUP(B49,Simulador!$A$32:$T$550,14,0)," "))) -> 76.71 | F49: =IF($H$11=0," ",IF(B48=$H$11,Simulador!$O$30,+IF(B49>0,VLOOKUP(B49,Simulador!$A$32:$T$550,15,0)," "))) -> 18.44 | G49: =IF($H$11=0," ",IF(B48=$H$11,Simulador!$S$30,+IF(B49>0,VLOOKUP(B49,Simulador!$A$32:$T$550,19,0)," "))) -> 7.2 | H49: =IF($H$11=0," ",IF(B48=$H$11,Simulador!$T$30,+IF(B49>0,VLOOKUP(B49,Simulador!$A$32:$T$550,20,0)," "))) -> 198.46
B50: 33 | C50: =IF($H$11=0," ",IF(B49=$H$11,"TOTALES",+IF(B50>0,VLOOKUP(B50,Simulador!$A$32:$T$550,3,0)," "))) -> 2024-11-23 | D50: =IF($H$11=0," ",IF(B49=$H$11,Simulador!$M$30,+IF(B50>0,VLOOKUP(B50,Simulador!$A$32:$T$550,13,0)," "))) -> 96.92 | E50: =IF($H$11=0," ",IF(B49=$H$11,Simulador!$N$30,+IF(B50>0,VLOOKUP(B50,Simulador!$A$32:$T$550,14,0)," "))) -> 75.9 | F50: =IF($H$11=0," ",IF(B49=$H$11,Simulador!$O$30,+IF(B50>0,VLOOKUP(B50,Simulador!$A$32:$T$550,15,0)," "))) -> 18.44 | G50: =IF($H$11=0," ",IF(B49=$H$11,Simulador!$S$30,+IF(B50>0,VLOOKUP(B50,Simulador!$A$32:$T$550,19,0)," "))) -> 7.2 | H50: =IF($H$11=0," ",IF(B49=$H$11,Simulador!$T$30,+IF(B50>0,VLOOKUP(B50,Simulador!$A$32:$T$550,20,0)," "))) -> 198.46
B51: 34 | C51: =IF($H$11=0," ",IF(B50=$H$11,"TOTALES",+IF(B51>0,VLOOKUP(B51,Simulador!$A$32:$T$550,3,0)," "))) -> 2024-12-23 | D51: =IF($H$11=0," ",IF(B50=$H$11,Simulador!$M$30,+IF(B51>0,VLOOKUP(B51,Simulador!$A$32:$T$550,13,0)," "))) -> 102.74 | E51: =IF($H$11=0," ",IF(B50=$H$11,Simulador!$N$30,+IF(B51>0,VLOOKUP(B51,Simulador!$A$32:$T$550,14,0)," "))) -> 70.08 | F51: =IF($H$11=0," ",IF(B50=$H$11,Simulador!$O$30,+IF(B51>0,VLOOKUP(B51,Simulador!$A$32:$T$550,15,0)," "))) -> 18.44 | G51: =IF($H$11=0," ",IF(B50=$H$11,Simulador!$S$30,+IF(B51>0,VLOOKUP(B51,Simulador!$A$32:$T$550,19,0)," "))) -> 7.2 | H51: =IF($H$11=0," ",IF(B50=$H$11,Simulador!$T$30,+IF(B51>0,VLOOKUP(B51,Simulador!$A$32:$T$550,20,0)," "))) -> 198.46
B52: 35 | C52: =IF($H$11=0," ",IF(B51=$H$11,"TOTALES",+IF(B52>0,VLOOKUP(B52,Simulador!$A$32:$T$550,3,0)," "))) -> 2025-01-23 | D52: =IF($H$11=0," ",IF(B51=$H$11,Simulador!$M$30,+IF(B52>0,VLOOKUP(B52,Simulador!$A$32:$T$550,13,0)," "))) -> 104.02 | E52: =IF($H$11=0," ",IF(B51=$H$11,Simulador!$N$30,+IF(B52>0,VLOOKUP(B52,Simulador!$A$32:$T$550,14,0)," "))) -> 68.8 | F52: =IF($H$11=0," ",IF(B51=$H$11,Simulador!$O$30,+IF(B52>0,VLOOKUP(B52,Simulador!$A$32:$T$550,15,0)," "))) -> 18.44 | G52: =IF($H$11=0," ",IF(B51=$H$11,Simulador!$S$30,+IF(B52>0,VLOOKUP(B52,Simulador!$A$32:$T$550,19,0)," "))) -> 7.2 | H52: =IF($H$11=0," ",IF(B51=$H$11,Simulador!$T$30,+IF(B52>0,VLOOKUP(B52,Simulador!$A$32:$T$550,20,0)," "))) -> 198.46
B53: 36 | C53: =IF($H$11=0," ",IF(B52=$H$11,"TOTALES",+IF(B53>0,VLOOKUP(B53,Simulador!$A$32:$T$550,3,0)," "))) -> 2025-02-23 | D53: =IF($H$11=0," ",IF(B52=$H$11,Simulador!$M$30,+IF(B53>0,VLOOKUP(B53,Simulador!$A$32:$T$550,13,0)," "))) -> 107.71 | E53: =IF($H$11=0," ",IF(B52=$H$11,Simulador!$N$30,+IF(B53>0,VLOOKUP(B53,Simulador!$A$32:$T$550,14,0)," "))) -> 65.11 | F53: =IF($H$11=0," ",IF(B52=$H$11,Simulador!$O$30,+IF(B53>0,VLOOKUP(B53,Simulador!$A$32:$T$550,15,0)," "))) -> 18.44 | G53: =IF($H$11=0," ",IF(B52=$H$11,Simulador!$S$30,+IF(B53>0,VLOOKUP(B53,Simulador!$A$32:$T$550,19,0)," "))) -> 7.2 | H53: =IF($H$11=0," ",IF(B52=$H$11,Simulador!$T$30,+IF(B53>0,VLOOKUP(B53,Simulador!$A$32:$T$550,20,0)," "))) -> 198.46
B54: 37 | C54: =IF($H$11=0," ",IF(B53=$H$11,"TOTALES",+IF(B54>0,VLOOKUP(B54,Simulador!$A$32:$T$550,3,0)," "))) -> 2025-03-23 | D54: =IF($H$11=0," ",IF(B53=$H$11,Simulador!$M$30,+IF(B54>0,VLOOKUP(B54,Simulador!$A$32:$T$550,13,0)," "))) -> 117.56 | E54: =IF($H$11=0," ",IF(B53=$H$11,Simulador!$N$30,+IF(B54>0,VLOOKUP(B54,Simulador!$A$32:$T$550,14,0)," "))) -> 55.26 | F54: =IF($H$11=0," ",IF(B53=$H$11,Simulador!$O$30,+IF(B54>0,VLOOKUP(B54,Simulador!$A$32:$T$550,15,0)," "))) -> 18.44 | G54: =IF($H$11=0," ",IF(B53=$H$11,Simulador!$S$30,+IF(B54>0,VLOOKUP(B54,Simulador!$A$32:$T$550,19,0)," "))) -> 7.2 | H54: =IF($H$11=0," ",IF(B53=$H$11,Simulador!$T$30,+IF(B54>0,VLOOKUP(B54,Simulador!$A$32:$T$550,20,0)," "))) -> 198.46
B55: 38 | C55: =IF($H$11=0," ",IF(B54=$H$11,"TOTALES",+IF(B55>0,VLOOKUP(B55,Simulador!$A$32:$T$550,3,0)," "))) -> 2025-04-23 | D55: =IF($H$11=0," ",IF(B54=$H$11,Simulador!$M$30,+IF(B55>0,VLOOKUP(B55,Simulador!$A$32:$T$550,13,0)," "))) -> 115.72 | E55: =IF($H$11=0," ",IF(B54=$H$11,Simulador!$N$30,+IF(B55>0,VLOOKUP(B55,Simulador!$A$32:$T$550,14,0)," "))) -> 57.1 | F55: =IF($H$11=0," ",IF(B54=$H$11,Simulador!$O$30,+IF(B55>0,VLOOKUP(B55,Simulador!$A$32:$T$550,15,0)," "))) -> 18.44 | G55: =IF($H$11=0," ",IF(B54=$H$11,Simulador!$S$30,+IF(B55>0,VLOOKUP(B55,Simulador!$A$32:$T$550,19,0)," "))) -> 7.2 | H55: =IF($H$11=0," ",IF(B54=$H$11,Simulador!$T$30,+IF(B55>0,VLOOKUP(B55,Simulador!$A$32:$T$550,20,0)," "))) -> 198.46
B56: 39 | C56: =IF($H$11=0," ",IF(B55=$H$11,"TOTALES",+IF(B56>0,VLOOKUP(B56,Simulador!$A$32:$T$550,3,0)," "))) -> 2025-05-23 | D56: =IF($H$11=0," ",IF(B55=$H$11,Simulador!$M$30,+IF(B56>0,VLOOKUP(B56,Simulador!$A$32:$T$550,13,0)," "))) -> 121.57 | E56: =IF($H$11=0," ",IF(B55=$H$11,Simulador!$N$30,+IF(B56>0,VLOOKUP(B56,Simulador!$A$32:$T$550,14,0)," "))) -> 51.25 | F56: =IF($H$11=0," ",IF(B55=$H$11,Simulador!$O$30,+IF(B56>0,VLOOKUP(B56,Simulador!$A$32:$T$550,15,0)," "))) -> 18.44 | G56: =IF($H$11=0," ",IF(B55=$H$11,Simulador!$S$30,+IF(B56>0,VLOOKUP(B56,Simulador!$A$32:$T$550,19,0)," "))) -> 7.2 | H56: =IF($H$11=0," ",IF(B55=$H$11,Simulador!$T$30,+IF(B56>0,VLOOKUP(B56,Simulador!$A$32:$T$550,20,0)," "))) -> 198.46
B57: 40 | C57: =IF($H$11=0," ",IF(B56=$H$11,"TOTALES",+IF(B57>0,VLOOKUP(B57,Simulador!$A$32:$T$550,3,0)," "))) -> 2025-06-23 | D57: =IF($H$11=0," ",IF(B56=$H$11,Simulador!$M$30,+IF(B57>0,VLOOKUP(B57,Simulador!$A$32:$T$550,13,0)," "))) -> 124.15 | E57: =IF($H$11=0," ",IF(B56=$H$11,Simulador!$N$30,+IF(B57>0,VLOOKUP(B57,Simulador!$A$32:$T$550,14,0)," "))) -> 48.67 | F57: =IF($H$11=0," ",IF(B56=$H$11,Simulador!$O$30,+IF(B57>0,VLOOKUP(B57,Simulador!$A$32:$T$550,15,0)," "))) -> 18.44 | G57: =IF($H$11=0," ",IF(B56=$H$11,Simulador!$S$30,+IF(B57>0,VLOOKUP(B57,Simulador!$A$32:$T$550,19,0)," "))) -> 7.2 | H57: =IF($H$11=0," ",IF(B56=$H$11,Simulador!$T$30,+IF(B57>0,VLOOKUP(B57,Simulador!$A$32:$T$550,20,0)," "))) -> 198.46
B58: 41 | C58: =IF($H$11=0," ",IF(B57=$H$11,"TOTALES",+IF(B58>0,VLOOKUP(B58,Simulador!$A$32:$T$550,3,0)," "))) -> 2025-07-23 | D58: =IF($H$11=0," ",IF(B57=$H$11,Simulador!$M$30,+IF(B58>0,VLOOKUP(B58,Simulador!$A$32:$T$550,13,0)," "))) -> 130.01 | E58: =IF($H$11=0," ",IF(B57=$H$11,Simulador!$N$30,+IF(B58>0,VLOOKUP(B58,Simulador!$A$32:$T$550,14,0)," "))) -> 42.81 | F58: =IF($H$11=0," ",IF(B57=$H$11,Simulador!$O$30,+IF(B58>0,VLOOKUP(B58,Simulador!$A$32:$T$550,15,0)," "))) -> 18.44 | G58: =IF($H$11=0," ",IF(B57=$H$11,Simulador!$S$30,+IF(B58>0,VLOOKUP(B58,Simulador!$A$32:$T$550,19,0)," "))) -> 7.2 | H58: =IF($H$11=0," ",IF(B57=$H$11,Simulador!$T$30,+IF(B58>0,VLOOKUP(B58,Simulador!$A$32:$T$550,20,0)," "))) -> 198.46
B59: 42 | C59: =IF($H$11=0," ",IF(B58=$H$11,"TOTALES",+IF(B59>0,VLOOKUP(B59,Simulador!$A$32:$T$550,3,0)," "))) -> 2025-08-23 | D59: =IF($H$11=0," ",IF(B58=$H$11,Simulador!$M$30,+IF(B59>0,VLOOKUP(B59,Simulador!$A$32:$T$550,13,0)," "))) -> 133.18 | E59: =IF($H$11=0," ",IF(B58=$H$11,Simulador!$N$30,+IF(B59>0,VLOOKUP(B59,Simulador!$A$32:$T$550,14,0)," "))) -> 39.64 | F59: =IF($H$11=0," ",IF(B58=$H$11,Simulador!$O$30,+IF(B59>0,VLOOKUP(B59,Simulador!$A$32:$T$550,15,0)," "))) -> 18.44 | G59: =IF($H$11=0," ",IF(B58=$H$11,Simulador!$S$30,+IF(B59>0,VLOOKUP(B59,Simulador!$A$32:$T$550,19,0)," "))) -> 7.2 | H59: =IF($H$11=0," ",IF(B58=$H$11,Simulador!$T$30,+IF(B59>0,VLOOKUP(B59,Simulador!$A$32:$T$550,20,0)," "))) -> 198.46
B60: 43 | C60: =IF($H$11=0," ",IF(B59=$H$11,"TOTALES",+IF(B60>0,VLOOKUP(B60,Simulador!$A$32:$T$550,3,0)," "))) -> 2025-09-23 | D60: =IF($H$11=0," ",IF(B59=$H$11,Simulador!$M$30,+IF(B60>0,VLOOKUP(B60,Simulador!$A$32:$T$550,13,0)," "))) -> 137.91 | E60: =IF($H$11=0," ",IF(B59=$H$11,Simulador!$N$30,+IF(B60>0,VLOOKUP(B60,Simulador!$A$32:$T$550,14,0)," "))) -> 34.91 | F60: =IF($H$11=0," ",IF(B59=$H$11,Simulador!$O$30,+IF(B60>0,VLOOKUP(B60,Simulador!$A$32:$T$550,15,0)," "))) -> 18.44 | G60: =IF($H$11=0," ",IF(B59=$H$11,Simulador!$S$30,+IF(B60>0,VLOOKUP(B60,Simulador!$A$32:$T$550,19,0)," "))) -> 7.2 | H60: =IF($H$11=0," ",IF(B59=$H$11,Simulador!$T$30,+IF(B60>0,VLOOKUP(B60,Simulador!$A$32:$T$550,20,0)," "))) -> 198.46
B61: 44 | C61: =IF($H$11=0," ",IF(B60=$H$11,"TOTALES",+IF(B61>0,VLOOKUP(B61,Simulador!$A$32:$T$550,3,0)," "))) -> 2025-10-23 | D61: =IF($H$11=0," ",IF(B60=$H$11,Simulador!$M$30,+IF(B61>0,VLOOKUP(B61,Simulador!$A$32:$T$550,13,0)," "))) -> 143.79 | E61: =IF($H$11=0," ",IF(B60=$H$11,Simulador!$N$30,+IF(B61>0,VLOOKUP(B61,Simulador!$A$32:$T$550,14,0)," "))) -> 29.03 | F61: =IF($H$11=0," ",IF(B60=$H$11,Simulador!$O$30,+IF(B61>0,VLOOKUP(B61,Simulador!$A$32:$T$550,15,0)," "))) -> 18.44 | G61: =IF($H$11=0," ",IF(B60=$H$11,Simulador!$S$30,+IF(B61>0,VLOOKUP(B61,Simulador!$A$32:$T$550,19,0)," "))) -> 7.2 | H61: =IF($H$11=0," ",IF(B60=$H$11,Simulador!$T$30,+IF(B61>0,VLOOKUP(B61,Simulador!$A$32:$T$550,20,0)," "))) -> 198.46
B62: 45 | C62: =IF($H$11=0," ",IF(B61=$H$11,"TOTALES",+IF(B62>0,VLOOKUP(B62,Simulador!$A$32:$T$550,3,0)," "))) -> 2025-11-23 | D62: =IF($H$11=0," ",IF(B61=$H$11,Simulador!$M$30,+IF(B62>0,VLOOKUP(B62,Simulador!$A$32:$T$550,13,0)," "))) -> 147.92 | E62: =IF($H$11=0," ",IF(B61=$H$11,Simulador!$N$30,+IF(B62>0,VLOOKUP(B62,Simulador!$A$32:$T$550,14,0)," "))) -> 24.9 | F62: =IF($H$11=0," ",IF(B61=$H$11,Simulador!$O$30,+IF(B62>0,VLOOKUP(B62,Simulador!$A$32:$T$550,15,0)," "))) -> 18.44 | G62: =IF($H$11=0," ",IF(B61=$H$11,Simulador!$S$30,+IF(B62>0,VLOOKUP(B62,Simulador!$A$32:$T$550,19,0)," "))) -> 7.2 | H62: =IF($H$11=0," ",IF(B61=$H$11,Simulador!$T$30,+IF(B62>0,VLOOKUP(B62,Simulador!$A$32:$T$550,20,0)," "))) -> 198.46
B63: 46 | C63: =IF($H$11=0," ",IF(B62=$H$11,"TOTALES",+IF(B63>0,VLOOKUP(B63,Simulador!$A$32:$T$550,3,0)," "))) -> 2025-12-23 | D63: =IF($H$11=0," ",IF(B62=$H$11,Simulador!$M$30,+IF(B63>0,VLOOKUP(B63,Simulador!$A$32:$T$550,13,0)," "))) -> 153.82 | E63: =IF($H$11=0," ",IF(B62=$H$11,Simulador!$N$30,+IF(B63>0,VLOOKUP(B63,Simulador!$A$32:$T$550,14,0)," "))) -> 19 | F63: =IF($H$11=0," ",IF(B62=$H$11,Simulador!$O$30,+IF(B63>0,VLOOKUP(B63,Simulador!$A$32:$T$550,15,0)," "))) -> 18.44 | G63: =IF($H$11=0," ",IF(B62=$H$11,Simulador!$S$30,+IF(B63>0,VLOOKUP(B63,Simulador!$A$32:$T$550,19,0)," "))) -> 7.2 | H63: =IF($H$11=0," ",IF(B62=$H$11,Simulador!$T$30,+IF(B63>0,VLOOKUP(B63,Simulador!$A$32:$T$550,20,0)," "))) -> 198.46
B64: 47 | C64: =IF($H$11=0," ",IF(B63=$H$11,"TOTALES",+IF(B64>0,VLOOKUP(B64,Simulador!$A$32:$T$550,3,0)," "))) -> 2026-01-23 | D64: =IF($H$11=0," ",IF(B63=$H$11,Simulador!$M$30,+IF(B64>0,VLOOKUP(B64,Simulador!$A$32:$T$550,13,0)," "))) -> 158.64 | E64: =IF($H$11=0," ",IF(B63=$H$11,Simulador!$N$30,+IF(B64>0,VLOOKUP(B64,Simulador!$A$32:$T$550,14,0)," "))) -> 14.18 | F64: =IF($H$11=0," ",IF(B63=$H$11,Simulador!$O$30,+IF(B64>0,VLOOKUP(B64,Simulador!$A$32:$T$550,15,0)," "))) -> 18.44 | G64: =IF($H$11=0," ",IF(B63=$H$11,Simulador!$S$30,+IF(B64>0,VLOOKUP(B64,Simulador!$A$32:$T$550,19,0)," "))) -> 7.2 | H64: =IF($H$11=0," ",IF(B63=$H$11,Simulador!$T$30,+IF(B64>0,VLOOKUP(B64,Simulador!$A$32:$T$550,20,0)," "))) -> 198.46
B65: 48 | C65: =IF($H$11=0," ",IF(B64=$H$11,"TOTALES",+IF(B65>0,VLOOKUP(B65,Simulador!$A$32:$T$550,3,0)," "))) -> 2026-02-23 | D65: =IF($H$11=0," ",IF(B64=$H$11,Simulador!$M$30,+IF(B65>0,VLOOKUP(B65,Simulador!$A$32:$T$550,13,0)," "))) -> 240.43 | E65: =IF($H$11=0," ",IF(B64=$H$11,Simulador!$N$30,+IF(B65>0,VLOOKUP(B65,Simulador!$A$32:$T$550,14,0)," "))) -> 8.54 | F65: =IF($H$11=0," ",IF(B64=$H$11,Simulador!$O$30,+IF(B65>0,VLOOKUP(B65,Simulador!$A$32:$T$550,15,0)," "))) -> 18.44 | G65: =IF($H$11=0," ",IF(B64=$H$11,Simulador!$S$30,+IF(B65>0,VLOOKUP(B65,Simulador!$A$32:$T$550,19,0)," "))) -> 7.2 | H65: =IF($H$11=0," ",IF(B64=$H$11,Simulador!$T$30,+IF(B65>0,VLOOKUP(B65,Simulador!$A$32:$T$550,20,0)," "))) -> 274.61
C66: =IF($H$11=0," ",IF(B65=$H$11,"TOTALES",+IF(B66>0,VLOOKUP(B66,Simulador!$A$32:$T$550,3,0)," "))) -> TOTALES | D66: =IF($H$11=0," ",IF(B65=$H$11,Simulador!$M$30,+IF(B66>0,VLOOKUP(B66,Simulador!$A$32:$T$550,13,0)," "))) -> 4000 | E66: =IF($H$11=0," ",IF(B65=$H$11,Simulador!$N$30,+IF(B66>0,VLOOKUP(B66,Simulador!$A$32:$T$550,14,0)," "))) -> 4349.91 | F66: =IF($H$11=0," ",IF(B65=$H$11,Simulador!$O$30,+IF(B66>0,VLOOKUP(B66,Simulador!$A$32:$T$550,15,0)," "))) -> 885.12 | G66: =IF($H$11=0," ",IF(B65=$H$11,Simulador!$S$30,+IF(B66>0,VLOOKUP(B66,Simulador!$A$32:$T$550,19,0)," "))) -> 367.2 | H66: =IF($H$11=0," ",IF(B65=$H$11,Simulador!$T$30,+IF(B66>0,VLOOKUP(B66,Simulador!$A$32:$T$550,20,0)," "))) -> 9602.23
C67: =IF($H$11=0," ",IF(B66=$H$11,"TOTALES",+IF(B67>0,VLOOKUP(B67,Simulador!$A$32:$T$550,3,0)," "))) ->  | D67: =IF($H$11=0," ",IF(B66=$H$11,Simulador!$M$30,+IF(B67>0,VLOOKUP(B67,Simulador!$A$32:$T$550,13,0)," "))) ->  | E67: =IF($H$11=0," ",IF(B66=$H$11,Simulador!$N$30,+IF(B67>0,VLOOKUP(B67,Simulador!$A$32:$T$550,14,0)," "))) ->  | F67: =IF($H$11=0," ",IF(B66=$H$11,Simulador!$O$30,+IF(B67>0,VLOOKUP(B67,Simulador!$A$32:$T$550,15,0)," "))) ->  | G67: =IF($H$11=0," ",IF(B66=$H$11,Simulador!$S$30,+IF(B67>0,VLOOKUP(B67,Simulador!$A$32:$T$550,19,0)," "))) ->  | H67: =IF($H$11=0," ",IF(B66=$H$11,Simulador!$T$30,+IF(B67>0,VLOOKUP(B67,Simulador!$A$32:$T$550,20,0)," "))) -> 
C68: =IF($H$11=0," ",IF(B67=$H$11,"TOTALES",+IF(B68>0,VLOOKUP(B68,Simulador!$A$32:$T$550,3,0)," "))) ->  | D68: =IF($H$11=0," ",IF(B67=$H$11,Simulador!$M$30,+IF(B68>0,VLOOKUP(B68,Simulador!$A$32:$T$550,13,0)," "))) ->  | E68: =IF($H$11=0," ",IF(B67=$H$11,Simulador!$N$30,+IF(B68>0,VLOOKUP(B68,Simulador!$A$32:$T$550,14,0)," "))) ->  | F68: =IF($H$11=0," ",IF(B67=$H$11,Simulador!$O$30,+IF(B68>0,VLOOKUP(B68,Simulador!$A$32:$T$550,15,0)," "))) ->  | G68: =IF($H$11=0," ",IF(B67=$H$11,Simulador!$S$30,+IF(B68>0,VLOOKUP(B68,Simulador!$A$32:$T$550,19,0)," "))) ->  | H68: =IF($H$11=0," ",IF(B67=$H$11,Simulador!$T$30,+IF(B68>0,VLOOKUP(B68,Simulador!$A$32:$T$550,20,0)," "))) -> 
C69: =IF($H$11=0," ",IF(B68=$H$11,"TOTALES",+IF(B69>0,VLOOKUP(B69,Simulador!$A$32:$T$550,3,0)," "))) ->  | D69: =IF($H$11=0," ",IF(B68=$H$11,Simulador!$M$30,+IF(B69>0,VLOOKUP(B69,Simulador!$A$32:$T$550,13,0)," "))) ->  | E69: =IF($H$11=0," ",IF(B68=$H$11,Simulador!$N$30,+IF(B69>0,VLOOKUP(B69,Simulador!$A$32:$T$550,14,0)," "))) ->  | F69: =IF($H$11=0," ",IF(B68=$H$11,Simulador!$O$30,+IF(B69>0,VLOOKUP(B69,Simulador!$A$32:$T$550,15,0)," "))) ->  | G69: =IF($H$11=0," ",IF(B68=$H$11,Simulador!$S$30,+IF(B69>0,VLOOKUP(B69,Simulador!$A$32:$T$550,19,0)," "))) ->  | H69: =IF($H$11=0," ",IF(B68=$H$11,Simulador!$T$30,+IF(B69>0,VLOOKUP(B69,Simulador!$A$32:$T$550,20,0)," "))) -> 
C70: =IF($H$11=0," ",IF(B69=$H$11,"TOTALES",+IF(B70>0,VLOOKUP(B70,Simulador!$A$32:$T$550,3,0)," "))) ->  | D70: =IF($H$11=0," ",IF(B69=$H$11,Simulador!$M$30,+IF(B70>0,VLOOKUP(B70,Simulador!$A$32:$T$550,13,0)," "))) ->  | E70: =IF($H$11=0," ",IF(B69=$H$11,Simulador!$N$30,+IF(B70>0,VLOOKUP(B70,Simulador!$A$32:$T$550,14,0)," "))) ->  | F70: =IF($H$11=0," ",IF(B69=$H$11,Simulador!$O$30,+IF(B70>0,VLOOKUP(B70,Simulador!$A$32:$T$550,15,0)," "))) ->  | G70: =IF($H$11=0," ",IF(B69=$H$11,Simulador!$S$30,+IF(B70>0,VLOOKUP(B70,Simulador!$A$32:$T$550,19,0)," "))) ->  | H70: =IF($H$11=0," ",IF(B69=$H$11,Simulador!$T$30,+IF(B70>0,VLOOKUP(B70,Simulador!$A$32:$T$550,20,0)," "))) -> 
C71: =IF($H$11=0," ",IF(B70=$H$11,"TOTALES",+IF(B71>0,VLOOKUP(B71,Simulador!$A$32:$T$550,3,0)," "))) ->  | D71: =IF($H$11=0," ",IF(B70=$H$11,Simulador!$M$30,+IF(B71>0,VLOOKUP(B71,Simulador!$A$32:$T$550,13,0)," "))) ->  | E71: =IF($H$11=0," ",IF(B70=$H$11,Simulador!$N$30,+IF(B71>0,VLOOKUP(B71,Simulador!$A$32:$T$550,14,0)," "))) ->  | F71: =IF($H$11=0," ",IF(B70=$H$11,Simulador!$O$30,+IF(B71>0,VLOOKUP(B71,Simulador!$A$32:$T$550,15,0)," "))) ->  | G71: =IF($H$11=0," ",IF(B70=$H$11,Simulador!$S$30,+IF(B71>0,VLOOKUP(B71,Simulador!$A$32:$T$550,19,0)," "))) ->  | H71: =IF($H$11=0," ",IF(B70=$H$11,Simulador!$T$30,+IF(B71>0,VLOOKUP(B71,Simulador!$A$32:$T$550,20,0)," "))) -> 
C72: =IF($H$11=0," ",IF(B71=$H$11,"TOTALES",+IF(B72>0,VLOOKUP(B72,Simulador!$A$32:$T$550,3,0)," "))) ->  | D72: =IF($H$11=0," ",IF(B71=$H$11,Simulador!$M$30,+IF(B72>0,VLOOKUP(B72,Simulador!$A$32:$T$550,13,0)," "))) ->  | E72: =IF($H$11=0," ",IF(B71=$H$11,Simulador!$N$30,+IF(B72>0,VLOOKUP(B72,Simulador!$A$32:$T$550,14,0)," "))) ->  | F72: =IF($H$11=0," ",IF(B71=$H$11,Simulador!$O$30,+IF(B72>0,VLOOKUP(B72,Simulador!$A$32:$T$550,15,0)," "))) ->  | G72: =IF($H$11=0," ",IF(B71=$H$11,Simulador!$S$30,+IF(B72>0,VLOOKUP(B72,Simulador!$A$32:$T$550,19,0)," "))) ->  | H72: =IF($H$11=0," ",IF(B71=$H$11,Simulador!$T$30,+IF(B72>0,VLOOKUP(B72,Simulador!$A$32:$T$550,20,0)," "))) -> 
C73: =IF($H$11=0," ",IF(B72=$H$11,"TOTALES",+IF(B73>0,VLOOKUP(B73,Simulador!$A$32:$T$550,3,0)," "))) ->  | D73: =IF($H$11=0," ",IF(B72=$H$11,Simulador!$M$30,+IF(B73>0,VLOOKUP(B73,Simulador!$A$32:$T$550,13,0)," "))) ->  | E73: =IF($H$11=0," ",IF(B72=$H$11,Simulador!$N$30,+IF(B73>0,VLOOKUP(B73,Simulador!$A$32:$T$550,14,0)," "))) ->  | F73: =IF($H$11=0," ",IF(B72=$H$11,Simulador!$O$30,+IF(B73>0,VLOOKUP(B73,Simulador!$A$32:$T$550,15,0)," "))) ->  | G73: =IF($H$11=0," ",IF(B72=$H$11,Simulador!$S$30,+IF(B73>0,VLOOKUP(B73,Simulador!$A$32:$T$550,19,0)," "))) ->  | H73: =IF($H$11=0," ",IF(B72=$H$11,Simulador!$T$30,+IF(B73>0,VLOOKUP(B73,Simulador!$A$32:$T$550,20,0)," "))) -> 
C74: =IF($H$11=0," ",IF(B73=$H$11,"TOTALES",+IF(B74>0,VLOOKUP(B74,Simulador!$A$32:$T$550,3,0)," "))) ->  | D74: =IF($H$11=0," ",IF(B73=$H$11,Simulador!$M$30,+IF(B74>0,VLOOKUP(B74,Simulador!$A$32:$T$550,13,0)," "))) ->  | E74: =IF($H$11=0," ",IF(B73=$H$11,Simulador!$N$30,+IF(B74>0,VLOOKUP(B74,Simulador!$A$32:$T$550,14,0)," "))) ->  | F74: =IF($H$11=0," ",IF(B73=$H$11,Simulador!$O$30,+IF(B74>0,VLOOKUP(B74,Simulador!$A$32:$T$550,15,0)," "))) ->  | G74: =IF($H$11=0," ",IF(B73=$H$11,Simulador!$S$30,+IF(B74>0,VLOOKUP(B74,Simulador!$A$32:$T$550,19,0)," "))) ->  | H74: =IF($H$11=0," ",IF(B73=$H$11,Simulador!$T$30,+IF(B74>0,VLOOKUP(B74,Simulador!$A$32:$T$550,20,0)," "))) -> 
C75: =IF($H$11=0," ",IF(B74=$H$11,"TOTALES",+IF(B75>0,VLOOKUP(B75,Simulador!$A$32:$T$550,3,0)," "))) ->  | D75: =IF($H$11=0," ",IF(B74=$H$11,Simulador!$M$30,+IF(B75>0,VLOOKUP(B75,Simulador!$A$32:$T$550,13,0)," "))) ->  | E75: =IF($H$11=0," ",IF(B74=$H$11,Simulador!$N$30,+IF(B75>0,VLOOKUP(B75,Simulador!$A$32:$T$550,14,0)," "))) ->  | F75: =IF($H$11=0," ",IF(B74=$H$11,Simulador!$O$30,+IF(B75>0,VLOOKUP(B75,Simulador!$A$32:$T$550,15,0)," "))) ->  | G75: =IF($H$11=0," ",IF(B74=$H$11,Simulador!$S$30,+IF(B75>0,VLOOKUP(B75,Simulador!$A$32:$T$550,19,0)," "))) ->  | H75: =IF($H$11=0," ",IF(B74=$H$11,Simulador!$T$30,+IF(B75>0,VLOOKUP(B75,Simulador!$A$32:$T$550,20,0)," "))) -> 
C76: =IF($H$11=0," ",IF(B75=$H$11,"TOTALES",+IF(B76>0,VLOOKUP(B76,Simulador!$A$32:$T$550,3,0)," "))) ->  | D76: =IF($H$11=0," ",IF(B75=$H$11,Simulador!$M$30,+IF(B76>0,VLOOKUP(B76,Simulador!$A$32:$T$550,13,0)," "))) ->  | E76: =IF($H$11=0," ",IF(B75=$H$11,Simulador!$N$30,+IF(B76>0,VLOOKUP(B76,Simulador!$A$32:$T$550,14,0)," "))) ->  | F76: =IF($H$11=0," ",IF(B75=$H$11,Simulador!$O$30,+IF(B76>0,VLOOKUP(B76,Simulador!$A$32:$T$550,15,0)," "))) ->  | G76: =IF($H$11=0," ",IF(B75=$H$11,Simulador!$S$30,+IF(B76>0,VLOOKUP(B76,Simulador!$A$32:$T$550,19,0)," "))) ->  | H76: =IF($H$11=0," ",IF(B75=$H$11,Simulador!$T$30,+IF(B76>0,VLOOKUP(B76,Simulador!$A$32:$T$550,20,0)," "))) -> 
C77: =IF($H$11=0," ",IF(B76=$H$11,"TOTALES",+IF(B77>0,VLOOKUP(B77,Simulador!$A$32:$T$550,3,0)," "))) ->  | D77: =IF($H$11=0," ",IF(B76=$H$11,Simulador!$M$30,+IF(B77>0,VLOOKUP(B77,Simulador!$A$32:$T$550,13,0)," "))) ->  | E77: =IF($H$11=0," ",IF(B76=$H$11,Simulador!$N$30,+IF(B77>0,VLOOKUP(B77,Simulador!$A$32:$T$550,14,0)," "))) ->  | F77: =IF($H$11=0," ",IF(B76=$H$11,Simulador!$O$30,+IF(B77>0,VLOOKUP(B77,Simulador!$A$32:$T$550,15,0)," "))) ->  | G77: =IF($H$11=0," ",IF(B76=$H$11,Simulador!$S$30,+IF(B77>0,VLOOKUP(B77,Simulador!$A$32:$T$550,19,0)," "))) ->  | H77: =IF($H$11=0," ",IF(B76=$H$11,Simulador!$T$30,+IF(B77>0,VLOOKUP(B77,Simulador!$A$32:$T$550,20,0)," "))) -> 
C78: =IF($H$11=0," ",IF(B77=$H$11,"TOTALES",+IF(B78>0,VLOOKUP(B78,Simulador!$A$32:$T$550,3,0)," "))) ->  | D78: =IF($H$11=0," ",IF(B77=$H$11,Simulador!$M$30,+IF(B78>0,VLOOKUP(B78,Simulador!$A$32:$T$550,13,0)," "))) ->  | E78: =IF($H$11=0," ",IF(B77=$H$11,Simulador!$N$30,+IF(B78>0,VLOOKUP(B78,Simulador!$A$32:$T$550,14,0)," "))) ->  | F78: =IF($H$11=0," ",IF(B77=$H$11,Simulador!$O$30,+IF(B78>0,VLOOKUP(B78,Simulador!$A$32:$T$550,15,0)," "))) ->  | G78: =IF($H$11=0," ",IF(B77=$H$11,Simulador!$S$30,+IF(B78>0,VLOOKUP(B78,Simulador!$A$32:$T$550,19,0)," "))) ->  | H78: =IF($H$11=0," ",IF(B77=$H$11,Simulador!$T$30,+IF(B78>0,VLOOKUP(B78,Simulador!$A$32:$T$550,20,0)," "))) -> 
C79: =IF($H$11=0," ",IF(B78=$H$11,"TOTALES",+IF(B79>0,VLOOKUP(B79,Simulador!$A$32:$T$550,3,0)," "))) ->  | D79: =IF($H$11=0," ",IF(B78=$H$11,Simulador!$M$30,+IF(B79>0,VLOOKUP(B79,Simulador!$A$32:$T$550,13,0)," "))) ->  | E79: =IF($H$11=0," ",IF(B78=$H$11,Simulador!$N$30,+IF(B79>0,VLOOKUP(B79,Simulador!$A$32:$T$550,14,0)," "))) ->  | F79: =IF($H$11=0," ",IF(B78=$H$11,Simulador!$O$30,+IF(B79>0,VLOOKUP(B79,Simulador!$A$32:$T$550,15,0)," "))) ->  | G79: =IF($H$11=0," ",IF(B78=$H$11,Simulador!$S$30,+IF(B79>0,VLOOKUP(B79,Simulador!$A$32:$T$550,19,0)," "))) ->  | H79: =IF($H$11=0," ",IF(B78=$H$11,Simulador!$T$30,+IF(B79>0,VLOOKUP(B79,Simulador!$A$32:$T$550,20,0)," "))) -> 
C80: =IF($H$11=0," ",IF(B79=$H$11,"TOTALES",+IF(B80>0,VLOOKUP(B80,Simulador!$A$32:$T$550,3,0)," "))) ->  | D80: =IF($H$11=0," ",IF(B79=$H$11,Simulador!$M$30,+IF(B80>0,VLOOKUP(B80,Simulador!$A$32:$T$550,13,0)," "))) ->  | E80: =IF($H$11=0," ",IF(B79=$H$11,Simulador!$N$30,+IF(B80>0,VLOOKUP(B80,Simulador!$A$32:$T$550,14,0)," "))) ->  | F80: =IF($H$11=0," ",IF(B79=$H$11,Simulador!$O$30,+IF(B80>0,VLOOKUP(B80,Simulador!$A$32:$T$550,15,0)," "))) ->  | G80: =IF($H$11=0," ",IF(B79=$H$11,Simulador!$S$30,+IF(B80>0,VLOOKUP(B80,Simulador!$A$32:$T$550,19,0)," "))) ->  | H80: =IF($H$11=0," ",IF(B79=$H$11,Simulador!$T$30,+IF(B80>0,VLOOKUP(B80,Simulador!$A$32:$T$550,20,0)," "))) -> 
C81: =IF($H$11=0," ",IF(B80=$H$11,"TOTALES",+IF(B81>0,VLOOKUP(B81,Simulador!$A$32:$T$550,3,0)," "))) ->  | D81: =IF($H$11=0," ",IF(B80=$H$11,Simulador!$M$30,+IF(B81>0,VLOOKUP(B81,Simulador!$A$32:$T$550,13,0)," "))) ->  | E81: =IF($H$11=0," ",IF(B80=$H$11,Simulador!$N$30,+IF(B81>0,VLOOKUP(B81,Simulador!$A$32:$T$550,14,0)," "))) ->  | F81: =IF($H$11=0," ",IF(B80=$H$11,Simulador!$O$30,+IF(B81>0,VLOOKUP(B81,Simulador!$A$32:$T$550,15,0)," "))) ->  | G81: =IF($H$11=0," ",IF(B80=$H$11,Simulador!$S$30,+IF(B81>0,VLOOKUP(B81,Simulador!$A$32:$T$550,19,0)," "))) ->  | H81: =IF($H$11=0," ",IF(B80=$H$11,Simulador!$T$30,+IF(B81>0,VLOOKUP(B81,Simulador!$A$32:$T$550,20,0)," "))) -> 
C82: =IF($H$11=0," ",IF(B81=$H$11,"TOTALES",+IF(B82>0,VLOOKUP(B82,Simulador!$A$32:$T$550,3,0)," "))) ->  | D82: =IF($H$11=0," ",IF(B81=$H$11,Simulador!$M$30,+IF(B82>0,VLOOKUP(B82,Simulador!$A$32:$T$550,13,0)," "))) ->  | E82: =IF($H$11=0," ",IF(B81=$H$11,Simulador!$N$30,+IF(B82>0,VLOOKUP(B82,Simulador!$A$32:$T$550,14,0)," "))) ->  | F82: =IF($H$11=0," ",IF(B81=$H$11,Simulador!$O$30,+IF(B82>0,VLOOKUP(B82,Simulador!$A$32:$T$550,15,0)," "))) ->  | G82: =IF($H$11=0," ",IF(B81=$H$11,Simulador!$S$30,+IF(B82>0,VLOOKUP(B82,Simulador!$A$32:$T$550,19,0)," "))) ->  | H82: =IF($H$11=0," ",IF(B81=$H$11,Simulador!$T$30,+IF(B82>0,VLOOKUP(B82,Simulador!$A$32:$T$550,20,0)," "))) -> 
C83: =IF($H$11=0," ",IF(B82=$H$11,"TOTALES",+IF(B83>0,VLOOKUP(B83,Simulador!$A$32:$T$550,3,0)," "))) ->  | D83: =IF($H$11=0," ",IF(B82=$H$11,Simulador!$M$30,+IF(B83>0,VLOOKUP(B83,Simulador!$A$32:$T$550,13,0)," "))) ->  | E83: =IF($H$11=0," ",IF(B82=$H$11,Simulador!$N$30,+IF(B83>0,VLOOKUP(B83,Simulador!$A$32:$T$550,14,0)," "))) ->  | F83: =IF($H$11=0," ",IF(B82=$H$11,Simulador!$O$30,+IF(B83>0,VLOOKUP(B83,Simulador!$A$32:$T$550,15,0)," "))) ->  | G83: =IF($H$11=0," ",IF(B82=$H$11,Simulador!$S$30,+IF(B83>0,VLOOKUP(B83,Simulador!$A$32:$T$550,19,0)," "))) ->  | H83: =IF($H$11=0," ",IF(B82=$H$11,Simulador!$T$30,+IF(B83>0,VLOOKUP(B83,Simulador!$A$32:$T$550,20,0)," "))) -> 
B84: =IF(B83=0," ",IF(B83>=$H$11,"",B83+1)) ->  | C84: =IF($H$11=0," ",IF(B83=$H$11,"TOTALES",+IF(B84>0,VLOOKUP(B84,Simulador!$A$32:$T$550,3,0)," "))) ->  | D84: =IF($H$11=0," ",IF(B83=$H$11,Simulador!$M$30,+IF(B84>0,VLOOKUP(B84,Simulador!$A$32:$T$550,13,0)," "))) ->  | E84: =IF($H$11=0," ",IF(B83=$H$11,Simulador!$N$30,+IF(B84>0,VLOOKUP(B84,Simulador!$A$32:$T$550,14,0)," "))) ->  | F84: =IF($H$11=0," ",IF(B83=$H$11,Simulador!$O$30,+IF(B84>0,VLOOKUP(B84,Simulador!$A$32:$T$550,15,0)," "))) ->  | G84: =IF($H$11=0," ",IF(B83=$H$11,Simulador!$S$30,+IF(B84>0,VLOOKUP(B84,Simulador!$A$32:$T$550,19,0)," "))) ->  | H84: =IF($H$11=0," ",IF(B83=$H$11,Simulador!$T$30,+IF(B84>0,VLOOKUP(B84,Simulador!$A$32:$T$550,20,0)," "))) -> 
C85: =IF($H$11=0," ",IF(B84=$H$11,"TOTALES",+IF(B85>0,VLOOKUP(B85,Simulador!$A$32:$T$550,3,0)," "))) ->  | D85: =IF($H$11=0," ",IF(B84=$H$11,Simulador!$M$30,+IF(B85>0,VLOOKUP(B85,Simulador!$A$32:$T$550,13,0)," "))) ->  | E85: =IF($H$11=0," ",IF(B84=$H$11,Simulador!$N$30,+IF(B85>0,VLOOKUP(B85,Simulador!$A$32:$T$550,14,0)," "))) ->  | F85: =IF($H$11=0," ",IF(B84=$H$11,Simulador!$O$30,+IF(B85>0,VLOOKUP(B85,Simulador!$A$32:$T$550,15,0)," "))) ->  | G85: =IF($H$11=0," ",IF(B84=$H$11,Simulador!$S$30,+IF(B85>0,VLOOKUP(B85,Simulador!$A$32:$T$550,19,0)," "))) ->  | H85: =IF($H$11=0," ",IF(B84=$H$11,Simulador!$T$30,+IF(B85>0,VLOOKUP(B85,Simulador!$A$32:$T$550,20,0)," "))) -> 
C86: =IF($H$11=0," ",IF(B85=$H$11,"TOTALES",+IF(B86>0,VLOOKUP(B86,Simulador!$A$32:$T$550,3,0)," "))) ->  | D86: =IF($H$11=0," ",IF(B85=$H$11,Simulador!$M$30,+IF(B86>0,VLOOKUP(B86,Simulador!$A$32:$T$550,13,0)," "))) ->  | E86: =IF($H$11=0," ",IF(B85=$H$11,Simulador!$N$30,+IF(B86>0,VLOOKUP(B86,Simulador!$A$32:$T$550,14,0)," "))) ->  | F86: =IF($H$11=0," ",IF(B85=$H$11,Simulador!$O$30,+IF(B86>0,VLOOKUP(B86,Simulador!$A$32:$T$550,15,0)," "))) ->  | G86: =IF($H$11=0," ",IF(B85=$H$11,Simulador!$S$30,+IF(B86>0,VLOOKUP(B86,Simulador!$A$32:$T$550,19,0)," "))) ->  | H86: =IF($H$11=0," ",IF(B85=$H$11,Simulador!$T$30,+IF(B86>0,VLOOKUP(B86,Simulador!$A$32:$T$550,20,0)," "))) -> 
C87: =IF($H$11=0," ",IF(B86=$H$11,"TOTALES",+IF(B87>0,VLOOKUP(B87,Simulador!$A$32:$T$550,3,0)," "))) ->  | D87: =IF($H$11=0," ",IF(B86=$H$11,Simulador!$M$30,+IF(B87>0,VLOOKUP(B87,Simulador!$A$32:$T$550,13,0)," "))) ->  | E87: =IF($H$11=0," ",IF(B86=$H$11,Simulador!$N$30,+IF(B87>0,VLOOKUP(B87,Simulador!$A$32:$T$550,14,0)," "))) ->  | F87: =IF($H$11=0," ",IF(B86=$H$11,Simulador!$O$30,+IF(B87>0,VLOOKUP(B87,Simulador!$A$32:$T$550,15,0)," "))) ->  | G87: =IF($H$11=0," ",IF(B86=$H$11,Simulador!$S$30,+IF(B87>0,VLOOKUP(B87,Simulador!$A$32:$T$550,19,0)," "))) ->  | H87: =IF($H$11=0," ",IF(B86=$H$11,Simulador!$T$30,+IF(B87>0,VLOOKUP(B87,Simulador!$A$32:$T$550,20,0)," "))) -> 
C88: =IF($H$11=0," ",IF(B87=$H$11,"TOTALES",+IF(B88>0,VLOOKUP(B88,Simulador!$A$32:$T$550,3,0)," "))) ->  | D88: =IF($H$11=0," ",IF(B87=$H$11,Simulador!$M$30,+IF(B88>0,VLOOKUP(B88,Simulador!$A$32:$T$550,13,0)," "))) ->  | E88: =IF($H$11=0," ",IF(B87=$H$11,Simulador!$N$30,+IF(B88>0,VLOOKUP(B88,Simulador!$A$32:$T$550,14,0)," "))) ->  | F88: =IF($H$11=0," ",IF(B87=$H$11,Simulador!$O$30,+IF(B88>0,VLOOKUP(B88,Simulador!$A$32:$T$550,15,0)," "))) ->  | G88: =IF($H$11=0," ",IF(B87=$H$11,Simulador!$S$30,+IF(B88>0,VLOOKUP(B88,Simulador!$A$32:$T$550,19,0)," "))) ->  | H88: =IF($H$11=0," ",IF(B87=$H$11,Simulador!$T$30,+IF(B88>0,VLOOKUP(B88,Simulador!$A$32:$T$550,20,0)," "))) -> 
C89: =IF($H$11=0," ",IF(B88=$H$11,"TOTALES",+IF(B89>0,VLOOKUP(B89,Simulador!$A$32:$T$550,3,0)," "))) ->  | D89: =IF($H$11=0," ",IF(B88=$H$11,Simulador!$M$30,+IF(B89>0,VLOOKUP(B89,Simulador!$A$32:$T$550,13,0)," "))) ->  | E89: =IF($H$11=0," ",IF(B88=$H$11,Simulador!$N$30,+IF(B89>0,VLOOKUP(B89,Simulador!$A$32:$T$550,14,0)," "))) ->  | F89: =IF($H$11=0," ",IF(B88=$H$11,Simulador!$O$30,+IF(B89>0,VLOOKUP(B89,Simulador!$A$32:$T$550,15,0)," "))) ->  | G89: =IF($H$11=0," ",IF(B88=$H$11,Simulador!$S$30,+IF(B89>0,VLOOKUP(B89,Simulador!$A$32:$T$550,19,0)," "))) ->  | H89: =IF($H$11=0," ",IF(B88=$H$11,Simulador!$T$30,+IF(B89>0,VLOOKUP(B89,Simulador!$A$32:$T$550,20,0)," "))) -> 
C90: =IF($H$11=0," ",IF(B89=$H$11,"TOTALES",+IF(B90>0,VLOOKUP(B90,Simulador!$A$32:$T$550,3,0)," "))) ->  | D90: =IF($H$11=0," ",IF(B89=$H$11,Simulador!$M$30,+IF(B90>0,VLOOKUP(B90,Simulador!$A$32:$T$550,13,0)," "))) ->  | E90: =IF($H$11=0," ",IF(B89=$H$11,Simulador!$N$30,+IF(B90>0,VLOOKUP(B90,Simulador!$A$32:$T$550,14,0)," "))) ->  | F90: =IF($H$11=0," ",IF(B89=$H$11,Simulador!$O$30,+IF(B90>0,VLOOKUP(B90,Simulador!$A$32:$T$550,15,0)," "))) ->  | G90: =IF($H$11=0," ",IF(B89=$H$11,Simulador!$S$30,+IF(B90>0,VLOOKUP(B90,Simulador!$A$32:$T$550,19,0)," "))) ->  | H90: =IF($H$11=0," ",IF(B89=$H$11,Simulador!$T$30,+IF(B90>0,VLOOKUP(B90,Simulador!$A$32:$T$550,20,0)," "))) -> 
C91: =IF($H$11=0," ",IF(B90=$H$11,"TOTALES",+IF(B91>0,VLOOKUP(B91,Simulador!$A$32:$T$550,3,0)," "))) ->  | D91: =IF($H$11=0," ",IF(B90=$H$11,Simulador!$M$30,+IF(B91>0,VLOOKUP(B91,Simulador!$A$32:$T$550,13,0)," "))) ->  | E91: =IF($H$11=0," ",IF(B90=$H$11,Simulador!$N$30,+IF(B91>0,VLOOKUP(B91,Simulador!$A$32:$T$550,14,0)," "))) ->  | F91: =IF($H$11=0," ",IF(B90=$H$11,Simulador!$O$30,+IF(B91>0,VLOOKUP(B91,Simulador!$A$32:$T$550,15,0)," "))) ->  | G91: =IF($H$11=0," ",IF(B90=$H$11,Simulador!$S$30,+IF(B91>0,VLOOKUP(B91,Simulador!$A$32:$T$550,19,0)," "))) ->  | H91: =IF($H$11=0," ",IF(B90=$H$11,Simulador!$T$30,+IF(B91>0,VLOOKUP(B91,Simulador!$A$32:$T$550,20,0)," "))) -> 
C92: =IF($H$11=0," ",IF(B91=$H$11,"TOTALES",+IF(B92>0,VLOOKUP(B92,Simulador!$A$32:$T$550,3,0)," "))) ->  | D92: =IF($H$11=0," ",IF(B91=$H$11,Simulador!$M$30,+IF(B92>0,VLOOKUP(B92,Simulador!$A$32:$T$550,13,0)," "))) ->  | E92: =IF($H$11=0," ",IF(B91=$H$11,Simulador!$N$30,+IF(B92>0,VLOOKUP(B92,Simulador!$A$32:$T$550,14,0)," "))) ->  | F92: =IF($H$11=0," ",IF(B91=$H$11,Simulador!$O$30,+IF(B92>0,VLOOKUP(B92,Simulador!$A$32:$T$550,15,0)," "))) ->  | G92: =IF($H$11=0," ",IF(B91=$H$11,Simulador!$S$30,+IF(B92>0,VLOOKUP(B92,Simulador!$A$32:$T$550,19,0)," "))) ->  | H92: =IF($H$11=0," ",IF(B91=$H$11,Simulador!$T$30,+IF(B92>0,VLOOKUP(B92,Simulador!$A$32:$T$550,20,0)," "))) -> 
C93: =IF($H$11=0," ",IF(B92=$H$11,"TOTALES",+IF(B93>0,VLOOKUP(B93,Simulador!$A$32:$T$550,3,0)," "))) ->  | D93: =IF($H$11=0," ",IF(B92=$H$11,Simulador!$M$30,+IF(B93>0,VLOOKUP(B93,Simulador!$A$32:$T$550,13,0)," "))) ->  | E93: =IF($H$11=0," ",IF(B92=$H$11,Simulador!$N$30,+IF(B93>0,VLOOKUP(B93,Simulador!$A$32:$T$550,14,0)," "))) ->  | F93: =IF($H$11=0," ",IF(B92=$H$11,Simulador!$O$30,+IF(B93>0,VLOOKUP(B93,Simulador!$A$32:$T$550,15,0)," "))) ->  | G93: =IF($H$11=0," ",IF(B92=$H$11,Simulador!$S$30,+IF(B93>0,VLOOKUP(B93,Simulador!$A$32:$T$550,19,0)," "))) ->  | H93: =IF($H$11=0," ",IF(B92=$H$11,Simulador!$T$30,+IF(B93>0,VLOOKUP(B93,Simulador!$A$32:$T$550,20,0)," "))) -> 
